Workbook

Sheet Startseite
A2: Berechnung der Sanierungsdauer | L2: Excel-Version | M2: =INFO("version") -> 16.0
A3: In-Situ Chemische Oxidation (ISCO)
A5: Version 1.1

Sheet Schadstoffkonzentrationen Boden (hidden)
A21: Mittlere Schadstoffmasse im gesättigten Boden (Einheitsfläche) (MB) [mg/m²]
A23: Sondierung | B23: 1 | C23: 2 | D23: 3 | E23: 4 | F23: 5 | G23: 6 | H23: 7 | I23: 8 | J23: 9 | K23: 10 | L23: 11 | M23: 12 | N23: 13 | O23: 14 | P23: 15 | Q23: 16 | R23: 17 | S23: 18 | T23: 19 | U23: 20 | V23: Summe [kg] | W23: Mittlere Flächen-Konz. (MB) [mg/m²] | X23: Standard-abweich. (MB) [mg/m²] | Y23: MB + 2 s [mg/m²] | Z23: Inventar (MB-bezogen) [kg]
A25: Flächenrepräsentanz [m²] | V25: =IF(SUM(B25:U25)=Schadstoffbelastung!$J$6,SUM(B25:U25),"Σ ≠ "&Schadstoffbelastung!$J$6&"!") -> Σ ≠ 2436!
A26: Leichtflüchtige chlorierte Kohlenwasserstoffe (LCKW) | V26: kg
A27: Tetrachlorethen | V27: =SUMPRODUCT($B$25:$U$25,$B27:$U27)*0.000001 -> 0 | W27: =IFERROR(AVERAGE($B27:$U27),0) -> 0 | X27: =IF(ISNUMBER(_xlfn.STDEV.S(B27:U27)),_xlfn.STDEV.S(B27:U27),0) -> 0 | Y27: =IF(ISNUMBER(W27+X27*2),(W27+X27*2),0) -> 0 | Z27: =IFERROR(Y27*$V$25/1000/1000,0) -> 0
A28: Trichlorethen | V28: =SUMPRODUCT($B$25:$U$25,$B28:$U28)*0.000001 -> 0 | W28: 0 | X28: =IF(ISNUMBER(_xlfn.STDEV.S(B28:U28)),_xlfn.STDEV.S(B28:U28),0) -> 0 | Y28: =IF(ISNUMBER(W28+X28*2),(W28+X28*2),0) -> 0 | Z28: =Y28*$V$25/1000/1000 -> 
A29: cis-1,2-Dichlorethen | V29: 0 | W29: 0 | X29: 0 | Y29: 0
A30: trans-1,2-Dichlorethen | V30: 0 | W30: 0 | X30: 0 | Y30: 0
A31: 1,1-Dichlorethen | V31: 0 | W31: 0 | X31: 0 | Y31: 0
A32: Vinylchlorid | V32: 0 | W32: 0 | X32: 0 | Y32: 0
A33: Tetrachlormethan | V33: 0 | W33: 0 | X33: 0 | Y33: 0 | Z33: =Y33*$V$25/1000/1000 -> 
A34: Trichlormethan | V34: 0 | W34: 0 | X34: 0 | Y34: 0 | Z34: =Y34*$V$25/1000/1000 -> 
A35: Dichlormethan | V35: =SUMPRODUCT($B$25:$U$25,$B35:$U35)*0.000001 -> 0 | W35: 0 | X35: 0 | Y35: 0
A36: 1,1,1-Trichlorethan | V36: 0 | W36: 0 | X36: 0 | Y36: 0
A37: 1,1,2-Trichlorethan | V37: 0 | W37: 0 | X37: 0 | Y37: 0
A38: 1,1-Dichlorethan | V38: 0 | W38: 0 | X38: 0 | Y38: 0
A39: 1,2-Dichlorethan | V39: 0 | W39: 0 | X39: 0 | Y39: 0 | Z39: =Y39*$V$25/1000/1000 -> 
A40: LCKW | B40: =IF(SUM(B27:B39)>0,SUM(B27:B39),"") ->  | C40: =IF(SUM(C27:C39)>0,SUM(C27:C39),"") ->  | V40: =SUM(V27:V39) -> 0 | W40: 0 | X40: 0 | Y40: 0 | Z40: =SUM(Z27:Z38) -> 
A41: (Mono)aromatische Kohlenwasserstoffe (AKW)
A42: Benzol | V42: =SUMPRODUCT($B$25:$U$25,$B42:$U42)*0.000001 -> 0 | W42: =IFERROR(AVERAGE($B42:$U42),0) -> 0 | X42: =IF(ISNUMBER(_xlfn.STDEV.S(B42:U42)),_xlfn.STDEV.S(B42:U42),0) -> 0 | Y42: 0 | Z42: =Y42*$V$25/1000/1000 -> 
A43: Toluol | V43: 0 | W43: =IFERROR(AVERAGE($B43:$U43),0) -> 0 | X43: =IF(ISNUMBER(_xlfn.STDEV.S(B43:U43)),_xlfn.STDEV.S(B43:U43),0) -> 0 | Y43: 0 | Z43: =Y43*$V$25/1000/1000 -> 
A44: Ethylbenzol | V44: 0 | W44: 0 | X44: 0 | Y44: 0
A45: o-Xylol | V45: 0 | W45: 0 | X45: 0 | Y45: 0
A46: m-Xylol | V46: 0 | W46: 0 | X46: 0 | Y46: 0
A47: p-Xylol | V47: 0 | W47: 0 | X47: 0 | Y47: 0
A48: n-Propylbenzol | V48: 0 | W48: 0 | X48: 0 | Y48: 0
A49: Isopropylbenzol | V49: 0 | W49: 0 | X49: 0 | Y49: 0
A50: o-Ethyltoluol | V50: 0 | W50: 0 | X50: 0 | Y50: 0
A51: m-Ethyltoluol | V51: 0 | W51: 0 | X51: 0 | Y51: 0
A52: p-Ethyltoluol | V52: 0 | W52: 0 | X52: 0 | Y52: 0
A53: 1,2-Diethylbenzol | V53: 0 | W53: 0 | X53: 0 | Y53: 0
A54: 1,3-Diethylbenzol | V54: 0 | W54: 0 | X54: 0 | Y54: 0
A55: 1,4-Diethylbenzol | V55: 0 | W55: 0 | X55: 0 | Y55: 0
A56: 1,2,3-Trimethylbenzol | V56: =SUMPRODUCT($B$25:$U$25,$B56:$U56)*0.000001 -> 0 | W56: 0 | X56: 0 | Y56: 0
A57: 1,2,4-Trimethylbenzol | V57: 0 | W57: 0 | X57: 0 | Y57: 0
A58: 1,3,5-Trimethylbenzol | V58: 0 | W58: 0 | X58: 0 | Y58: 0
A59: BTEX | B59: =IF(SUM(B42:B47)>0,SUM(B42:B47),"") ->  | C59: =IF(SUM(C42:C47)>0,SUM(C42:C47),"") ->  | V59: =SUM(V42:V47) -> 0 | W59: =IFERROR(AVERAGE($B59:$U59),0) -> 0 | X59: 0 | Y59: 0 | Z59: =SUM(Z42:Z47) -> 
A60: AKW | B60: =IF(SUM(B42:B58)>0,SUM(B42:B58),"") ->  | C60: =IF(SUM(C42:C58)>0,SUM(C42:C58),"") ->  | V60: =SUM(V42:V58) -> 0 | W60: 0 | X60: 0 | Y60: 0 | Z60: =SUM(Z42:Z58) -> 
A61: n-Alkane
A62: n-Pentan | V62: =SUMPRODUCT($B$25:$U$25,$B62:$U62)*0.000001 -> 0 | W62: 0 | X62: =IF(ISNUMBER(_xlfn.STDEV.S(B62:U62)),_xlfn.STDEV.S(B62:U62),0) -> 0 | Y62: 0 | Z62: =Y62*$V$25/1000/1000 -> 
A63: n-Hexan | V63: 0 | W63: 0 | X63: =IF(ISNUMBER(_xlfn.STDEV.S(B63:U63)),_xlfn.STDEV.S(B63:U63),0) -> 0 | Y63: 0
A64: n-Heptan | V64: 0 | W64: 0 | X64: 0 | Y64: 0
A65: n-Octan | V65: 0 | W65: 0 | X65: 0 | Y65: 0
A66: n-Nonan | V66: 0 | W66: 0 | X66: 0 | Y66: 0
A67: n-Decan | V67: 0 | W67: 0 | X67: 0 | Y67: 0
A68: n-Alkane | B68: =IF(SUM(B62:B67)>0,SUM(B62:B67),"") ->  | C68: =IF(SUM(C62:C67)>0,SUM(C62:C67),"") ->  | V68: =SUM(V62:V67) -> 0 | W68: 0 | X68: 0 | Y68: 0 | Z68: =SUM(Z62:Z67) -> 
A69: Oxigenate
A70: MTBE (Methyl-tert-butylether) | V70: =SUMPRODUCT($B$25:$U$25,$B70:$U70)*0.000001 -> 0 | W70: 0 | X70: =IF(ISNUMBER(_xlfn.STDEV.S(B70:U70)),_xlfn.STDEV.S(B70:U70),0) -> 0 | Y70: 0 | Z70: =Y70*$V$25/1000/1000 -> 
A71: ETBE (Ethyl-tert-butylether) | V71: 0 | W71: 0 | X71: =IF(ISNUMBER(_xlfn.STDEV.S(B71:U71)),_xlfn.STDEV.S(B71:U71),0) -> 0 | Y71: 0
A72: TBA (tert-Butylalkohol) | V72: 0 | W72: 0 | X72: 0 | Y72: 0
A73: Oxigenate | B73: =IF(SUM(B70:B72)>0,SUM(B70:B72),"") ->  | C73: =IF(SUM(C70:C72)>0,SUM(C70:C72),"") ->  | V73: =SUM(V70:V72) -> 0 | W73: 0 | X73: =IF(ISNUMBER(_xlfn.STDEV.S(B73:U73)),_xlfn.STDEV.S(B73:U73),0) -> 0 | Y73: 0 | Z73: =SUM(Z70:Z72) -> 
A76: Analysierte Schadstoffkonzentrationen im gesättigten Boden [mg/kg]
A77: Sondierung | B77: 1 | C77: 2 | D77: 3 | E77: 4 | F77: 5 | G77: 6 | H77: 7 | I77: 8 | J77: 9 | K77: 10 | L77: 11 | M77: 12 | N77: 13 | O77: 14 | P77: 15 | Q77: 16 | R77: 17 | S77: 18 | T77: 19 | U77: 20 | W77: Minimum [mg/kg OS] | X77: Maximum [mg/kg OS] | Y77: Median [mg/kg OS] | Z77: Mittlere Konz. (MW) [mg/kg OS] | AA77: Standard-abweich. [mg/kg OS] | AB77: MW + 2 s [mg/kg OS] | AC77: Inventar (Mittelwert-bezogen) [kg]
A79: Leichtflüchtige chlorierte Kohlenwasserstoffe (LCKW)
A80: Tetrachlorethen | W80: =MIN(B80:U80) -> 0 | X80: =MAX($B80:$U80) -> 0 | Y80: =IFERROR(MEDIAN($B80:$U80),0) -> 0 | Z80: =IF(ISNUMBER(AVERAGE($B80:$U80)),AVERAGE($B80:$U80),0) -> 0 | AA80: =IF(ISNUMBER(_xlfn.STDEV.S(B80:U80)),_xlfn.STDEV.S(B80:U80),0) -> 0 | AB80: =Z80+AA80*2 -> 0 | AC80: =AB80*Schadstoffbelastung!$J$12/1000 -> 0
A81: Trichlorethen | W81: =MIN(B81:U81) -> 0 | X81: 0 | Y81: =IFERROR(MEDIAN($B81:$U81),0) -> 0 | Z81: =IF(ISNUMBER(AVERAGE($B81:$U81)),AVERAGE($B81:$U81),0) -> 0 | AA81: =IF(ISNUMBER(_xlfn.STDEV.S(B81:U81)),_xlfn.STDEV.S(B81:U81),0) -> 0 | AB81: =Z81+AA81*2 -> 0 | AC81: =AB81*Schadstoffbelastung!$J$12/1000 -> 0
A82: cis-1,2-Dichlorethen | W82: 0 | X82: 0 | Y82: 0 | Z82: 0 | AA82: 0 | AB82: 0 | AC82: =AB82*Schadstoffbelastung!$J$12/1000 -> 0
A83: trans-1,2-Dichlorethen | W83: 0 | X83: 0 | Y83: 0 | Z83: 0 | AA83: 0 | AB83: 0 | AC83: =AB83*Schadstoffbelastung!$J$12/1000 -> 0
A84: 1,1-Dichlorethen | W84: 0 | X84: 0 | Y84: 0 | Z84: 0 | AA84: 0 | AB84: 0 | AC84: =AB84*Schadstoffbelastung!$J$12/1000 -> 0
A85: Vinylchlorid | W85: 0 | X85: 0 | Y85: 0 | Z85: 0 | AA85: 0 | AB85: 0 | AC85: =AB85*Schadstoffbelastung!$J$12/1000 -> 0
A86: Tetrachlormethan | W86: 0 | X86: 0 | Y86: 0 | Z86: 0 | AA86: 0 | AB86: 0 | AC86: =AB86*Schadstoffbelastung!$J$12/1000 -> 0
A87: Trichlormethan | W87: 0 | X87: 0 | Y87: 0 | Z87: 0 | AA87: 0 | AB87: 0 | AC87: =AB87*Schadstoffbelastung!$J$12/1000 -> 0
A88: Dichlormethan | W88: 0 | X88: 0 | Y88: 0 | Z88: 0 | AA88: 0 | AB88: 0 | AC88: =AB88*Schadstoffbelastung!$J$12/1000 -> 0
A89: 1,1,1-Trichlorethan | W89: 0 | X89: 0 | Y89: 0 | Z89: 0 | AA89: 0 | AB89: 0 | AC89: =AB89*Schadstoffbelastung!$J$12/1000 -> 0
A90: 1,1,2-Trichlorethan | W90: 0 | X90: 0 | Y90: 0 | Z90: 0 | AA90: 0 | AB90: 0 | AC90: =AB90*Schadstoffbelastung!$J$12/1000 -> 0
A91: 1,1-Dichlorethan | W91: 0 | X91: 0 | Y91: 0 | Z91: 0 | AA91: 0 | AB91: 0 | AC91: =AB91*Schadstoffbelastung!$J$12/1000 -> 0
A92: 1,2-Dichlorethan | W92: 0 | X92: 0 | Y92: 0 | Z92: 0 | AA92: 0 | AB92: 0 | AC92: =AB92*Schadstoffbelastung!$J$12/1000 -> 0
A93: LCKW | B93: =IF(SUM(B80:B92)>0,SUM(B80:B92),"") ->  | C93: =IF(SUM(C80:C92)>0,SUM(C80:C92),"") ->  | W93: 0 | X93: 0 | Y93: 0 | Z93: 0 | AA93: 0 | AB93: 0 | AC93: =AB93*Schadstoffbelastung!$J$12/1000 -> 0
A94: (Mono)aromatische Kohlenwasserstoffe (AKW)
A95: Benzol | W95: =MIN(B95:U95) -> 0 | X95: 0 | Y95: 0 | Z95: 0 | AA95: =IF(ISNUMBER(_xlfn.STDEV.S(B95:U95)),_xlfn.STDEV.S(B95:U95),0) -> 0 | AB95: =Z95+AA95*2 -> 0 | AC95: =AB95*Schadstoffbelastung!$J$12/1000 -> 0
A96: Toluol | W96: =MIN(B96:U96) -> 0 | X96: 0 | Y96: 0 | Z96: 0 | AA96: =IF(ISNUMBER(_xlfn.STDEV.S(B96:U96)),_xlfn.STDEV.S(B96:U96),0) -> 0 | AB96: =Z96+AA96*2 -> 0 | AC96: =AB96*Schadstoffbelastung!$J$12/1000 -> 0
A97: Ethylbenzol | W97: 0 | X97: 0 | Y97: 0 | Z97: 0 | AA97: 0 | AB97: 0 | AC97: =AB97*Schadstoffbelastung!$J$12/1000 -> 0
A98: o-Xylol | W98: 0 | X98: 0 | Y98: 0 | Z98: 0 | AA98: 0 | AB98: 0 | AC98: =AB98*Schadstoffbelastung!$J$12/1000 -> 0
A99: m-Xylol | W99: 0 | X99: 0 | Y99: 0 | Z99: 0 | AA99: 0 | AB99: 0 | AC99: =AB99*Schadstoffbelastung!$J$12/1000 -> 0
A100: p-Xylol | W100: 0 | X100: 0 | Y100: 0 | Z100: 0 | AA100: 0 | AB100: 0 | AC100: =AB100*Schadstoffbelastung!$J$12/1000 -> 0
A101: n-Propylbenzol | W101: 0 | X101: 0 | Y101: 0 | Z101: 0 | AA101: 0 | AB101: 0 | AC101: =AB101*Schadstoffbelastung!$J$12/1000 -> 0
A102: Isopropylbenzol | W102: 0 | X102: 0 | Y102: 0 | Z102: 0 | AA102: 0 | AB102: 0 | AC102: =AB102*Schadstoffbelastung!$J$12/1000 -> 0
A103: o-Ethyltoluol | W103: 0 | X103: 0 | Y103: 0 | Z103: 0 | AA103: 0 | AB103: 0 | AC103: =AB103*Schadstoffbelastung!$J$12/1000 -> 0
A104: m-Ethyltoluol | W104: 0 | X104: 0 | Y104: 0 | Z104: 0 | AA104: 0 | AB104: 0 | AC104: =AB104*Schadstoffbelastung!$J$12/1000 -> 0
A105: p-Ethyltoluol | W105: 0 | X105: 0 | Y105: 0 | Z105: 0 | AA105: 0 | AB105: 0 | AC105: =AB105*Schadstoffbelastung!$J$12/1000 -> 0
A106: 1,2-Diethylbenzol | W106: 0 | X106: 0 | Y106: 0 | Z106: 0 | AA106: 0 | AB106: 0 | AC106: =AB106*Schadstoffbelastung!$J$12/1000 -> 0
A107: 1,3-Diethylbenzol | W107: 0 | X107: 0 | Y107: 0 | Z107: 0 | AA107: 0 | AB107: 0 | AC107: =AB107*Schadstoffbelastung!$J$12/1000 -> 0
A108: 1,4-Diethylbenzol | W108: 0 | X108: 0 | Y108: 0 | Z108: 0 | AA108: 0 | AB108: 0 | AC108: =AB108*Schadstoffbelastung!$J$12/1000 -> 0
A109: 1,2,3-Trimethylbenzol | W109: 0 | X109: 0 | Y109: 0 | Z109: 0 | AA109: 0 | AB109: 0 | AC109: =AB109*Schadstoffbelastung!$J$12/1000 -> 0
A110: 1,2,4-Trimethylbenzol | W110: 0 | X110: 0 | Y110: 0 | Z110: 0 | AA110: 0 | AB110: 0 | AC110: =AB110*Schadstoffbelastung!$J$12/1000 -> 0
A111: 1,3,5-Trimethylbenzol | W111: 0 | X111: 0 | Y111: 0 | Z111: 0 | AA111: 0 | AB111: 0 | AC111: =AB111*Schadstoffbelastung!$J$12/1000 -> 0
A112: BTEX | B112: =IF(SUM(B95:B100)>0,SUM(B95:B100),"") ->  | C112: =IF(SUM(C95:C100)>0,SUM(C95:C100),"") ->  | W112: 0 | X112: 0 | Y112: 0 | Z112: 0 | AA112: 0 | AB112: 0 | AC112: =AB112*Schadstoffbelastung!$J$12/1000 -> 0
A113: AKW | B113: =IF(SUM(B95:B111)>0,SUM(B95:B111),"") ->  | C113: =IF(SUM(C95:C111)>0,SUM(C95:C111),"") ->  | W113: 0 | X113: 0 | Y113: 0 | Z113: 0 | AA113: 0 | AB113: 0 | AC113: =AB113*Schadstoffbelastung!$J$12/1000 -> 0
A114: n-Alkane
A115: n-Pentan | W115: =MIN(B115:U115) -> 0 | X115: 0 | Y115: 0 | Z115: 0 | AA115: =IF(ISNUMBER(_xlfn.STDEV.S(B115:U115)),_xlfn.STDEV.S(B115:U115),0) -> 0 | AB115: =Z115+AA115*2 -> 0 | AC115: =AB115*Schadstoffbelastung!$J$12/1000 -> 0
A116: n-Hexan | W116: =MIN(B116:U116) -> 0 | X116: 0 | Y116: 0 | Z116: 0 | AA116: =IF(ISNUMBER(_xlfn.STDEV.S(B116:U116)),_xlfn.STDEV.S(B116:U116),0) -> 0 | AB116: =Z116+AA116*2 -> 0 | AC116: =AB116*Schadstoffbelastung!$J$12/1000 -> 0
A117: n-Heptan | W117: 0 | X117: 0 | Y117: 0 | Z117: 0 | AA117: 0 | AB117: 0 | AC117: =AB117*Schadstoffbelastung!$J$12/1000 -> 0
A118: n-Octan | W118: 0 | X118: 0 | Y118: 0 | Z118: 0 | AA118: 0 | AB118: 0 | AC118: =AB118*Schadstoffbelastung!$J$12/1000 -> 0
A119: n-Nonan | W119: 0 | X119: 0 | Y119: 0 | Z119: 0 | AA119: 0 | AB119: 0 | AC119: =AB119*Schadstoffbelastung!$J$12/1000 -> 0
A120: n-Decan | W120: 0 | X120: 0 | Y120: 0 | Z120: 0 | AA120: 0 | AB120: 0 | AC120: =AB120*Schadstoffbelastung!$J$12/1000 -> 0
A121: n-Alkane | B121: =IF(SUM(B115:B120)>0,SUM(B115:B120),"") ->  | C121: =IF(SUM(C115:C120)>0,SUM(C115:C120),"") ->  | W121: 0 | X121: 0 | Y121: 0 | Z121: 0 | AA121: 0 | AB121: 0 | AC121: =AB121*Schadstoffbelastung!$J$12/1000 -> 0
A122: Oxigenate
A123: MTBE (Methyl-tert-butylether) | W123: =MIN(B123:U123) -> 0 | X123: 0 | Y123: 0 | Z123: 0 | AA123: =IF(ISNUMBER(_xlfn.STDEV.S(B123:U123)),_xlfn.STDEV.S(B123:U123),0) -> 0 | AB123: =Z123+AA123*2 -> 0 | AC123: =AB123*Schadstoffbelastung!$J$12/1000 -> 0
A124: ETBE (Ethyl-tert-butylether) | W124: =MIN(B124:U124) -> 0 | X124: 0 | Y124: 0 | Z124: 0 | AA124: =IF(ISNUMBER(_xlfn.STDEV.S(B124:U124)),_xlfn.STDEV.S(B124:U124),0) -> 0 | AB124: =Z124+AA124*2 -> 0 | AC124: =AB124*Schadstoffbelastung!$J$12/1000 -> 0
A125: TBA (tert-Butylalkohol) | W125: 0 | X125: 0 | Y125: 0 | Z125: 0 | AA125: 0 | AB125: 0 | AC125: =AB125*Schadstoffbelastung!$J$12/1000 -> 0
A126: Oxigenate | B126: =IF(SUM(B123:B125)>0,SUM(B123:B125),"") ->  | C126: =IF(SUM(C123:C125)>0,SUM(C123:C125),"") ->  | W126: 0 | X126: 0 | Y126: 0 | Z126: 0 | AA126: 0 | AB126: 0 | AC126: =AB126*Schadstoffbelastung!$J$12/1000 -> 0

Sheet Tabelle1 (hidden)
A1: LCKW | B1: ='Schadstoffkonzentrationen Boden'!B93 ->  | C1: ='Schadstoffkonzentrationen Boden'!C93 ->  | D1: ='Schadstoffkonzentrationen Boden'!D93 ->  | E1: ='Schadstoffkonzentrationen Boden'!E93 ->  | F1: ='Schadstoffkonzentrationen Boden'!F93 ->  | G1: ='Schadstoffkonzentrationen Boden'!G93 ->  | H1: ='Schadstoffkonzentrationen Boden'!H93 ->  | I1: ='Schadstoffkonzentrationen Boden'!I93 ->  | J1: ='Schadstoffkonzentrationen Boden'!J93 ->  | K1: ='Schadstoffkonzentrationen Boden'!K93 ->  | L1: ='Schadstoffkonzentrationen Boden'!L93 ->  | M1: ='Schadstoffkonzentrationen Boden'!M93 ->  | N1: ='Schadstoffkonzentrationen Boden'!N93 ->  | O1: ='Schadstoffkonzentrationen Boden'!O93 ->  | P1: ='Schadstoffkonzentrationen Boden'!P93 ->  | Q1: ='Schadstoffkonzentrationen Boden'!Q93 ->  | R1: ='Schadstoffkonzentrationen Boden'!R93 ->  | S1: ='Schadstoffkonzentrationen Boden'!S93 ->  | T1: ='Schadstoffkonzentrationen Boden'!T93 ->  | U1: ='Schadstoffkonzentrationen Boden'!U93 -> 
A2: AKW | B2: ='Schadstoffkonzentrationen Boden'!B60 ->  | C2: ='Schadstoffkonzentrationen Boden'!C60 ->  | D2: ='Schadstoffkonzentrationen Boden'!D60 ->  | E2: ='Schadstoffkonzentrationen Boden'!E60 ->  | F2: ='Schadstoffkonzentrationen Boden'!F60 ->  | G2: ='Schadstoffkonzentrationen Boden'!G60 ->  | H2: ='Schadstoffkonzentrationen Boden'!H60 ->  | I2: ='Schadstoffkonzentrationen Boden'!I60 ->  | J2: ='Schadstoffkonzentrationen Boden'!J60 ->  | K2: ='Schadstoffkonzentrationen Boden'!K60 ->  | L2: ='Schadstoffkonzentrationen Boden'!L60 ->  | M2: ='Schadstoffkonzentrationen Boden'!M60 ->  | N2: ='Schadstoffkonzentrationen Boden'!N60 ->  | O2: ='Schadstoffkonzentrationen Boden'!O60 ->  | P2: ='Schadstoffkonzentrationen Boden'!P60 ->  | Q2: ='Schadstoffkonzentrationen Boden'!Q60 ->  | R2: ='Schadstoffkonzentrationen Boden'!R60 ->  | S2: ='Schadstoffkonzentrationen Boden'!S60 ->  | T2: ='Schadstoffkonzentrationen Boden'!T60 ->  | U2: ='Schadstoffkonzentrationen Boden'!U60 -> 
A3: Oxigenate | B3: ='Schadstoffkonzentrationen Boden'!B73 ->  | C3: ='Schadstoffkonzentrationen Boden'!C73 ->  | D3: ='Schadstoffkonzentrationen Boden'!D73 ->  | E3: ='Schadstoffkonzentrationen Boden'!E73 ->  | F3: ='Schadstoffkonzentrationen Boden'!F73 ->  | G3: ='Schadstoffkonzentrationen Boden'!G73 ->  | H3: ='Schadstoffkonzentrationen Boden'!H73 ->  | I3: ='Schadstoffkonzentrationen Boden'!I73 ->  | J3: ='Schadstoffkonzentrationen Boden'!J73 ->  | K3: ='Schadstoffkonzentrationen Boden'!K73 ->  | L3: ='Schadstoffkonzentrationen Boden'!L73 ->  | M3: ='Schadstoffkonzentrationen Boden'!M73 ->  | N3: ='Schadstoffkonzentrationen Boden'!N73 ->  | O3: ='Schadstoffkonzentrationen Boden'!O73 ->  | P3: ='Schadstoffkonzentrationen Boden'!P73 ->  | Q3: ='Schadstoffkonzentrationen Boden'!Q73 ->  | R3: ='Schadstoffkonzentrationen Boden'!R73 ->  | S3: ='Schadstoffkonzentrationen Boden'!S73 ->  | T3: ='Schadstoffkonzentrationen Boden'!T73 ->  | U3: ='Schadstoffkonzentrationen Boden'!U73 -> 
A4: n-Alkane | B4: ='Schadstoffkonzentrationen Boden'!B68 ->  | C4: ='Schadstoffkonzentrationen Boden'!C68 ->  | D4: ='Schadstoffkonzentrationen Boden'!D68 ->  | E4: ='Schadstoffkonzentrationen Boden'!E68 ->  | F4: ='Schadstoffkonzentrationen Boden'!F68 ->  | G4: ='Schadstoffkonzentrationen Boden'!G68 ->  | H4: ='Schadstoffkonzentrationen Boden'!H68 ->  | I4: ='Schadstoffkonzentrationen Boden'!I68 ->  | J4: ='Schadstoffkonzentrationen Boden'!J68 ->  | K4: ='Schadstoffkonzentrationen Boden'!K68 ->  | L4: ='Schadstoffkonzentrationen Boden'!L68 ->  | M4: ='Schadstoffkonzentrationen Boden'!M68 ->  | N4: ='Schadstoffkonzentrationen Boden'!N68 ->  | O4: ='Schadstoffkonzentrationen Boden'!O68 ->  | P4: ='Schadstoffkonzentrationen Boden'!P68 ->  | Q4: ='Schadstoffkonzentrationen Boden'!Q68 ->  | R4: ='Schadstoffkonzentrationen Boden'!R68 ->  | S4: ='Schadstoffkonzentrationen Boden'!S68 ->  | T4: ='Schadstoffkonzentrationen Boden'!T68 ->  | U4: ='Schadstoffkonzentrationen Boden'!U68 -> 
A6: LCKW | B6: =_xlfn.RANK.EQ(B1,$B1:$U1) ->  | C6: =_xlfn.RANK.EQ(C1,$B1:$U1) -> 
A7: AKW | B7: =_xlfn.RANK.EQ(B2,$B2:$U2) ->  | C7: =_xlfn.RANK.EQ(C2,$B2:$U2) -> 
A8: Oxigenate | B8: =_xlfn.RANK.EQ(B3,$B3:$U3) -> 
A9: n-Alkane

Sheet Schadstoffkonzentrationen GW (hidden)
A3: Schadstoffkonzentrationen im Grundwasser (gelöst) [µg/L] | I3: Korrekturfaktor | K3: 10 | Z3: =Schadstoffbelastung!$J$6*Schadstoffbelastung!$J$9*Bodencharakterisierung!$E$8/1000/1000 -> 0.00241164 | AA3: =Schadstoffbelastung!$J$6*Schadstoffbelastung!$J$9*Bodencharakterisierung!E11*Bodencharakterisierung!$E$9/1000/1000 -> 5.53581e-05
A5: Messstelle Nr. | B5: 1 | C5: 2 | D5: 3 | E5: 4 | F5: 5 | G5: 6 | H5: 7 | I5: 8 | J5: 9 | K5: 10 | L5: 11 | M5: 12 | N5: 13 | O5: 14 | P5: 15 | Q5: 16 | R5: 17 | S5: 18 | T5: 19 | U5: 20 | V5: Summe Inventar [kg] | Y5: Mittlere Konz. (MW) [µg/L] | Z5: Inventar (gelöst) [kg] | AA5: Inventar (sorbiert) [kg]
A6: Bezeichnung | B6: GWM 23-12 | C6: P7 | D6: GWM 12-05 | E6: GWM 22-08 | F6: GWM 10 | G6: GWM 13-05 | H6: GWM 24-14 | I6: GWM 27-14 | J6: GWM 28-14 | K6: GWM 16-06 | L6: GWM 29-14 | M6: GWM 25-14 | N6: GWM 26-14 | O6: GWM 11-05 | P6: GWM 15-06 | Q6: GWM 14-06
A7: Leichtflüchtige chlorierte Kohlenwasserstoffe (LCKW)
A8: Tetrachlorethen | B8: 2310 | C8: 404 | D8: 466 | E8: 1770 | F8: 44 | G8: 279 | H8: 5130 | I8: 983 | J8: 2060 | K8: 549 | L8: 40 | M8: 1840 | N8: 1060 | O8: 4750 | P8: 163 | Q8: 834 | V8: =(Z8+AA8)*$K$3 -> 316.705307 | Y8: =IFERROR(AVERAGE($B8:$U8),0) -> 1417.625 | Z8: =$Z$3*Y8 -> 3.418801155 | AA8: =$AA$3*Y8*Stoffdatenbank!$J6 -> 28.25172954
A9: Trichlorethen | B9: 31 | C9: 12 | D9: 9 | E9: 20 | F9: 1 | G9: 22 | H9: 529 | I9: 10 | J9: 25 | K9: 6 | L9: 1 | M9: 18 | N9: 9 | O9: 41 | P9: 2 | Q9: 9 | V9: =(Z9+AA9)*$K$3 -> 4.473814866 | Y9: =IFERROR(AVERAGE($B9:$U9),0) -> 46.5625 | Z9: =$Z$3*Y9 -> 0.1122919875 | AA9: =$AA$3*Y9*Stoffdatenbank!$J7 -> 0.3350894991
A10: cis-1,2-Dichlorethen | B10: 174 | C10: 34 | D10: 56 | E10: 72 | F10: 6 | G10: 34 | H10: 1267 | I10: 26 | J10: 48 | K10: 8 | L10: 1 | M10: 51 | N10: 34 | O10: 150 | P10: 5 | Q10: 20 | V10: 6.429110231 | Y10: 124.125 | Z10: =$Z$3*Y10 -> 0.299344815 | AA10: =$AA$3*Y10*Stoffdatenbank!$J8 -> 0.3435662081
A11: trans-1,2-Dichlorethen | B11: 1 | C11: 1 | H11: 6 | O11: 1 | V11: 0.128995335 | Y11: 2.25 | Z11: 0.00542619 | AA11: =$AA$3*Y11*Stoffdatenbank!$J9 -> 0.0074733435
A12: 1,1-Dichlorethen | H12: 3 | V12: 0.1894481889 | Y12: 3 | Z12: 0.00723492 | AA12: =$AA$3*Y12*Stoffdatenbank!$J10 -> 0.01170989889
A13: Vinylchlorid | B13: 3 | H13: 113 | O13: 4 | V13: 2.2932504 | Y13: 40 | Z13: 0.0964656 | AA13: =$AA$3*Y13*Stoffdatenbank!$J11 -> 0.13285944
A14: Tetrachlormethan | V14: 0 | Y14: 0 | Z14: 0 | AA14: =$AA$3*Y14*Stoffdatenbank!$J12 -> 0
A15: Trichlormethan | V15: 0 | Y15: 0 | Z15: 0 | AA15: =$AA$3*Y15*Stoffdatenbank!$J13 -> 0
A16: Dichlormethan | V16: 0 | Y16: =IFERROR(AVERAGE($B16:$U16),0) -> 0 | Z16: 0 | AA16: =$AA$3*Y16*Stoffdatenbank!$J14 -> 0
A17: 1,1,1-Trichlorethan | V17: 0 | Y17: 0 | Z17: 0 | AA17: =$AA$3*Y17*Stoffdatenbank!$J15 -> 0
A18: 1,1,2-Trichlorethan | V18: 0 | Y18: 0 | Z18: 0 | AA18: =$AA$3*Y18*Stoffdatenbank!$J16 -> 0
A19: 1,1-Dichlorethan | V19: 0 | Y19: 0 | Z19: 0 | AA19: =$AA$3*Y19*Stoffdatenbank!$J17 -> 0
A20: 1,2-Dichlorethan | V20: =(Z20+AA20)*$K$3 -> 0 | Y20: 0 | Z20: 0 | AA20: =$AA$3*Y20*Stoffdatenbank!$J18 -> 0
A21: LCKW | B21: =IF(SUM(B8:B20)>0,SUM(B8:B20),"") -> 2519 | C21: =IF(SUM(C8:C20)>0,SUM(C8:C20),"") -> 451 | D21: 531 | E21: 1862 | F21: 51 | G21: 335 | H21: 7048 | I21: 1019 | J21: 2133 | K21: 563 | L21: 42 | M21: 1909 | N21: 1103 | O21: 4946 | P21: 170 | Q21: 863 | V21: =SUM(V8:V20) -> 330.219926 | AA21: =SUM(AA8:AA20) -> 29.08242793
A22: (Mono)aromatische Kohlenwasserstoffe (AKW)
A23: Benzol | V23: =(Z23+AA23)*$K$3 -> 0 | Y23: =IFERROR(AVERAGE($B23:$U23),0) -> 0 | Z23: =$Z$3*Y23 -> 0 | AA23: =$AA$3*Y23*Stoffdatenbank!$J20 -> 0
A24: Toluol | V24: =(Z24+AA24)*$K$3 -> 0 | Y24: 0 | Z24: 0 | AA24: =$AA$3*Y24*Stoffdatenbank!$J21 -> 0
A25: Ethylbenzol | V25: 0 | Y25: 0 | Z25: 0 | AA25: =$AA$3*Y25*Stoffdatenbank!$J22 -> 0
A26: o-Xylol | V26: 0 | Y26: 0 | Z26: 0 | AA26: =$AA$3*Y26*Stoffdatenbank!$J23 -> 0
A27: m-Xylol | V27: 0 | Y27: 0 | Z27: 0 | AA27: =$AA$3*Y27*Stoffdatenbank!$J24 -> 0
A28: p-Xylol | V28: 0 | Y28: 0 | Z28: 0 | AA28: =$AA$3*Y28*Stoffdatenbank!$J25 -> 0
A29: n-Propylbenzol | V29: 0 | Y29: 0 | Z29: 0 | AA29: =$AA$3*Y29*Stoffdatenbank!$J26 -> 0
A30: Isopropylbenzol | V30: 0 | Y30: 0 | Z30: 0 | AA30: =$AA$3*Y30*Stoffdatenbank!$J27 -> 0
A31: o-Ethyltoluol | V31: 0 | Y31: 0 | Z31: 0 | AA31: =$AA$3*Y31*Stoffdatenbank!$J28 -> 0
A32: m-Ethyltoluol | V32: 0 | Y32: 0 | Z32: 0 | AA32: =$AA$3*Y32*Stoffdatenbank!$J29 -> 0
A33: p-Ethyltoluol | V33: 0 | Y33: 0 | Z33: 0 | AA33: =$AA$3*Y33*Stoffdatenbank!$J30 -> 0
A34: 1,2-Diethylbenzol | V34: 0 | Y34: 0 | Z34: 0 | AA34: =$AA$3*Y34*Stoffdatenbank!$J31 -> 0
A35: 1,3-Diethylbenzol | V35: 0 | Y35: 0 | Z35: 0 | AA35: =$AA$3*Y35*Stoffdatenbank!$J32 -> 0
A36: 1,4-Diethylbenzol | V36: 0 | Y36: 0 | Z36: 0 | AA36: =$AA$3*Y36*Stoffdatenbank!$J33 -> 0
A37: 1,2,3-Trimethylbenzol | V37: 0 | Y37: 0 | Z37: 0 | AA37: =$AA$3*Y37*Stoffdatenbank!$J34 -> 0
A38: 1,2,4-Trimethylbenzol | V38: 0 | Y38: 0 | Z38: 0 | AA38: =$AA$3*Y38*Stoffdatenbank!$J35 -> 0
A39: 1,3,5-Trimethylbenzol | V39: 0 | Y39: 0 | Z39: 0 | AA39: =$AA$3*Y39*Stoffdatenbank!$J36 -> 0
A40: BTEX | B40: =IF(SUM(B23:B28)>0,SUM(B23:B28),"") ->  | C40: =IF(SUM(C23:C28)>0,SUM(C23:C28),"") ->  | V40: =SUM(V23:V28) -> 0
A41: AKW | B41: =IF(SUM(B23:B39)>0,SUM(B23:B39),"") ->  | C41: =IF(SUM(C23:C39)>0,SUM(C23:C39),"") ->  | V41: =SUM(V23:V39) -> 0
A42: n-Alkane
A43: n-Pentan | V43: =(Z43+AA43)*$K$3 -> 0 | Y43: =IFERROR(AVERAGE($B43:$U43),0) -> 0 | Z43: =$Z$3*Y43 -> 0 | AA43: =$AA$3*Y43*Stoffdatenbank!$J38 -> 0
A44: n-Hexan | V44: 0 | Y44: 0 | Z44: 0 | AA44: =$AA$3*Y44*Stoffdatenbank!$J39 -> 0
A45: n-Heptan | V45: 0 | Y45: 0 | Z45: 0 | AA45: =$AA$3*Y45*Stoffdatenbank!$J40 -> 0
A46: n-Octan | V46: 0 | Y46: 0 | Z46: 0 | AA46: =$AA$3*Y46*Stoffdatenbank!$J41 -> 0
A47: n-Nonan | V47: 0 | Y47: 0 | Z47: 0 | AA47: =$AA$3*Y47*Stoffdatenbank!$J42 -> 0
A48: n-Decan | V48: 0 | Y48: 0 | Z48: 0 | AA48: =$AA$3*Y48*Stoffdatenbank!$J43 -> 0
A49: n-Alkane | B49: =IF(SUM(B43:B48)>0,SUM(B43:B48),"") ->  | C49: =IF(SUM(C43:C48)>0,SUM(C43:C48),"") ->  | H49: =IF(SUM(H43:H48)>0,SUM(H43:H48),"") ->  | T49: =IF(SUM(T43:T48)>0,SUM(T43:T48),"") ->  | V49: =SUM(V43:V48) -> 0
A50: Oxigenate
A51: MTBE (Methyl-tert-butylether) | V51: =(Z51+AA51)*$K$3 -> 0 | Y51: =IFERROR(AVERAGE($B51:$U51),0) -> 0 | Z51: =$Z$3*Y51 -> 0 | AA51: =$AA$3*Y51*Stoffdatenbank!$J45 -> 0
A52: ETBE (Ethyl-tert-butylether) | V52: 0 | Y52: 0 | Z52: 0 | AA52: =$AA$3*Y52*Stoffdatenbank!$J46 -> 0
A53: TBA (tert-Butylalkohol) | V53: 0 | Y53: 0 | Z53: 0 | AA53: =$AA$3*Y53*Stoffdatenbank!$J47 -> 0
A54: Oxigenate | B54: =IF(SUM(B51:B53)>0,SUM(B51:B53),"") ->  | T54: =IF(SUM(T51:T53)>0,SUM(T51:T53),"") ->  | U54: =IF(SUM(U51:U53)>0,SUM(U51:U53),"") ->  | V54: =SUM(V51:V53) -> 0
A56: [mg/m²]
O57: [mg/m²]

Sheet Bodencharakterisierung (hidden)
B2: Parameter | D2: Einheit | E2: Hauptbodenart | F2: Nebenbodenart | M2: Parameter | N2: Einheit | O2: Datenbank
O3: Grobsand | P3: Mittelsand | Q3: Feinsand | R3: Schluff | S3: Ton
B4: Relativer Anteil (geschätzt) | D4: % | E4: 95 | F4: =100-E4 -> 5 | I4: =O4 -> Grobsand | M4: Parameter | N4: Einheit | O4: Grobsand | P4: Mittelsand | Q4: Feinsand | R4: Schluff | S4: Ton
B5: Wassersättigung (ungesättigter Boden) | C5: SW | D5: - | E5: 0.26 | F5: 0.26 | I5: =P4 -> Mittelsand | M5: Wassersättigung (ungesättigter Boden) | N5: - | O5: 0.26 | P5: 0.26 | Q5: 0.26 | R5: 0.27 | S5: 0.29
B6: Durchlässigkeitsbeiwert (kf) | C6: kf | D6: m/s | E6: 0.0001 | F6: 0.0002 | H6: =F6/E6 -> 2 | I6: =Q4 -> Feinsand | M6: Durchlässigkeitsbeiwert (kf) | N6: m/s | O6: 0.0002 | P6: 0.000275 | Q6: 1e-05 | R6: 1e-07 | S6: 1e-11
B7: Nutzbare Porosität (neff) | C7: neff | D7: - | E7: 0.2 | F7: 0.2 | I7: =R4 -> Schluff | J7: Injizierbarkeit von Schluffböden ist nicht gegeben - injizierte Lösung verteilt sich nicht gleichmäßig und Desorption läuft nur viel langsamer ab. | M7: Nutzbare Porosität (neff) | N7: - | O7: 0.2 | P7: 0.125 | Q7: 0.1 | R7: 0.075 | S7: 0.035
B8: Gesamtporosität (Hohlraumvolumen) | C8: n | D8: - | E8: 0.33 | F8: 0.33 | I8: =S4 -> Ton | J8: Injizierbarkeit von Tonböden ist nicht gegeben - injizierte Lösung verteilt sich nicht gleichmäßig und Desorption läuft nur viel langsamer ab. | M8: Gesamtporosität (Hohlraumvolumen) | N8: - | O8: 0.33 | P8: 0.33 | Q8: 0.33 | R8: 0.34 | S8: 0.35
B9: Organische Kohlenstoffgehalt | C9: fOC | D9: - | E9: 0.005 | F9: 0.01 | M9: Organische Kohlenstoffgehalt | N9: - | O9: 0.01 | P9: 0.01 | Q9: 0.01 | R9: 0.01 | S9: 0.01
B10: Korndichte | C10: ρs | D10: kg/m³ | E10: 2650 | F10: 2650 | M10: Korndichte | N10: kg/m³ | O10: 2650 | P10: 2650 | Q10: 2650 | R10: 2690 | S10: 2700
B11: Lagerungsdichte | C11: d | D11: kg/L | E11: 1.515 | F11: 1.515 | M11: Schüttdichte | N11: kg/dm³ | O11: 1.515 | P11: 1.515 | Q11: 1.515 | R11: 1.43 | S11: 1.64
B12: Anteil (Bodenkorn) | C12: nM | D12: kg/m³ | E12: 1015.05 | F12: 1015.05 | M12: Anteil (Bodenkorn) | N12: kg/m³ | O12: =1000*(1-O8)*O11 -> 1015.05 | P12: =1000*(1-P8)*P11 -> 1015.05 | Q12: =1000*(1-Q8)*Q11 -> 1015.05 | R12: =1000*(1-R8)*R11 -> 943.8 | S12: =1000*(1-S8)*S11 -> 1066
B13: Mittlerer Kornradius (d50) | C13: d50 | D13: m | E13: 0.000415 | F13: 0.001315 | M13: Mittlerer Kornradius (d50) | N13: m | O13: 0.001315 | P13: 0.000415 | Q13: 0.0001315 | R13: 3.25e-05 | S13: 2e-06
B14: Tortouistät in der Wasserphase (tw) | C14: tw | D14: - | E14: 8 | F14: 5 | M14: Tortuoistät in der Wasserphase (τw) | N14: - | O14: =1/O7 -> 5 | P14: =1/P7 -> 8 | Q14: =1/Q7 -> 10 | R14: =1/R7 -> 13.33333333 | S14: =1/S7 -> 28.57142857
B15: Wärmeleitfähigkeit (l) | C15: l | D15: W/(m·K) | E15: 3.34 | F15: 3.72 | M15: Wärmeleitfähigkeit (λ) | N15: W/(m·K) | O15: 3.72 | P15: 3.34 | Q15: 2.75 | R15: 1.5 | S15: 1.5
B16: Temperaturleitfähigkeit (a) | C16: a | D16: m²/s | E16: 0.001336 | F16: 0.001488 | M16: Temperaturleitfähigkeit (α) | N16: m²/s | O16: =O15/O18 -> 0.001488 | P16: =P15/P18 -> 0.001336 | Q16: =Q15/Q18 -> 0.0011 | R16: =R15/R18 -> 0.000625 | S16: =S15/S18 -> 0.000625
B17: Untergrundtemperatur (T0) | C17: T0 | D17: K | E17: 283.15 | F17: 283.15 | M17: Untergrundtemperatur (T0) | N17: K | O17: 283.15 | P17: 283.15 | Q17: 283.15 | R17: 283.15 | S17: 283.15
B18: Spezifische Wärmekapazität (Bodenkorn) | C18: cM | D18: kJ/(kg·K) | E18: 2500 | F18: 2500 | M18: Spezifische Wärmekapazität | N18: kJ/(kg·K) | O18: 2500 | P18: 2500 | Q18: 2500 | R18: 2400 | S18: 2400

Sheet Grundwassercharakterisierung (hidden)
B2: Parameter | C2: Einheit | D2: Wert
B3: Mittlerer hydraulischer Gradient (I) | C3: % | D3: 0.1
B4: Grundwasserabstandsgeschwindigkeit (va) | C4: m/d | D4: =Bodencharakterisierung!E6*(Grundwassercharakterisierung!D3/100)/Bodencharakterisierung!E7*3600*24 -> 0.0432
B5: Redoxmilieu (charakteristische Mittelwerte)
B6: pH-Wert | C6: -- | D6: 6.6 | G6: 7
B7: Redoxspannung (korr.) | C7: mV | D7: 2.3 | G7: 200
B8: Temperatur | C8: °C | D8: 16 | G8: 10
B9: Gelöster Sauerstoff | C9: mg/L | D9: 3.98 | G9: 3
B10: Nitrat | C10: mg/L | D10: 6.8 | G10: 20
B11: Mangan (gelöst) | C11: mg/L | D11: 1.8 | G11: 0
B12: Eisen (gelöst) | C12: mg/L | D12: 0.04 | G12: 0
B13: Sulfat | C13: mg/L | D13: 33.3 | G13: 200
B14: Methan | C14: mg/L | D14: 0 | G14: 0
B15: DOC | C15: mg/L | D15: 1.4 | G15: 2

Sheet Sanierungsdesign (hidden)
B2: Parameter | D2: Einheit | E2: Wert | Q2: NOD | S2: Intraparticle Parameters
A3: Sanierungszielwert | Q3: Permang. | R3: Persulf. | S3: fOC(P) | T3: ρ(P) | U3: n(P) | V3: tf(P)
B4: Sanierungszielwert | C4: LCKW | D4: µg/L | E4: 450 | K4: 20 | L4: Persulfat | M4: LCKW | P4: Bodenart | Q4: g MnO4-/kg | R4: g S2O8-2/kg | S4: - | T4: kg/m³ | U4: - | V4: -
B5: Sanierungszielwert | C5: AKW | D5: µg/L | K5: 50 | L5: Permanganat | M5: AKW | P5: Grobsand | Q5: 0.1 | R5: 0.1 | S5: 0.0041 | T5: 2709 | U5: 0.011 | V5: 90.90909091
B6: Sanierungszielwert | C6: Oxigenate | D6: µg/L | K6: 100 | M6: n-Alkane | P6: Mittelsand | Q6: 1 | R6: 0.1 | S6: 0.1 | T6: 2709 | U6: 0.011 | V6: 90.90909091
B7: Sanierungszielwert | C7: n-Alkane | D7: µg/L | K7: 200 | M7: Oxigenate | P7: Feinsand | Q7: 7 | R7: 1 | S7: 0.0041 | T7: 2709 | U7: 0.011 | V7: 90.90909091
A8: Ausführungsdesign | M8: Bewertungsrelevanter Schadstoff | P8: Schluff | Q8: 30 | R8: 5 | S8: 0.0041 | T8: 2709 | U8: 0.011 | V8: 90.90909091
B9: Sanierungsfläche | D9: m² | E9: =Schadstoffbelastung!J6 -> 2436 | P9: Ton | Q9: 50 | R9: 5 | S9: 0.0041 | T9: 2709 | U9: 0.011 | V9: 90.90909091
B10: Filterstrecke (Mächtigkeit Belastung) | D10: m | E10: =Schadstoffbelastung!J9 -> 3
B11: Anzahl der Injektionspegel | D11: -- | E11: 11 | K11: 5
B12: ROI | D12: m | E12: =SQRT((E9/E11)/PI()) -> 8.395902046
B13: Injektionsvolumen | D13: m² | E13: =PI()*E12^2*E10*Bodencharakterisierung!E7 -> 132.8727273
D14: g/kg OS | E14: 2 | K14: 2
B15: Bewertungsrelevanter Schadstoff | D15: -- | E15: Permanganat
B16: Bewertungsrelevanter Schadstoff | D16: -- | E16: LCKW
B17: Konzentration Oxidationsmittel | D17: g/L | E17: 20 | K17: 10

Sheet Schadstoffbelastung (hidden)
B2: Schadstoff | D2: Inventar [kg] | G2: Geometrie des Schadensherdes | I2: Einheit | J2: Wert | L2: Schadstoffstatistik | N2: Einheit | O2: LCKW | P2: AKW | Q2: =Stoffdatenbank!A37 -> n-Alkane | R2: Oxigenate | U2: Mittl. Konz. (GW) [µg/L] | V2: Mittl. Konz. (GW) [µmol/L] | W2: Ci [µg/L] | X2: Grenzkonz. Boden [mg/kg] | Y2: Mittlere Konz. Boden [mg/kg] | Z2: Residualphase [mg/kg]
R3: FALSE | S3: FALSE
B4: Tetrachlorethen | C4: PCE | D4: =IF($S$3,'Schadstoffkonzentrationen Boden'!Z27,'Schadstoffkonzentrationen GW'!V8) -> 316.705307 | G4: Mittlere Länge (Schadensherd) | I4: m | J4: 42 | L4: Minimum | N4: mg/kg OS | O4: =IF($S$3,'Schadstoffkonzentrationen Boden'!$W$93,"") ->  | P4: =IF($S$3,'Schadstoffkonzentrationen Boden'!$W$113,"") ->  | Q4: =IF($S$3,'Schadstoffkonzentrationen Boden'!$W$121,"") ->  | R4: =IF($S$3,'Schadstoffkonzentrationen Boden'!$W$126,"") ->  | T4: PCE | U4: ='Schadstoffkonzentrationen GW'!Y8 -> 1417.625 | V4: =IFERROR(U4/Stoffdatenbank!R6,0) -> 8.539909639 | W4: =IFERROR(Stoffdatenbank!N6*1000*(Schadstoffbelastung!V4/(Schadstoffbelastung!V$17)),0) -> 125771.4936 | X4: =W4/1000*Bodencharakterisierung!$E$9*Stoffdatenbank!J6 -> 226.3886884 | Y4: =IFERROR(D4*1000/$J$12,0) -> 28.60514604 | Z4: =MAX(0,Y4-X4) -> 0 | AB4: =D4/VLOOKUP(Schadstoffbelastung!B4,Stoffdatenbank!$A$6:$S$47,17,FALSE)/1000 -> 0.1950155831
B5: Trichlorethen | C5: TCE | D5: =IF($S$3,'Schadstoffkonzentrationen Boden'!Z28,'Schadstoffkonzentrationen GW'!V9) -> 4.473814866 | G5: Mittlere Breite (Schadensherd) | I5: m | J5: 58 | L5: Maximum | N5: mg/kg OS | O5: =IF($S$3,'Schadstoffkonzentrationen Boden'!$X$93,"") ->  | P5: =IF($S$3,'Schadstoffkonzentrationen Boden'!$X$113,"") ->  | Q5: =IF($S$3,'Schadstoffkonzentrationen Boden'!$X$121,"") ->  | R5: =IF($S$3,'Schadstoffkonzentrationen Boden'!$X$126,"") ->  | T5: TCE | U5: ='Schadstoffkonzentrationen GW'!Y9 -> 46.5625 | V5: =IFERROR(U5/Stoffdatenbank!R7,0) -> 0.3554389313 | W5: =IFERROR(Stoffdatenbank!N7*1000*(Schadstoffbelastung!V5/(Schadstoffbelastung!V$17)),0) -> 32717.03621 | X5: =W5/1000*Bodencharakterisierung!$E$9*Stoffdatenbank!J7 -> 21.26607354 | Y5: =IFERROR(D5*1000/$J$12,0) -> 0.4040795173 | Z5: =MAX(0,Y5-X5) -> 0 | AB5: =D5/VLOOKUP(Schadstoffbelastung!B5,Stoffdatenbank!$A$6:$S$47,17,FALSE)/1000 -> 0.003055467058
B6: cis-1,2-Dichlorethen | C6: cDCE | D6: =IF($S$3,'Schadstoffkonzentrationen Boden'!Z29,'Schadstoffkonzentrationen GW'!V10) -> 6.429110231 | G6: Fläche der Belastung | I6: m² | J6: =J4*J5 -> 2436 | L6: Median | N6: mg/kg OS | O6: =IF($S$3,'Schadstoffkonzentrationen Boden'!$Y$93,"") ->  | P6: =IF($S$3,'Schadstoffkonzentrationen Boden'!$Y$113,"") ->  | Q6: =IF($S$3,'Schadstoffkonzentrationen Boden'!$Y$121,"") ->  | R6: =IF($S$3,'Schadstoffkonzentrationen Boden'!$Y$126,"") ->  | T6: cDCE | U6: ='Schadstoffkonzentrationen GW'!Y10 -> 124.125 | V6: =IFERROR(U6/Stoffdatenbank!R8,0) -> 1.279639175 | W6: =IFERROR(Stoffdatenbank!N8*1000*(Schadstoffbelastung!V6/(Schadstoffbelastung!V$17)),0) -> 412253.6712 | X6: =W6/1000*Bodencharakterisierung!$E$9*Stoffdatenbank!J8 -> 103.0634178 | Y6: 0.5806837871 | Z6: 0 | AB6: =D6/VLOOKUP(Schadstoffbelastung!B6,Stoffdatenbank!$A$6:$S$47,17,FALSE)/1000 -> 0.005008265351
B7: trans-1,2-Dichlorethen | C7: tDCE | D7: =IF($S$3,'Schadstoffkonzentrationen Boden'!Z30,'Schadstoffkonzentrationen GW'!V11) -> 0.128995335 | G7: Oberkante der Belastung | I7: m u. GOK | J7: 3 | L7: Mittlere Konzentration (arithm.) | N7: mg/kg OS | O7: =IF($S$3,'Schadstoffkonzentrationen Boden'!$Z$93,"") ->  | P7: =IF($S$3,'Schadstoffkonzentrationen Boden'!$Z$113,"") ->  | Q7: =IF($S$3,'Schadstoffkonzentrationen Boden'!$Z$121,"") ->  | R7: =IF($S$3,'Schadstoffkonzentrationen Boden'!$Z$126,"") ->  | T7: tDCE | U7: ='Schadstoffkonzentrationen GW'!Y11 -> 2.25 | V7: =IFERROR(U7/Stoffdatenbank!R9,0) -> 0.02319587629 | W7: =IFERROR(Stoffdatenbank!N9*1000*(Schadstoffbelastung!V7/(Schadstoffbelastung!V$17)),0) -> 13451.17719 | X7: =W7/1000*Bodencharakterisierung!$E$9*Stoffdatenbank!J9 -> 4.035353156 | Y7: 0.0116509901 | Z7: 0 | AB7: =D7/VLOOKUP(Schadstoffbelastung!B7,Stoffdatenbank!$A$6:$S$47,17,FALSE)/1000 -> 0.0001026624234
B8: 1,1-Dichlorethen | C8: 11DCE | D8: =IF($S$3,'Schadstoffkonzentrationen Boden'!Z31,'Schadstoffkonzentrationen GW'!V12) -> 0.1894481889 | G8: Unterkante der Belastung | I8: m u. GOK | J8: 6 | L8: Standardabweichung | N8: mg/kg OS | O8: =IF($S$3,'Schadstoffkonzentrationen Boden'!$AA$93,"") ->  | P8: =IF($S$3,'Schadstoffkonzentrationen Boden'!$AA$113,"") ->  | Q8: =IF($S$3,'Schadstoffkonzentrationen Boden'!$AA$121,"") ->  | R8: =IF($S$3,'Schadstoffkonzentrationen Boden'!$AA$126,"") ->  | T8: 11DCE | U8: ='Schadstoffkonzentrationen GW'!Y12 -> 3 | V8: =IFERROR(U8/Stoffdatenbank!R10,0) -> 0.03092783505 | W8: =IFERROR(Stoffdatenbank!N10*1000*(Schadstoffbelastung!V8/(Schadstoffbelastung!V$17)),0) -> 7117.024966 | X8: =W8/1000*Bodencharakterisierung!$E$9*Stoffdatenbank!J10 -> 2.509107152 | Y8: 0.01711115347 | Z8: 0 | AB8: =D8/VLOOKUP(Schadstoffbelastung!B8,Stoffdatenbank!$A$6:$S$47,17,FALSE)/1000 -> 0.000155540385
B9: Vinylchlorid | C9: VC | D9: =IF($S$3,'Schadstoffkonzentrationen Boden'!Z32,'Schadstoffkonzentrationen GW'!V13) -> 2.2932504 | G9: Mittlere Mächtigkeit (Schadensherd) | I9: m | J9: =J8-J7 -> 3 | L9: MW + 2 s | N9: mg/kg OS | O9: =IF($S$3,'Schadstoffkonzentrationen Boden'!$AB$93,"") ->  | P9: =IF($S$3,'Schadstoffkonzentrationen Boden'!$AB$113,"") ->  | Q9: =IF($S$3,'Schadstoffkonzentrationen Boden'!$AB$121,"") ->  | R9: =IF($S$3,'Schadstoffkonzentrationen Boden'!$AB$126,"") ->  | T9: VC | U9: ='Schadstoffkonzentrationen GW'!Y13 -> 40 | V9: =IFERROR(U9/Stoffdatenbank!R11,0) -> 0.6349206349 | W9: =IFERROR(Stoffdatenbank!N11*1000*(Schadstoffbelastung!V9/(Schadstoffbelastung!V$17)),0) -> 64286.69324 | X9: =W9/1000*Bodencharakterisierung!$E$9*Stoffdatenbank!J11 -> 19.28600797 | Y9: 0.2071287129 | Z9: 0 | AB9: =D9/VLOOKUP(Schadstoffbelastung!B9,Stoffdatenbank!$A$6:$S$47,17,FALSE)/1000 -> 0.002514253262
B10: Tetrachlormethan | C10: CT | D10: =IF($S$3,'Schadstoffkonzentrationen Boden'!Z33,'Schadstoffkonzentrationen GW'!V14) -> 0 | G10: Bodenlagerungsdichte | I10: kg/L | J10: =Bodencharakterisierung!E11 -> 1.515 | L10: Schadstoffinventar (mittelwertbezogen) | N10: kg | O10: =IF($S$3,'Schadstoffkonzentrationen Boden'!$AC$93,"") ->  | P10: =IF($S$3,'Schadstoffkonzentrationen Boden'!$AC$113,"") ->  | Q10: =IF($S$3,'Schadstoffkonzentrationen Boden'!$AC$121,"") ->  | R10: =IF($S$3,'Schadstoffkonzentrationen Boden'!$AC$126,"") ->  | T10: CT | U10: ='Schadstoffkonzentrationen GW'!Y14 -> 0 | V10: =IFERROR(U10/Stoffdatenbank!R12,0) -> 0 | W10: =IFERROR(Stoffdatenbank!N12*1000*(Schadstoffbelastung!V10/(Schadstoffbelastung!V$17)),0) -> 0 | X10: =W10/1000*Bodencharakterisierung!$E$9*Stoffdatenbank!J12 -> 0 | Y10: 0 | Z10: 0 | AB10: =D10/VLOOKUP(Schadstoffbelastung!B10,Stoffdatenbank!$A$6:$S$47,17,FALSE)/1000 -> 0
B11: Trichlormethan | C11: CF | D11: =IF($S$3,'Schadstoffkonzentrationen Boden'!Z34,'Schadstoffkonzentrationen GW'!V15) -> 0 | G11: Volumen kontaminierter Boden | I11: m³ | J11: =J9*J6 -> 7308 | L11: Schadstoffinventar (flächengewichtet) | N11: kg | O11: =D17 -> 330.219926 | P11: =D35 -> 0 | Q11: =D42 -> 0 | R11: =D46 -> 0 | T11: CF | U11: ='Schadstoffkonzentrationen GW'!Y15 -> 0 | V11: =IFERROR(U11/Stoffdatenbank!R13,0) -> 0 | W11: =IFERROR(Stoffdatenbank!N13*1000*(Schadstoffbelastung!V11/(Schadstoffbelastung!V$17)),0) -> 0 | X11: =W11/1000*Bodencharakterisierung!$E$9*Stoffdatenbank!J13 -> 0 | Y11: 0 | Z11: 0 | AB11: =D11/VLOOKUP(Schadstoffbelastung!B11,Stoffdatenbank!$A$6:$S$47,17,FALSE)/1000 -> 0
B12: Dichlormethan | C12: DCM | D12: =IF($S$3,'Schadstoffkonzentrationen Boden'!Z35,'Schadstoffkonzentrationen GW'!V16) -> 0 | I12: t | J12: =J11*J10 -> 11071.62 | L12: Schadstoffinventar (residuale Phase) | N12: mg/kg | O12: =Z17 -> 0 | P12: =Z35 -> 0 | Q12: =Z42 -> 0 | R12: =Z46 -> 0 | T12: DCM | U12: ='Schadstoffkonzentrationen GW'!Y16 -> 0 | V12: =IFERROR(U12/Stoffdatenbank!R14,0) -> 0 | W12: =IFERROR(Stoffdatenbank!N14*1000*(Schadstoffbelastung!V12/(Schadstoffbelastung!V$17)),0) -> 0 | X12: =W12/1000*Bodencharakterisierung!$E$9*Stoffdatenbank!J14 -> 0 | Y12: 0 | Z12: 0 | AB12: =D12/VLOOKUP(Schadstoffbelastung!B12,Stoffdatenbank!$A$6:$S$47,17,FALSE)/1000 -> 0
B13: 1,1,1-Trichlorethan | C13: 111TCA | D13: =IF($S$3,'Schadstoffkonzentrationen Boden'!Z36,'Schadstoffkonzentrationen GW'!V17) -> 0 | G13: Grundwasserflurabstand | I13: m u. GOK | J13: 3 | T13: 111TCA | U13: ='Schadstoffkonzentrationen GW'!Y17 -> 0 | V13: =IFERROR(U13/Stoffdatenbank!R15,0) -> 0 | W13: =IFERROR(Stoffdatenbank!N15*1000*(Schadstoffbelastung!V13/(Schadstoffbelastung!V$17)),0) -> 0 | X13: =W13/1000*Bodencharakterisierung!$E$9*Stoffdatenbank!J15 -> 0 | Y13: 0 | Z13: 0 | AB13: =D13/VLOOKUP(Schadstoffbelastung!B13,Stoffdatenbank!$A$6:$S$47,17,FALSE)/1000 -> 0
B14: 1,1,2-Trichlorethan | C14: 112TCA | D14: =IF($S$3,'Schadstoffkonzentrationen Boden'!Z37,'Schadstoffkonzentrationen GW'!V18) -> 0 | T14: 112TCA | U14: ='Schadstoffkonzentrationen GW'!Y18 -> 0 | V14: =IFERROR(U14/Stoffdatenbank!R16,0) -> 0 | W14: =IFERROR(Stoffdatenbank!N16*1000*(Schadstoffbelastung!V14/(Schadstoffbelastung!V$17)),0) -> 0 | X14: =W14/1000*Bodencharakterisierung!$E$9*Stoffdatenbank!J16 -> 0 | Y14: 0 | Z14: 0 | AB14: =D14/VLOOKUP(Schadstoffbelastung!B14,Stoffdatenbank!$A$6:$S$47,17,FALSE)/1000 -> 0
B15: 1,1-Dichlorethan | C15: 11DCA | D15: =IF($S$3,'Schadstoffkonzentrationen Boden'!Z38,'Schadstoffkonzentrationen GW'!V19) -> 0 | T15: 11DCA | U15: ='Schadstoffkonzentrationen GW'!Y19 -> 0 | V15: =IFERROR(U15/Stoffdatenbank!R17,0) -> 0 | W15: =IFERROR(Stoffdatenbank!N17*1000*(Schadstoffbelastung!V15/(Schadstoffbelastung!V$17)),0) -> 0 | X15: =W15/1000*Bodencharakterisierung!$E$9*Stoffdatenbank!J17 -> 0 | Y15: 0 | Z15: 0 | AB15: =D15/VLOOKUP(Schadstoffbelastung!B15,Stoffdatenbank!$A$6:$S$47,17,FALSE)/1000 -> 0
B16: 1,2-Dichlorethan | C16: 12DCA | D16: =IF($S$3,'Schadstoffkonzentrationen Boden'!Z39,'Schadstoffkonzentrationen GW'!V20) -> 0 | T16: 12DCA | U16: ='Schadstoffkonzentrationen GW'!Y20 -> 0 | V16: =IFERROR(U16/Stoffdatenbank!R18,0) -> 0 | W16: =IFERROR(Stoffdatenbank!N18*1000*(Schadstoffbelastung!V16/(Schadstoffbelastung!V$17)),0) -> 0 | X16: =W16/1000*Bodencharakterisierung!$E$9*Stoffdatenbank!J18 -> 0 | Y16: =IFERROR(D16*1000/$J$12,0) -> 0 | Z16: 0 | AB16: =D16/VLOOKUP(Schadstoffbelastung!B16,Stoffdatenbank!$A$6:$S$47,17,FALSE)/1000 -> 0
B17: LCKW | D17: =SUM(D4:D16) -> 330.219926 | T17: LCKW | U17: =SUM(U4:U16) -> 1633.5625 | V17: =SUM(V4:V16) -> 10.86403209 | W17: =SUM(W4:W16) -> 655597.0963 | X17: =SUM(X4:X16) -> 376.548648 | Y17: =SUM(Y4:Y16) -> 29.8258002 | Z17: 0
B18: Benzol | C18: B | D18: =IF($S$3,'Schadstoffkonzentrationen Boden'!Z42,'Schadstoffkonzentrationen GW'!V23) -> 0 | R18: =(1.24/1000)*0.4 -> 0.000496 | T18: B | U18: ='Schadstoffkonzentrationen GW'!Y19 -> 0 | V18: =IFERROR(U18/Stoffdatenbank!R20,0) -> 0 | W18: =IFERROR(Stoffdatenbank!N20*1000*(Schadstoffbelastung!V18/(Schadstoffbelastung!V$35)),0) -> 0 | X18: =W18/1000*Bodencharakterisierung!$E$9*Stoffdatenbank!J20 -> 0 | Y18: =IFERROR(D18*1000/$J$12,0) -> 0 | Z18: 0 | AB18: =D18/VLOOKUP(Schadstoffbelastung!B18,Stoffdatenbank!$A$6:$S$47,17,FALSE)/1000 -> 0
B19: Toluol | C19: T | D19: =IF($S$3,'Schadstoffkonzentrationen Boden'!Z43,'Schadstoffkonzentrationen GW'!V24) -> 0 | R19: =0.0036*1000 -> 3.6 | T19: T | U19: ='Schadstoffkonzentrationen GW'!Y20 -> 0 | V19: =IFERROR(U19/Stoffdatenbank!R21,0) -> 0 | W19: =IFERROR(Stoffdatenbank!N21*1000*(Schadstoffbelastung!V19/(Schadstoffbelastung!V$35)),0) -> 0 | X19: =W19/1000*Bodencharakterisierung!$E$9*Stoffdatenbank!J21 -> 0 | Y19: =IFERROR(D19*1000/$J$12,0) -> 0 | Z19: 0 | AB19: =D19/VLOOKUP(Schadstoffbelastung!B19,Stoffdatenbank!$A$6:$S$47,17,FALSE)/1000 -> 0
B20: Ethylbenzol | C20: ETBE | D20: =IF($S$3,'Schadstoffkonzentrationen Boden'!Z44,'Schadstoffkonzentrationen GW'!V25) -> 0 | R20: =R18/R19 -> 0.0001377777778 | T20: ETBE | U20: ='Schadstoffkonzentrationen GW'!Y21 -> 0 | V20: =IFERROR(U20/Stoffdatenbank!R22,0) -> 0 | W20: =IFERROR(Stoffdatenbank!N22*1000*(Schadstoffbelastung!V20/(Schadstoffbelastung!V$35)),0) -> 0 | X20: =W20/1000*Bodencharakterisierung!$E$9*Stoffdatenbank!J22 -> 0 | Y20: =IFERROR(D20*1000/$J$12,0) -> 0 | Z20: 0 | AB20: =D20/VLOOKUP(Schadstoffbelastung!B20,Stoffdatenbank!$A$6:$S$47,17,FALSE)/1000 -> 0
B21: o-Xylol | C21: oX | D21: =IF($S$3,'Schadstoffkonzentrationen Boden'!Z45,'Schadstoffkonzentrationen GW'!V26) -> 0 | T21: oX | U21: ='Schadstoffkonzentrationen GW'!Y22 -> 0 | V21: =IFERROR(U21/Stoffdatenbank!R23,0) -> 0 | W21: =IFERROR(Stoffdatenbank!N23*1000*(Schadstoffbelastung!V21/(Schadstoffbelastung!V$35)),0) -> 0 | X21: =W21/1000*Bodencharakterisierung!$E$9*Stoffdatenbank!J23 -> 0 | Y21: 0 | Z21: 0 | AB21: =D21/VLOOKUP(Schadstoffbelastung!B21,Stoffdatenbank!$A$6:$S$47,17,FALSE)/1000 -> 0
B22: m-Xylol | C22: mX | D22: =IF($S$3,'Schadstoffkonzentrationen Boden'!Z46,'Schadstoffkonzentrationen GW'!V27) -> 0 | T22: mX | U22: ='Schadstoffkonzentrationen GW'!Y23 -> 0 | V22: =IFERROR(U22/Stoffdatenbank!R24,0) -> 0 | W22: =IFERROR(Stoffdatenbank!N24*1000*(Schadstoffbelastung!V22/(Schadstoffbelastung!V$35)),0) -> 0 | X22: =W22/1000*Bodencharakterisierung!$E$9*Stoffdatenbank!J24 -> 0 | Y22: 0 | Z22: 0 | AB22: =D22/VLOOKUP(Schadstoffbelastung!B22,Stoffdatenbank!$A$6:$S$47,17,FALSE)/1000 -> 0
B23: p-Xylol | C23: pX | D23: =IF($S$3,'Schadstoffkonzentrationen Boden'!Z47,'Schadstoffkonzentrationen GW'!V28) -> 0 | T23: pX | U23: ='Schadstoffkonzentrationen GW'!Y24 -> 0 | V23: =IFERROR(U23/Stoffdatenbank!R25,0) -> 0 | W23: =IFERROR(Stoffdatenbank!N25*1000*(Schadstoffbelastung!V23/(Schadstoffbelastung!V$35)),0) -> 0 | X23: =W23/1000*Bodencharakterisierung!$E$9*Stoffdatenbank!J25 -> 0 | Y23: =IFERROR(D23*1000/$J$12,0) -> 0 | Z23: 0 | AB23: =D23/VLOOKUP(Schadstoffbelastung!B23,Stoffdatenbank!$A$6:$S$47,17,FALSE)/1000 -> 0
B24: n-Propylbenzol | C24: nPB | D24: =IF($S$3,'Schadstoffkonzentrationen Boden'!Z48,'Schadstoffkonzentrationen GW'!V29) -> 0 | T24: nPB | U24: ='Schadstoffkonzentrationen GW'!Y25 -> 0 | V24: =IFERROR(U24/Stoffdatenbank!R26,0) -> 0 | W24: =IFERROR(Stoffdatenbank!N26*1000*(Schadstoffbelastung!V24/(Schadstoffbelastung!V$35)),0) -> 0 | X24: =W24/1000*Bodencharakterisierung!$E$9*Stoffdatenbank!J26 -> 0 | Y24: =IFERROR(D24*1000/$J$12,0) -> 0 | Z24: 0 | AB24: =D24/VLOOKUP(Schadstoffbelastung!B24,Stoffdatenbank!$A$6:$S$47,17,FALSE)/1000 -> 0
B25: Isopropylbenzol | C25: iPB | D25: =IF($S$3,'Schadstoffkonzentrationen Boden'!Z49,'Schadstoffkonzentrationen GW'!V30) -> 0 | G25: Berechnung der Schadstoffinventare mit Daten aus .. | T25: iPB | U25: ='Schadstoffkonzentrationen GW'!Y26 -> 0 | V25: =IFERROR(U25/Stoffdatenbank!R27,0) -> 0 | W25: =IFERROR(Stoffdatenbank!N27*1000*(Schadstoffbelastung!V25/(Schadstoffbelastung!V$35)),0) -> 0 | X25: =W25/1000*Bodencharakterisierung!$E$9*Stoffdatenbank!J27 -> 0 | Y25: 0 | Z25: 0 | AB25: =D25/VLOOKUP(Schadstoffbelastung!B25,Stoffdatenbank!$A$6:$S$47,17,FALSE)/1000 -> 0
B26: o-Ethyltoluol | C26: oET | D26: =IF($S$3,'Schadstoffkonzentrationen Boden'!Z50,'Schadstoffkonzentrationen GW'!V31) -> 0 | T26: oET | U26: ='Schadstoffkonzentrationen GW'!Y27 -> 0 | V26: =IFERROR(U26/Stoffdatenbank!R28,0) -> 0 | W26: =IFERROR(Stoffdatenbank!N28*1000*(Schadstoffbelastung!V26/(Schadstoffbelastung!V$35)),0) -> 0 | X26: =W26/1000*Bodencharakterisierung!$E$9*Stoffdatenbank!J28 -> 0 | Y26: 0 | Z26: 0 | AB26: =D26/VLOOKUP(Schadstoffbelastung!B26,Stoffdatenbank!$A$6:$S$47,17,FALSE)/1000 -> 0
B27: m-Ethyltoluol | C27: oET | D27: =IF($S$3,'Schadstoffkonzentrationen Boden'!Z51,'Schadstoffkonzentrationen GW'!V32) -> 0 | T27: oET | U27: ='Schadstoffkonzentrationen GW'!Y28 -> 0 | V27: =IFERROR(U27/Stoffdatenbank!R29,0) -> 0 | W27: =IFERROR(Stoffdatenbank!N29*1000*(Schadstoffbelastung!V27/(Schadstoffbelastung!V$35)),0) -> 0 | X27: =W27/1000*Bodencharakterisierung!$E$9*Stoffdatenbank!J29 -> 0 | Y27: 0 | Z27: 0 | AB27: =D27/VLOOKUP(Schadstoffbelastung!B27,Stoffdatenbank!$A$6:$S$47,17,FALSE)/1000 -> 0
B28: p-Ethyltoluol | C28: pET | D28: =IF($S$3,'Schadstoffkonzentrationen Boden'!Z52,'Schadstoffkonzentrationen GW'!V33) -> 0 | T28: pET | U28: ='Schadstoffkonzentrationen GW'!Y29 -> 0 | V28: =IFERROR(U28/Stoffdatenbank!R30,0) -> 0 | W28: =IFERROR(Stoffdatenbank!N30*1000*(Schadstoffbelastung!V28/(Schadstoffbelastung!V$35)),0) -> 0 | X28: =W28/1000*Bodencharakterisierung!$E$9*Stoffdatenbank!J30 -> 0 | Y28: 0 | Z28: 0 | AB28: =D28/VLOOKUP(Schadstoffbelastung!B28,Stoffdatenbank!$A$6:$S$47,17,FALSE)/1000 -> 0
B29: 1,2-Diethylbenzol | C29: 12DEB | D29: =IF($S$3,'Schadstoffkonzentrationen Boden'!Z53,'Schadstoffkonzentrationen GW'!V34) -> 0 | T29: 12DEB | U29: ='Schadstoffkonzentrationen GW'!Y30 -> 0 | V29: =IFERROR(U29/Stoffdatenbank!R31,0) -> 0 | W29: =IFERROR(Stoffdatenbank!N31*1000*(Schadstoffbelastung!V29/(Schadstoffbelastung!V$35)),0) -> 0 | X29: =W29/1000*Bodencharakterisierung!$E$9*Stoffdatenbank!J31 -> 0 | Y29: 0 | Z29: 0 | AB29: =D29/VLOOKUP(Schadstoffbelastung!B29,Stoffdatenbank!$A$6:$S$47,17,FALSE)/1000 -> 0
B30: 1,3-Diethylbenzol | C30: 13DEB | D30: =IF($S$3,'Schadstoffkonzentrationen Boden'!Z54,'Schadstoffkonzentrationen GW'!V35) -> 0 | T30: 13DEB | U30: ='Schadstoffkonzentrationen GW'!Y31 -> 0 | V30: =IFERROR(U30/Stoffdatenbank!R32,0) -> 0 | W30: =IFERROR(Stoffdatenbank!N32*1000*(Schadstoffbelastung!V30/(Schadstoffbelastung!V$35)),0) -> 0 | X30: =W30/1000*Bodencharakterisierung!$E$9*Stoffdatenbank!J32 -> 0 | Y30: 0 | Z30: 0 | AB30: =D30/VLOOKUP(Schadstoffbelastung!B30,Stoffdatenbank!$A$6:$S$47,17,FALSE)/1000 -> 0
B31: 1,4-Diethylbenzol | C31: 14DEB | D31: =IF($S$3,'Schadstoffkonzentrationen Boden'!Z55,'Schadstoffkonzentrationen GW'!V36) -> 0 | T31: 14DEB | U31: ='Schadstoffkonzentrationen GW'!Y32 -> 0 | V31: =IFERROR(U31/Stoffdatenbank!R33,0) -> 0 | W31: =IFERROR(Stoffdatenbank!N33*1000*(Schadstoffbelastung!V31/(Schadstoffbelastung!V$35)),0) -> 0 | X31: =W31/1000*Bodencharakterisierung!$E$9*Stoffdatenbank!J33 -> 0 | Y31: 0 | Z31: 0 | AB31: =D31/VLOOKUP(Schadstoffbelastung!B31,Stoffdatenbank!$A$6:$S$47,17,FALSE)/1000 -> 0
B32: 1,2,3-Trimethylbenzol | C32: 123TMB | D32: =IF($S$3,'Schadstoffkonzentrationen Boden'!Z56,'Schadstoffkonzentrationen GW'!V37) -> 0 | T32: 123TMB | U32: ='Schadstoffkonzentrationen GW'!Y33 -> 0 | V32: =IFERROR(U32/Stoffdatenbank!R34,0) -> 0 | W32: =IFERROR(Stoffdatenbank!N34*1000*(Schadstoffbelastung!V32/(Schadstoffbelastung!V$35)),0) -> 0 | X32: =W32/1000*Bodencharakterisierung!$E$9*Stoffdatenbank!J34 -> 0 | Y32: 0 | Z32: 0 | AB32: =D32/VLOOKUP(Schadstoffbelastung!B32,Stoffdatenbank!$A$6:$S$47,17,FALSE)/1000 -> 0
B33: 1,2,4-Trimethylbenzol | C33: 124TMB | D33: =IF($S$3,'Schadstoffkonzentrationen Boden'!Z57,'Schadstoffkonzentrationen GW'!V38) -> 0 | T33: 124TMB | U33: ='Schadstoffkonzentrationen GW'!Y34 -> 0 | V33: =IFERROR(U33/Stoffdatenbank!R35,0) -> 0 | W33: =IFERROR(Stoffdatenbank!N35*1000*(Schadstoffbelastung!V33/(Schadstoffbelastung!V$35)),0) -> 0 | X33: =W33/1000*Bodencharakterisierung!$E$9*Stoffdatenbank!J35 -> 0 | Y33: 0 | Z33: 0 | AB33: =D33/VLOOKUP(Schadstoffbelastung!B33,Stoffdatenbank!$A$6:$S$47,17,FALSE)/1000 -> 0
B34: 1,3,5-Trimethylbenzol | C34: 135TMB | D34: =IF($S$3,'Schadstoffkonzentrationen Boden'!Z58,'Schadstoffkonzentrationen GW'!V39) -> 0 | T34: 135TMB | U34: ='Schadstoffkonzentrationen GW'!Y35 -> 0 | V34: =IFERROR(U34/Stoffdatenbank!R36,0) -> 0 | W34: =IFERROR(Stoffdatenbank!N36*1000*(Schadstoffbelastung!V34/(Schadstoffbelastung!V$35)),0) -> 0 | X34: =W34/1000*Bodencharakterisierung!$E$9*Stoffdatenbank!J36 -> 0 | Y34: 0 | Z34: 0 | AB34: =D34/VLOOKUP(Schadstoffbelastung!B34,Stoffdatenbank!$A$6:$S$47,17,FALSE)/1000 -> 0
B35: AKW | D35: =SUM(D18:D34) -> 0 | T35: AKW | U35: =SUM(U18:U34) -> 0 | V35: =SUM(V18:V34) -> 0 | W35: =SUM(W18:W34) -> 0 | X35: 0 | Y35: 0 | Z35: 0
B36: =Stoffdatenbank!A38 -> n-Pentan | C36: nC5 | D36: =IF($S$3,'Schadstoffkonzentrationen Boden'!Z62,'Schadstoffkonzentrationen GW'!V43) -> 0 | T36: nC5 | U36: ='Schadstoffkonzentrationen GW'!Y37 -> 0 | V36: =IFERROR(U36/Stoffdatenbank!R38,0) -> 0 | W36: =IFERROR(Stoffdatenbank!N38*1000*(Schadstoffbelastung!V36/(Schadstoffbelastung!V$42)),0) -> 0 | X36: =W36/1000*Bodencharakterisierung!$E$9*Stoffdatenbank!J38 -> 0 | Y36: =IFERROR(D36*1000/$J$12,0) -> 0 | Z36: 0 | AB36: =D36/VLOOKUP(Schadstoffbelastung!B36,Stoffdatenbank!$A$6:$S$47,17,FALSE)/1000 -> 0
B37: =Stoffdatenbank!A39 -> n-Hexan | C37: nC6 | D37: =IF($S$3,'Schadstoffkonzentrationen Boden'!Z63,'Schadstoffkonzentrationen GW'!V44) -> 0 | T37: nC6 | U37: ='Schadstoffkonzentrationen GW'!Y38 -> 0 | V37: =IFERROR(U37/Stoffdatenbank!R39,0) -> 0 | W37: =IFERROR(Stoffdatenbank!N39*1000*(Schadstoffbelastung!V37/(Schadstoffbelastung!V$42)),0) -> 0 | X37: =W37/1000*Bodencharakterisierung!$E$9*Stoffdatenbank!J39 -> 0 | Y37: 0 | Z37: 0 | AB37: =D37/VLOOKUP(Schadstoffbelastung!B37,Stoffdatenbank!$A$6:$S$47,17,FALSE)/1000 -> 0
B38: =Stoffdatenbank!A40 -> n-Heptan | C38: nC7 | D38: =IF($S$3,'Schadstoffkonzentrationen Boden'!Z64,'Schadstoffkonzentrationen GW'!V45) -> 0 | T38: nC7 | U38: ='Schadstoffkonzentrationen GW'!Y39 -> 0 | V38: =IFERROR(U38/Stoffdatenbank!R40,0) -> 0 | W38: =IFERROR(Stoffdatenbank!N40*1000*(Schadstoffbelastung!V38/(Schadstoffbelastung!V$42)),0) -> 0 | X38: =W38/1000*Bodencharakterisierung!$E$9*Stoffdatenbank!J40 -> 0 | Y38: 0 | Z38: 0 | AB38: =D38/VLOOKUP(Schadstoffbelastung!B38,Stoffdatenbank!$A$6:$S$47,17,FALSE)/1000 -> 0
B39: =Stoffdatenbank!A41 -> n-Octan | C39: nC8 | D39: =IF($S$3,'Schadstoffkonzentrationen Boden'!Z65,'Schadstoffkonzentrationen GW'!V46) -> 0 | T39: nC8 | U39: ='Schadstoffkonzentrationen GW'!Y40 -> 0 | V39: =IFERROR(U39/Stoffdatenbank!R41,0) -> 0 | W39: =IFERROR(Stoffdatenbank!N41*1000*(Schadstoffbelastung!V39/(Schadstoffbelastung!V$42)),0) -> 0 | X39: =W39/1000*Bodencharakterisierung!$E$9*Stoffdatenbank!J41 -> 0 | Y39: 0 | Z39: 0 | AB39: =D39/VLOOKUP(Schadstoffbelastung!B39,Stoffdatenbank!$A$6:$S$47,17,FALSE)/1000 -> 0
B40: =Stoffdatenbank!A42 -> n-Nonan | C40: nC9 | D40: =IF($S$3,'Schadstoffkonzentrationen Boden'!Z66,'Schadstoffkonzentrationen GW'!V47) -> 0 | T40: nC9 | U40: ='Schadstoffkonzentrationen GW'!Y41 -> 0 | V40: =IFERROR(U40/Stoffdatenbank!R42,0) -> 0 | W40: =IFERROR(Stoffdatenbank!N42*1000*(Schadstoffbelastung!V40/(Schadstoffbelastung!V$42)),0) -> 0 | X40: =W40/1000*Bodencharakterisierung!$E$9*Stoffdatenbank!J42 -> 0 | Y40: 0 | Z40: 0 | AB40: =D40/VLOOKUP(Schadstoffbelastung!B40,Stoffdatenbank!$A$6:$S$47,17,FALSE)/1000 -> 0
B41: =Stoffdatenbank!A43 -> n-Decan | C41: nC10 | D41: =IF($S$3,'Schadstoffkonzentrationen Boden'!Z67,'Schadstoffkonzentrationen GW'!V48) -> 0 | T41: nC10 | U41: ='Schadstoffkonzentrationen GW'!Y42 -> 0 | V41: =IFERROR(U41/Stoffdatenbank!R43,0) -> 0 | W41: =IFERROR(Stoffdatenbank!N43*1000*(Schadstoffbelastung!V41/(Schadstoffbelastung!V$42)),0) -> 0 | X41: =W41/1000*Bodencharakterisierung!$E$9*Stoffdatenbank!J43 -> 0 | Y41: 0 | Z41: 0 | AB41: =D41/VLOOKUP(Schadstoffbelastung!B41,Stoffdatenbank!$A$6:$S$47,17,FALSE)/1000 -> 0
B42: =Stoffdatenbank!A37 -> n-Alkane | D42: =SUM(D36:D41) -> 0 | T42: n-Alkane | U42: =SUM(U36:U41) -> 0 | V42: =SUM(V36:V41) -> 0 | W42: =SUM(W36:W41) -> 0 | X42: 0 | Y42: 0 | Z42: 0
B43: MTBE (Methyl-tert-butylether) | D43: =IF($S$3,'Schadstoffkonzentrationen Boden'!Z70,'Schadstoffkonzentrationen GW'!V51) -> 0 | T43: MTBE | U43: ='Schadstoffkonzentrationen GW'!Y44 -> 0 | V43: =IFERROR(U43/Stoffdatenbank!R45,0) -> 0 | W43: =IFERROR(Stoffdatenbank!N45*1000*(Schadstoffbelastung!V43/(Schadstoffbelastung!V$42)),0) -> 0 | X43: =W43/1000*Bodencharakterisierung!$E$9*Stoffdatenbank!J45 -> 0 | Y43: =IFERROR(D43*1000/$J$12,0) -> 0 | Z43: 0 | AB43: =D43/VLOOKUP(Schadstoffbelastung!B43,Stoffdatenbank!$A$6:$S$47,17,FALSE)/1000 -> 0
B44: ETBE (Ethyl-tert-butylether) | D44: =IF($S$3,'Schadstoffkonzentrationen Boden'!Z71,'Schadstoffkonzentrationen GW'!V52) -> 0 | T44: ETBE | U44: ='Schadstoffkonzentrationen GW'!Y45 -> 0 | V44: =IFERROR(U44/Stoffdatenbank!R46,0) -> 0 | W44: =IFERROR(Stoffdatenbank!N46*1000*(Schadstoffbelastung!V44/(Schadstoffbelastung!V$42)),0) -> 0 | X44: =W44/1000*Bodencharakterisierung!$E$9*Stoffdatenbank!J46 -> 0 | Y44: 0 | Z44: 0 | AB44: =D44/VLOOKUP(Schadstoffbelastung!B44,Stoffdatenbank!$A$6:$S$47,17,FALSE)/1000 -> 0
B45: TBA (tert-Butylalkohol) | D45: =IF($S$3,'Schadstoffkonzentrationen Boden'!Z72,'Schadstoffkonzentrationen GW'!V53) -> 0 | T45: TBA | U45: ='Schadstoffkonzentrationen GW'!Y46 -> 0 | V45: =IFERROR(U45/Stoffdatenbank!R47,0) -> 0 | W45: =IFERROR(Stoffdatenbank!N47*1000*(Schadstoffbelastung!V45/(Schadstoffbelastung!V$42)),0) -> 0 | X45: =W45/1000*Bodencharakterisierung!$E$9*Stoffdatenbank!J47 -> 0 | Y45: 0 | Z45: 0 | AB45: =D45/VLOOKUP(Schadstoffbelastung!B45,Stoffdatenbank!$A$6:$S$47,17,FALSE)/1000 -> 0
B46: Oxigenate | D46: =SUM(D43:D45) -> 0 | T46: Oxigenate | U46: =SUM(U43:U45) -> 0 | V46: =SUM(V43:V45) -> 0 | W46: =SUM(W43:W45) -> 0 | X46: 0 | Y46: 0 | Z46: 0
B47: DOC

Sheet Calculation (hidden)
B2: Parameter | D2: Einheit | E2: Wert | F2: Ergebnisparameter | H2: Einheit | I2: Wert
A3: Schadstoffbelastung | F3: Dimensionierung Injektionen
B4: Soil Oxygen Demand (SOD) | C4: SOD | D4: g/kg | E4: =Sanierungsdesign!E14 -> 2 | F4: Injektionen unproduktiver Oxidationsmittelverbrauch | H4: Kampagnen | I4: =Berechnung1!C23 -> 1
B5: Relevante Konzentration Grundwasser | C5: Cw | D5: µg/L | E5: =Berechnung1!C14 -> 1633.5625 | F5: Injektionen für Schadstoffabbau | H5: Kampagnen | I5: =VLOOKUP(I11,Berechnung1!E5:AS47,40,0) -> 2.996860707
B6: Mittlere Konzentration Boden | C6: Cges | D6: mg/kg | E6: =Berechnung1!C15 -> 29.8258002 | F6: Gesamtinjektionen für betrachteten Stoff | H6: Kampagnen | I6: =I4+I5 -> 3.996860707
B7: Konzentration Residualphase | C7: Cres | D7: mg/kg | E7: =Berechnung1!C17 -> 0 | F7: Sanierungszielwert | H7: µg/L | I7: =VLOOKUP(I11,Berechnung1!E5:P47,12,0)*1000*1000 -> 450
B8: Konzentration Sorbierte Phase | C8: Cs | D8: mg/kg | E8: =Berechnung1!C18 -> 29.8258002 | F8: Schadstoffendkonzentration | H8: µg/L | I8: =Berechnung1!C11 -> 448.7074324
B9: Sanierungszielwert | C9: - | D9: µg/L | E9: =Berechnung1!C19 -> 450
A10: Sanierungserfolg
A11: Gesamtdauer der Sanierung | D11: Tage | E11: =Berechnung1!C12 -> 442.3404429 | F11: Betrachteter Schadstoff | I11: =Berechnung1!C2 -> LCKW

Sheet Berechnung1 (hidden)
A1: Bewertungsrelevanter Schadstoff | C1: =OFFSET(E5,MATCH("Ja",T5:T47,0)-1,0) ->  | J1: Ermittlung bewertungsrelevanter Schadstoff | AE1: Ges. Ox-Bedarf [kg/kgBoden] | AF1: NAPL-Auflösung Fb [kg/m2*s] | AG1: Massentransferrate JRW=Fb * A0 [kg/m³*s] | AH1: Mass of contaminant [kg] | AI1: Time for blobs dissolution [d] | AJ1: KOC [L/kg] | AK1: Rf [-] | AL1: Dp [m2/s] | AM1: Dap [m2/s] | AN1: Desorptionszeit Test 1 [d] | AO1: Zielwerte [µg/L] | AP1: Retardations-faktor R | AQ1: Konz. im GW nach 1. Test [µg/L] | AR1: 1 + Erforderliche Anzahl injektionen | AS1: Erforderliche Gesamtzahl injektionen | AT1: Schadstoffendkonzentration | AU1: Sanierungs-dauer [d]
A2: Betrachteter Stoff: | C2: =IF(Sanierungsdesign!E16="Bewertungsrelevanter Schadstoff",C1,Sanierungsdesign!E16) -> LCKW | F2: Gesamt | G2: Konz im Boden | H2: wäss. Konz | I2: wässrige Konz. | K2: Stoffmenge | L2: Anteil an | M2: Mengen- | N2: K(d) | O2: Löslichkeit | P2: San.Zielwert | Q2: Verhältnis | R2: Sanierungs- | S2: Auswahl- | T2: Maximum + | U2: Dichte | V2: Diff.-Koeff. | W2: Grenzkonz. | X2: Mittel.Konz | Y2: Residualph. | Z2: Sätt.Konz. | AA2: Stöchiomet. Faktor | AB2: Stöchiomet. Faktor | AC2: Welcher Stoff | AD2: Welcher Stoff
A3: Oxidationsmittel | C3: =Sanierungsdesign!E15 -> Permanganat | E3: Stoffname | F3: Inventar [kg] | G3: mg/kg | H3: c(w) [kg/m3] | I3: im Gleichgewicht | J3: Molgewicht | L3: Stofgruppe | M3: relevanz? | N3: m3/kg | O3: [kg/m3] | P3: [kg/m3] | Q3: c(w)/Zielw. | R3: relevanz? | S3: Formel | T3: bew.Relevanz | U3: kg/L | V3: m²/s | W3: Boden [kg/kg] | X3: Boden [kg/kg] | Y3: Boden [kg/kg] | Z3: c(i) [kg/m3] | AA3: Permang. [g MnO4-/g] | AB3: Permang. [g S2O8-2/g] | AC3: betrachtet | AD3: betrachtet
E4: 1 | F4: =E4+1 -> 2 | G4: =F4+1 -> 3 | H4: 4 | I4: 5 | J4: 6 | K4: 7 | L4: 8 | M4: 9 | N4: 10 | O4: 11 | P4: 12 | Q4: 13 | R4: 14 | S4: 15 | T4: 16 | U4: 17 | V4: 18 | W4: 19 | X4: 20 | Y4: 21 | Z4: 22 | AA4: 23 | AB4: 24 | AC4: 25 | AD4: 26 | AE4: 27 | AF4: 28 | AG4: 29 | AH4: 30 | AI4: 31 | AJ4: 32 | AK4: 33 | AL4: 34 | AM4: 35 | AN4: 36 | AO4: 37 | AP4: 38 | AQ4: 39 | AR4: 40 | AS4: 41 | AT4: 42 | AU4: 43
A5: Oxidationsmittelbedarf durch SOD [g/kg] aus Bodenart abgeschätzt | C5: =Sanierungsdesign!E14 -> 2 | E5: Tetrachlorethen | F5: =Schadstoffbelastung!D4 -> 316.705307 | G5: =F5/Schadstoffbelastung!$J$12*1000 -> 28.60514604 | H5: =Schadstoffbelastung!U4/1000/1000 -> 0.001417625 | I5: =X5/N5 -> 0.0158917478 | J5: =Stoffdatenbank!R6 -> 166 | K5: =F5/J5 -> 1.907863295 | L5: =IFERROR(K5/$K$18,0) -> 0.9315839894 | M5: =IF(L5>0.05,1,0) -> 1 | N5: =Stoffdatenbank!J6*0.001*Bodencharakterisierung!$E$9 -> 0.0018 | O5: =Stoffdatenbank!N6*0.001 -> 0.16 | P5: =Sanierungsdesign!$E$4/1000000 -> 0.00045 | Q5: =H5/P5 -> 3.150277778 | R5: =IF(AND(M5=1,Q5>1),1,0) -> 1 | S5: =IF((R5=1),((Q5)^0.5*N5)/((0.15^1.2)*(O5^0.9)),0) -> 0.1619680802 | T5: =IF((S5=MAX($S$5:$S$46)),"Ja","0") ->  | U5: =Stoffdatenbank!Q6 -> 1.624 | V5: =Stoffdatenbank!L6 -> 7.49e-10 | W5: =Schadstoffbelastung!X4/1000/1000 -> 0.0002263886884 | X5: =Schadstoffbelastung!Y4/1000/1000 -> 2.860514604e-05 | Y5: =Schadstoffbelastung!Z4/1000/1000 -> 0 | Z5: =Schadstoffbelastung!W4/1000/1000 -> 0.1257714936 | AA5: 0.96 | AB5: 1 | AC5: =IF($C$2=E5,1,0) -> 0 | AD5: =IF($C$2=F5,1,0) -> 0 | AE5: =IF(Sanierungsdesign!$E$15="Permanganat",Berechnung1!F5*Berechnung1!AA5,Berechnung1!F5*Berechnung1!AB5) -> 304.0370947 | AF5: =VLOOKUP(E5,Stoffdatenbank!$A$6:$R$47,Stoffdatenbank!$L$2,FALSE)/(Bodencharakterisierung!$E$13/10)*VLOOKUP(E5,Stoffdatenbank!$A$6:$R$47,Stoffdatenbank!$N$2,FALSE)/1000 -> 2075161.446 | AG5: =AF5*$C$7 -> 1024370.742 | AH5: =VLOOKUP(E5,Schadstoffbelastung!$B$2:$D$46,3,0) -> 316.705307 | AI5: =IF(Y5>0,Schadstoffbelastung!$J$4/Grundwassercharakterisierung!$D$4*AP5,0)*Heterogenität!$D$17 -> 0 | AJ5: =Stoffdatenbank!J6*Bodencharakterisierung!$E$9 -> 1.8 | AK5: =1+AJ5*VLOOKUP(E5,Stoffdatenbank!$A$6:$S$47,Stoffdatenbank!$Q$2,FALSE)/Bodencharakterisierung!$E$8 -> 1.000036109 | AL5: =Stoffdatenbank!L6/Bodencharakterisierung!$E$14 -> 9.3625e-11 | AM5: =AL5/AK5 -> 9.362161941e-11 | AN5: =0.183*Bodencharakterisierung!$E$13^2/Berechnung1!AM5*Heterogenität!$D$17/3600/24 -> 0.004787463198 | AO5: =Sanierungsdesign!$E$4 -> 450 | AP5: =1+U5*1000*(AH5/U5/1000/Schadstoffbelastung!$J$11/Bodencharakterisierung!$E$8)/O5/lblMainSoilPorosityAct -> 5.103863281 | AQ5: =G5/AJ5*1000*0.4 -> 6356.69912 | AR5: =IFERROR(LOG(AO5/AQ5,0.4),0) -> 2.889930936 | AS5: =IF(F5=0,0,IF(AR5<0,1,1+ROUNDUP(AR5,0))) -> 4 | AT5: =G5/AJ5*1000*0.4^AS5 -> 406.8287437 | AU5: =(AS5*90)*Heterogenität!$D$17+AI5+AN5 -> 442.3390267
A6: Relative Porensättigung mit NAPL (S0) | B6: m³/m³ | C6: =SUM(Schadstoffbelastung!AB4:AB45)/Schadstoffbelastung!J11/Bodencharakterisierung!E8 -> 8.53575872e-05 | E6: Trichlorethen | F6: =Schadstoffbelastung!D5 -> 4.473814866 | G6: =F6/Schadstoffbelastung!$J$12*1000 -> 0.4040795173 | H6: =Schadstoffbelastung!U5/1000/1000 -> 4.65625e-05 | I6: 0.0006216607959 | J6: =Stoffdatenbank!R7 -> 131 | K6: =F6/J6 -> 0.03415125852 | L6: =IFERROR(K6/$K$18,0) -> 0.01667560026 | M6: 0 | N6: =Stoffdatenbank!J7*0.001*Bodencharakterisierung!$E$9 -> 0.00065 | O6: =Stoffdatenbank!N7*0.001 -> 1 | P6: =Sanierungsdesign!$E$4/1000000 -> 0.00045 | Q6: 0.1034722222 | R6: 0 | S6: 0 | T6: =IF((S6=MAX($S$5:$S$46)),"Ja","0") ->  | U6: =Stoffdatenbank!Q7 -> 1.4642 | V6: =Stoffdatenbank!L7 -> 8.08e-10 | W6: =Schadstoffbelastung!X5/1000/1000 -> 2.126607354e-05 | X6: =Schadstoffbelastung!Y5/1000/1000 -> 4.040795173e-07 | Y6: =Schadstoffbelastung!Z5/1000/1000 -> 0 | Z6: =Schadstoffbelastung!W5/1000/1000 -> 0.03271703621 | AA6: 1.81 | AB6: 1 | AC6: 0 | AD6: 0 | AE6: =IF(Sanierungsdesign!$E$15="Permanganat",Berechnung1!F6*Berechnung1!AA6,Berechnung1!F6*Berechnung1!AB6) -> 8.097604907 | AF6: =VLOOKUP(E6,Stoffdatenbank!$A$6:$R$47,Stoffdatenbank!$L$2,FALSE)/(Bodencharakterisierung!$E$13/10)*VLOOKUP(E6,Stoffdatenbank!$A$6:$R$47,Stoffdatenbank!$N$2,FALSE)/1000 -> 824325.3012 | AG6: =AF6*$C$7 -> 406915.193 | AH6: =VLOOKUP(E6,Schadstoffbelastung!$B$2:$D$46,3,0) -> 4.473814866 | AI6: =IF(Y6>0,Schadstoffbelastung!$J$4/Grundwassercharakterisierung!$D$4*AP6,0)*Heterogenität!$D$17 -> 0 | AJ6: =Stoffdatenbank!J7*Bodencharakterisierung!$E$9 -> 0.65 | AK6: =1+AJ6*VLOOKUP(E6,Stoffdatenbank!$A$6:$S$47,Stoffdatenbank!$Q$2,FALSE)/Bodencharakterisierung!$E$8 -> 1.000014024 | AL6: =Stoffdatenbank!L7/Bodencharakterisierung!$E$14 -> 1.01e-10 | AM6: =AL6/AK6 -> 1.009985836e-10 | AN6: =0.183*Bodencharakterisierung!$E$13^2/Berechnung1!AM6*Heterogenität!$D$17/3600/24 -> 0.004437785577 | AO6: =Sanierungsdesign!$E$4 -> 450 | AP6: =1+U6*1000*(AH6/U6/1000/Schadstoffbelastung!$J$11/Bodencharakterisierung!$E$8)/O6/lblMainSoilPorosityAct -> 1.009275462 | AQ6: =G6/AJ6*1000*0.4 -> 248.6643184 | AR6: =IFERROR(LOG(AO6/AQ6,0.4),0) -> -0.6473313483 | AS6: =IF(F6=0,0,IF(AR6<0,1,1+ROUNDUP(AR6,0))) -> 1 | AT6: =G6/AJ6*1000*0.4^AS6 -> 248.6643184 | AU6: =(AS6*90)*Heterogenität!$D$17+AI6+AN6 -> 110.5879976
A7: Spezifische Grenzflächen (A0) | B7: m²/m³ | C7: =C6*3*lblMainSoilPorosityAct/(Bodencharakterisierung!$E$13/4) -> 0.4936342392 | E7: cis-1,2-Dichlorethen | F7: =Schadstoffbelastung!D6 -> 6.429110231 | G7: =F7/Schadstoffbelastung!$J$12*1000 -> 0.5806837871 | H7: =Schadstoffbelastung!U6/1000/1000 -> 0.000124125 | I7: 0.002322735149 | J7: =Stoffdatenbank!R8 -> 97 | K7: 0.06627948692 | L7: 0.03236338211 | M7: 0 | N7: =Stoffdatenbank!J8*0.001*Bodencharakterisierung!$E$9 -> 0.00025 | O7: =Stoffdatenbank!N8*0.001 -> 3.5 | P7: =Sanierungsdesign!$E$4/1000000 -> 0.00045 | Q7: 0.2758333333 | R7: =IF(AND(M7=1,Q7>1),1,0) -> 0 | S7: 0 | U7: =Stoffdatenbank!Q8 -> 1.2837 | V7: =Stoffdatenbank!L8 -> 8.95e-10 | W7: =Schadstoffbelastung!X6/1000/1000 -> 0.0001030634178 | X7: =Schadstoffbelastung!Y6/1000/1000 -> 5.806837871e-07 | Y7: =Schadstoffbelastung!Z6/1000/1000 -> 0 | Z7: =Schadstoffbelastung!W6/1000/1000 -> 0.4122536712 | AA7: 3.28 | AB7: 1 | AC7: 0 | AD7: 0 | AE7: =IF(Sanierungsdesign!$E$15="Permanganat",Berechnung1!F7*Berechnung1!AA7,Berechnung1!F7*Berechnung1!AB7) -> 21.08748156 | AF7: =VLOOKUP(E7,Stoffdatenbank!$A$6:$R$47,Stoffdatenbank!$L$2,FALSE)/(Bodencharakterisierung!$E$13/10)*VLOOKUP(E7,Stoffdatenbank!$A$6:$R$47,Stoffdatenbank!$N$2,FALSE)/1000 -> 384421.6867 | AG7: 189763.7069 | AH7: =VLOOKUP(E7,Schadstoffbelastung!$B$2:$D$46,3,0) -> 6.429110231 | AI7: =IF(Y7>0,Schadstoffbelastung!$J$4/Grundwassercharakterisierung!$D$4*AP7,0)*Heterogenität!$D$17 -> 0 | AJ7: =Stoffdatenbank!J8*Bodencharakterisierung!$E$9 -> 0.25 | AK7: =1+AJ7*VLOOKUP(E7,Stoffdatenbank!$A$6:$S$47,Stoffdatenbank!$Q$2,FALSE)/Bodencharakterisierung!$E$8 -> 1.00000597 | AL7: =Stoffdatenbank!L8/Bodencharakterisierung!$E$14 -> 1.11875e-10 | AM7: 1.118743321e-10 | AN7: =0.183*Bodencharakterisierung!$E$13^2/Berechnung1!AM7*Heterogenität!$D$17/3600/24 -> 0.004006370799 | AO7: =Sanierungsdesign!$E$4 -> 450 | AP7: =1+U7*1000*(AH7/U7/1000/Schadstoffbelastung!$J$11/Bodencharakterisierung!$E$8)/O7/lblMainSoilPorosityAct -> 1.003808381 | AQ7: =G7/AJ7*1000*0.4 -> 929.0940594 | AR7: 0.7911925481 | AS7: 2 | AT7: =G7/AJ7*1000*0.4^AS7 -> 371.6376238 | AU7: =(AS7*90)*Heterogenität!$D$17+AI7+AN7 -> 221.171126
A8: Particle foc fOC(P) | B8: - | C8: =Bodencharakterisierung!E9 -> 0.005 | E8: trans-1,2-Dichlorethen | F8: =Schadstoffbelastung!D7 -> 0.128995335 | G8: =F8/Schadstoffbelastung!$J$12*1000 -> 0.0116509901 | H8: =Schadstoffbelastung!U7/1000/1000 -> 2.25e-06 | I8: 3.883663366e-05 | J8: =Stoffdatenbank!R9 -> 97 | K8: 0.001329848814 | L8: 0.0006493472918 | M8: 0 | N8: =Stoffdatenbank!J9*0.001*Bodencharakterisierung!$E$9 -> 0.0003 | O8: =Stoffdatenbank!N9*0.001 -> 6.3 | P8: =Sanierungsdesign!$E$4/1000000 -> 0.00045 | Q8: 0.005 | R8: 0 | S8: 0 | U8: =Stoffdatenbank!Q9 -> 1.2565 | V8: =Stoffdatenbank!L9 -> 8.86e-10 | W8: =Schadstoffbelastung!X7/1000/1000 -> 4.035353156e-06 | X8: =Schadstoffbelastung!Y7/1000/1000 -> 1.16509901e-08 | Y8: =Schadstoffbelastung!Z7/1000/1000 -> 0 | Z8: =Schadstoffbelastung!W7/1000/1000 -> 0.01345117719 | AA8: 3.28 | AB8: 1 | AC8: 0 | AD8: 0 | AE8: =IF(Sanierungsdesign!$E$15="Permanganat",Berechnung1!F8*Berechnung1!AA8,Berechnung1!F8*Berechnung1!AB8) -> 0.4231046988 | AF8: =VLOOKUP(E8,Stoffdatenbank!$A$6:$R$47,Stoffdatenbank!$L$2,FALSE)/(Bodencharakterisierung!$E$13/10)*VLOOKUP(E8,Stoffdatenbank!$A$6:$R$47,Stoffdatenbank!$N$2,FALSE)/1000 -> 443204.8193 | AG8: 218781.0738 | AH8: =VLOOKUP(E8,Schadstoffbelastung!$B$2:$D$46,3,0) -> 0.128995335 | AI8: =IF(Y8>0,Schadstoffbelastung!$J$4/Grundwassercharakterisierung!$D$4*AP8,0)*Heterogenität!$D$17 -> 0 | AJ8: =Stoffdatenbank!J9*Bodencharakterisierung!$E$9 -> 0.3 | AK8: =1+AJ8*VLOOKUP(E8,Stoffdatenbank!$A$6:$S$47,Stoffdatenbank!$Q$2,FALSE)/Bodencharakterisierung!$E$8 -> 1.000008027 | AL8: =Stoffdatenbank!L9/Bodencharakterisierung!$E$14 -> 1.1075e-10 | AM8: 1.10749111e-10 | AN8: =0.183*Bodencharakterisierung!$E$13^2/Berechnung1!AM8*Heterogenität!$D$17/3600/24 -> 0.004047075895 | AO8: =Sanierungsdesign!$E$4 -> 450 | AP8: =1+U8*1000*(AH8/U8/1000/Schadstoffbelastung!$J$11/Bodencharakterisierung!$E$8)/O8/lblMainSoilPorosityAct -> 1.000042451 | AQ8: 15.53465347 | AR8: -3.673696819 | AS8: 1 | AT8: 15.53465347 | AU8: =(AS8*90)*Heterogenität!$D$17+AI8+AN8 -> 110.5876069
A9: Partikelporosiät (nP) | B9: - | C9: 0.011 | E9: 1,1-Dichlorethen | F9: =Schadstoffbelastung!D8 -> 0.1894481889 | G9: =F9/Schadstoffbelastung!$J$12*1000 -> 0.01711115347 | H9: =Schadstoffbelastung!U8/1000/1000 -> 3e-06 | I9: 4.853539488e-05 | J9: =Stoffdatenbank!R10 -> 97 | K9: 0.001953074113 | L9: 0.0009536598236 | M9: 0 | N9: =Stoffdatenbank!J10*0.001*Bodencharakterisierung!$E$9 -> 0.00035255 | O9: =Stoffdatenbank!N10*0.001 -> 2.5 | P9: =Sanierungsdesign!$E$4/1000000 -> 0.00045 | Q9: 0.006666666667 | R9: 0 | S9: 0 | U9: =Stoffdatenbank!Q10 -> 1.218 | V9: =Stoffdatenbank!L10 -> 1.173e-09 | W9: =Schadstoffbelastung!X8/1000/1000 -> 2.509107152e-06 | X9: =Schadstoffbelastung!Y8/1000/1000 -> 1.711115347e-08 | Y9: =Schadstoffbelastung!Z8/1000/1000 -> 0 | Z9: =Schadstoffbelastung!W8/1000/1000 -> 0.007117024966 | AA9: 3.28 | AB9: 1 | AC9: 0 | AD9: 0 | AE9: =IF(Sanierungsdesign!$E$15="Permanganat",Berechnung1!F9*Berechnung1!AA9,Berechnung1!F9*Berechnung1!AB9) -> 0.6213900597 | AF9: =VLOOKUP(E9,Stoffdatenbank!$A$6:$R$47,Stoffdatenbank!$L$2,FALSE)/(Bodencharakterisierung!$E$13/10)*VLOOKUP(E9,Stoffdatenbank!$A$6:$R$47,Stoffdatenbank!$N$2,FALSE)/1000 -> 466096.5855 | AG9: 230081.2334 | AH9: =VLOOKUP(E9,Schadstoffbelastung!$B$2:$D$46,3,0) -> 0.1894481889 | AI9: =IF(Y9>0,Schadstoffbelastung!$J$4/Grundwassercharakterisierung!$D$4*AP9,0)*Heterogenität!$D$17 -> 0 | AJ9: =Stoffdatenbank!J10*Bodencharakterisierung!$E$9 -> 0.35255 | AK9: =1+AJ9*VLOOKUP(E9,Stoffdatenbank!$A$6:$S$47,Stoffdatenbank!$Q$2,FALSE)/Bodencharakterisierung!$E$8 -> 1.000010539 | AL9: =Stoffdatenbank!L10/Bodencharakterisierung!$E$14 -> 1.46625e-10 | AM9: 1.466234547e-10 | AN9: =0.183*Bodencharakterisierung!$E$13^2/Berechnung1!AM9*Heterogenität!$D$17/3600/24 -> 0.003056878303 | AO9: =Sanierungsdesign!$E$4 -> 450 | AP9: =1+U9*1000*(AH9/U9/1000/Schadstoffbelastung!$J$11/Bodencharakterisierung!$E$8)/O9/lblMainSoilPorosityAct -> 1.000157112 | AQ9: 19.41415795 | AR9: =IFERROR(LOG(AO9/AQ9,0.4),0) -> -3.43040138 | AS9: 1 | AT9: 19.41415795 | AU9: =(AS9*90)*Heterogenität!$D$17+AI9+AN9 -> 110.5866167
E10: Vinylchlorid | F10: =Schadstoffbelastung!D9 -> 2.2932504 | G10: =F10/Schadstoffbelastung!$J$12*1000 -> 0.2071287129 | H10: =Schadstoffbelastung!U9/1000/1000 -> 4e-05 | I10: 0.0006904290429 | J10: =Stoffdatenbank!R11 -> 63 | K10: 0.0364008 | L10: 0.01777402111 | M10: 0 | N10: =Stoffdatenbank!J11*0.001*Bodencharakterisierung!$E$9 -> 0.0003 | O10: =Stoffdatenbank!N11*0.001 -> 1.1 | P10: =Sanierungsdesign!$E$4/1000000 -> 0.00045 | Q10: =H10/P10 -> 0.08888888889 | R10: 0 | S10: 0 | U10: =Stoffdatenbank!Q11 -> 0.9121 | V10: =Stoffdatenbank!L11 -> 5.78e-10 | W10: =Schadstoffbelastung!X9/1000/1000 -> 1.928600797e-05 | X10: =Schadstoffbelastung!Y9/1000/1000 -> 2.071287129e-07 | Y10: =Schadstoffbelastung!Z9/1000/1000 -> 0 | Z10: =Schadstoffbelastung!W9/1000/1000 -> 0.06428669324 | AA10: 6.35 | AB10: 1 | AC10: 0 | AD10: 0 | AE10: =IF(Sanierungsdesign!$E$15="Permanganat",Berechnung1!F10*Berechnung1!AA10,Berechnung1!F10*Berechnung1!AB10) -> 14.56214004 | AF10: =VLOOKUP(E10,Stoffdatenbank!$A$6:$R$47,Stoffdatenbank!$L$2,FALSE)/(Bodencharakterisierung!$E$13/10)*VLOOKUP(E10,Stoffdatenbank!$A$6:$R$47,Stoffdatenbank!$N$2,FALSE)/1000 -> 527132.5301 | AG10: 260210.6655 | AH10: =VLOOKUP(E10,Schadstoffbelastung!$B$2:$D$46,3,0) -> 2.2932504 | AI10: =IF(Y10>0,Schadstoffbelastung!$J$4/Grundwassercharakterisierung!$D$4*AP10,0)*Heterogenität!$D$17 -> 0 | AJ10: =Stoffdatenbank!J11*Bodencharakterisierung!$E$9 -> 0.3 | AK10: =1+AJ10*VLOOKUP(E10,Stoffdatenbank!$A$6:$S$47,Stoffdatenbank!$Q$2,FALSE)/Bodencharakterisierung!$E$8 -> 1.0000054 | AL10: =Stoffdatenbank!L11/Bodencharakterisierung!$E$14 -> 7.225e-11 | AM10: 7.224960985e-11 | AN10: =0.183*Bodencharakterisierung!$E$13^2/Berechnung1!AM10*Heterogenität!$D$17/3600/24 -> 0.006203632911 | AO10: =Sanierungsdesign!$E$4 -> 450 | AP10: =1+U10*1000*(AH10/U10/1000/Schadstoffbelastung!$J$11/Bodencharakterisierung!$E$8)/O10/lblMainSoilPorosityAct -> 1.004322314 | AQ10: 276.1716172 | AR10: -0.5328277281 | AS10: 1 | AT10: 276.1716172 | AU10: =(AS10*90)*Heterogenität!$D$17+AI10+AN10 -> 110.5897634
A11: Schadstoffendkonzentration | B11: µg/L | C11: =VLOOKUP(C2,E4:AU47,42,0) -> 448.7074324 | E11: Tetrachlormethan | F11: =Schadstoffbelastung!D10 -> 0 | G11: =F11/Schadstoffbelastung!$J$12*1000 -> 0 | H11: =Schadstoffbelastung!U10/1000/1000 -> 0 | I11: 0 | J11: =Stoffdatenbank!R12 -> 154 | K11: 0 | L11: 0 | M11: 0 | N11: =Stoffdatenbank!J12*0.001*Bodencharakterisierung!$E$9 -> 0.001428 | O11: =Stoffdatenbank!N12*0.001 -> 0.8 | P11: =Sanierungsdesign!$E$4/1000000 -> 0.00045 | Q11: 0 | R11: 0 | S11: 0 | U11: =Stoffdatenbank!Q12 -> 1.594 | V11: =Stoffdatenbank!L12 -> 7.293e-10 | W11: =Schadstoffbelastung!X10/1000/1000 -> 0 | X11: =Schadstoffbelastung!Y10/1000/1000 -> 0 | Y11: =Schadstoffbelastung!Z10/1000/1000 -> 0 | Z11: =Schadstoffbelastung!W10/1000/1000 -> 0 | AA11: 1 | AB11: 1 | AC11: 0 | AD11: 0 | AE11: =IF(Sanierungsdesign!$E$15="Permanganat",Berechnung1!F11*Berechnung1!AA11,Berechnung1!F11*Berechnung1!AB11) -> 0 | AF11: =VLOOKUP(E11,Stoffdatenbank!$A$6:$R$47,Stoffdatenbank!$L$2,FALSE)/(Bodencharakterisierung!$E$13/10)*VLOOKUP(E11,Stoffdatenbank!$A$6:$R$47,Stoffdatenbank!$N$2,FALSE)/1000 -> 1389805.301 | AG11: 686055.4826 | AH11: =VLOOKUP(E11,Schadstoffbelastung!$B$2:$D$46,3,0) -> 0 | AI11: =IF(Y11>0,Schadstoffbelastung!$J$4/Grundwassercharakterisierung!$D$4*AP11,0)*Heterogenität!$D$17 -> 0 | AJ11: =Stoffdatenbank!J12*Bodencharakterisierung!$E$9 -> 1.428 | AK11: =1+AJ11*VLOOKUP(E11,Stoffdatenbank!$A$6:$S$47,Stoffdatenbank!$Q$2,FALSE)/Bodencharakterisierung!$E$8 -> 1.000027361 | AL11: =Stoffdatenbank!L12/Bodencharakterisierung!$E$14 -> 9.11625e-11 | AM11: 9.116000574e-11 | AN11: =0.183*Bodencharakterisierung!$E$13^2/Berechnung1!AM11*Heterogenität!$D$17/3600/24 -> 0.004916740119 | AO11: =Sanierungsdesign!$E$4 -> 450 | AP11: =1+U11*1000*(AH11/U11/1000/Schadstoffbelastung!$J$11/Bodencharakterisierung!$E$8)/O11/lblMainSoilPorosityAct -> 1 | AQ11: 0 | AR11: 0 | AS11: 0 | AT11: 0 | AU11: =(AS11*90)*Heterogenität!$D$17+AI11+AN11 -> 0.004916740119
A12: Gesamtdauer der Sanierung | B12: Tage | C12: =VLOOKUP(C2,E5:AU47,43,0) -> 442.3404429 | E12: Trichlormethan | F12: =Schadstoffbelastung!D11 -> 0 | G12: =F12/Schadstoffbelastung!$J$12*1000 -> 0 | H12: =Schadstoffbelastung!U11/1000/1000 -> 0 | I12: 0 | J12: =Stoffdatenbank!R13 -> 119 | K12: 0 | L12: 0 | M12: 0 | N12: =Stoffdatenbank!J13*0.001*Bodencharakterisierung!$E$9 -> 0.00025605 | O12: =Stoffdatenbank!N13*0.001 -> 8.2 | P12: =Sanierungsdesign!$E$4/1000000 -> 0.00045 | Q12: 0 | R12: 0 | S12: 0 | U12: =Stoffdatenbank!Q13 -> 1.485 | V12: =Stoffdatenbank!L13 -> 8.245e-10 | W12: =Schadstoffbelastung!X11/1000/1000 -> 0 | X12: =Schadstoffbelastung!Y11/1000/1000 -> 0 | Y12: =Schadstoffbelastung!Z11/1000/1000 -> 0 | Z12: =Schadstoffbelastung!W11/1000/1000 -> 0 | AA12: 1 | AB12: 1 | AC12: 0 | AD12: 0 | AE12: =IF(Sanierungsdesign!$E$15="Permanganat",Berechnung1!F12*Berechnung1!AA12,Berechnung1!F12*Berechnung1!AB12) -> 0 | AF12: =VLOOKUP(E12,Stoffdatenbank!$A$6:$R$47,Stoffdatenbank!$L$2,FALSE)/(Bodencharakterisierung!$E$13/10)*VLOOKUP(E12,Stoffdatenbank!$A$6:$R$47,Stoffdatenbank!$N$2,FALSE)/1000 -> 337011.159 | AG12: 166360.2471 | AH12: =VLOOKUP(E12,Schadstoffbelastung!$B$2:$D$46,3,0) -> 0 | AI12: =IF(Y12>0,Schadstoffbelastung!$J$4/Grundwassercharakterisierung!$D$4*AP12,0)*Heterogenität!$D$17 -> 0 | AJ12: =Stoffdatenbank!J13*Bodencharakterisierung!$E$9 -> 0.25605 | AK12: =1+AJ12*VLOOKUP(E12,Stoffdatenbank!$A$6:$S$47,Stoffdatenbank!$Q$2,FALSE)/Bodencharakterisierung!$E$8 -> 1.000005541 | AL12: =Stoffdatenbank!L13/Bodencharakterisierung!$E$14 -> 1.030625e-10 | AM12: 1.03061929e-10 | AN12: =0.183*Bodencharakterisierung!$E$13^2/Berechnung1!AM12*Heterogenität!$D$17/3600/24 -> 0.004348939147 | AO12: =Sanierungsdesign!$E$4 -> 450 | AP12: =1+U12*1000*(AH12/U12/1000/Schadstoffbelastung!$J$11/Bodencharakterisierung!$E$8)/O12/lblMainSoilPorosityAct -> 1 | AQ12: 0 | AR12: 0 | AS12: 0 | AT12: 0 | AU12: =(AS12*90)*Heterogenität!$D$17+AI12+AN12 -> 0.004348939147
E13: Dichlormethan | F13: =Schadstoffbelastung!D12 -> 0 | G13: =F13/Schadstoffbelastung!$J$12*1000 -> 0 | H13: =Schadstoffbelastung!U12/1000/1000 -> 0 | I13: 0 | J13: =Stoffdatenbank!R14 -> 85 | K13: 0 | L13: 0 | M13: 0 | N13: =Stoffdatenbank!J14*0.001*Bodencharakterisierung!$E$9 -> 6.075e-05 | O13: =Stoffdatenbank!N14*0.001 -> 17.799 | P13: =Sanierungsdesign!$E$4/1000000 -> 0.00045 | Q13: 0 | R13: 0 | S13: 0 | U13: =Stoffdatenbank!Q14 -> 1.328 | V13: =Stoffdatenbank!L14 -> 9.83e-10 | W13: =Schadstoffbelastung!X12/1000/1000 -> 0 | X13: =Schadstoffbelastung!Y12/1000/1000 -> 0 | Y13: =Schadstoffbelastung!Z12/1000/1000 -> 0 | Z13: =Schadstoffbelastung!W12/1000/1000 -> 0 | AA13: 1 | AB13: 1 | AC13: 0 | AD13: 0 | AE13: =IF(Sanierungsdesign!$E$15="Permanganat",Berechnung1!F13*Berechnung1!AA13,Berechnung1!F13*Berechnung1!AB13) -> 0 | AF13: =VLOOKUP(E13,Stoffdatenbank!$A$6:$R$47,Stoffdatenbank!$L$2,FALSE)/(Bodencharakterisierung!$E$13/10)*VLOOKUP(E13,Stoffdatenbank!$A$6:$R$47,Stoffdatenbank!$N$2,FALSE)/1000 -> 100525.8795 | AG13: 49623.01606 | AH13: =VLOOKUP(E13,Schadstoffbelastung!$B$2:$D$46,3,0) -> 0 | AI13: =IF(Y13>0,Schadstoffbelastung!$J$4/Grundwassercharakterisierung!$D$4*AP13,0)*Heterogenität!$D$17 -> 0 | AJ13: =Stoffdatenbank!J14*Bodencharakterisierung!$E$9 -> 0.06075 | AK13: =1+AJ13*VLOOKUP(E13,Stoffdatenbank!$A$6:$S$47,Stoffdatenbank!$Q$2,FALSE)/Bodencharakterisierung!$E$8 -> 1.000001554 | AL13: =Stoffdatenbank!L14/Bodencharakterisierung!$E$14 -> 1.22875e-10 | AM13: 1.228748091e-10 | AN13: =0.183*Bodencharakterisierung!$E$13^2/Berechnung1!AM13*Heterogenität!$D$17/3600/24 -> 0.003647696878 | AO13: =Sanierungsdesign!$E$4 -> 450 | AP13: =1+U13*1000*(AH13/U13/1000/Schadstoffbelastung!$J$11/Bodencharakterisierung!$E$8)/O13/lblMainSoilPorosityAct -> 1 | AQ13: 0 | AR13: 0 | AS13: 0 | AT13: 0 | AU13: =(AS13*90)*Heterogenität!$D$17+AI13+AN13 -> 0.003647696878
A14: Relevante Konzentration Grundwasser | B14: µg/L | C14: =VLOOKUP(C2,Schadstoffbelastung!T4:U46,2,0) -> 1633.5625 | E14: 1,1,1-Trichlorethan | F14: =Schadstoffbelastung!D13 -> 0 | G14: =F14/Schadstoffbelastung!$J$12*1000 -> 0 | H14: =Schadstoffbelastung!U13/1000/1000 -> 0 | I14: 0 | J14: =Stoffdatenbank!R15 -> 133.404 | K14: 0 | L14: 0 | M14: 0 | N14: =Stoffdatenbank!J15*0.001*Bodencharakterisierung!$E$9 -> 0.00072 | O14: =Stoffdatenbank!N15*0.001 -> 1.3 | P14: =Sanierungsdesign!$E$4/1000000 -> 0.00045 | Q14: 0 | R14: 0 | S14: 0 | U14: =Stoffdatenbank!Q15 -> 1.339 | V14: =Stoffdatenbank!L15 -> 7.61e-10 | W14: =Schadstoffbelastung!X13/1000/1000 -> 0 | X14: =Schadstoffbelastung!Y13/1000/1000 -> 0 | Y14: =Schadstoffbelastung!Z13/1000/1000 -> 0 | Z14: =Schadstoffbelastung!W13/1000/1000 -> 0 | AA14: 1 | AB14: 1 | AC14: 0 | AD14: 0 | AE14: =IF(Sanierungsdesign!$E$15="Permanganat",Berechnung1!F14*Berechnung1!AA14,Berechnung1!F14*Berechnung1!AB14) -> 0 | AF14: =VLOOKUP(E14,Stoffdatenbank!$A$6:$R$47,Stoffdatenbank!$L$2,FALSE)/(Bodencharakterisierung!$E$13/10)*VLOOKUP(E14,Stoffdatenbank!$A$6:$R$47,Stoffdatenbank!$N$2,FALSE)/1000 -> 845332.0482 | AG14: 417284.8425 | AH14: =VLOOKUP(E14,Schadstoffbelastung!$B$2:$D$46,3,0) -> 0 | AI14: =IF(Y14>0,Schadstoffbelastung!$J$4/Grundwassercharakterisierung!$D$4*AP14,0)*Heterogenität!$D$17 -> 0 | AJ14: =Stoffdatenbank!J15*Bodencharakterisierung!$E$9 -> 0.72 | AK14: =1+AJ14*VLOOKUP(E14,Stoffdatenbank!$A$6:$S$47,Stoffdatenbank!$Q$2,FALSE)/Bodencharakterisierung!$E$8 -> 1.000014771 | AL14: =Stoffdatenbank!L15/Bodencharakterisierung!$E$14 -> 9.5125e-11 | AM14: 9.512359494e-11 | AN14: =0.183*Bodencharakterisierung!$E$13^2/Berechnung1!AM14*Heterogenität!$D$17/3600/24 -> 0.004711870464 | AO14: =Sanierungsdesign!$E$4 -> 450 | AP14: =1+U14*1000*(AH14/U14/1000/Schadstoffbelastung!$J$11/Bodencharakterisierung!$E$8)/O14/lblMainSoilPorosityAct -> 1 | AQ14: 0 | AR14: 0 | AS14: 0 | AT14: 0 | AU14: =(AS14*90)*Heterogenität!$D$17+AI14+AN14 -> 0.004711870464
A15: Mittlere Konzentration Boden | B15: mg/kg | C15: =VLOOKUP(C2,E5:G47,3,0) -> 29.8258002 | E15: 1,1,2-Trichlorethan | F15: =Schadstoffbelastung!D14 -> 0 | G15: =F15/Schadstoffbelastung!$J$12*1000 -> 0 | H15: =Schadstoffbelastung!U14/1000/1000 -> 0 | I15: 0 | J15: =Stoffdatenbank!R16 -> 133.404 | K15: 0 | L15: 0 | M15: 0 | N15: =Stoffdatenbank!J16*0.001*Bodencharakterisierung!$E$9 -> 0.0002182 | O15: =Stoffdatenbank!N16*0.001 -> 4.5 | P15: =Sanierungsdesign!$E$4/1000000 -> 0.00045 | Q15: 0 | R15: 0 | S15: 0 | U15: =Stoffdatenbank!Q16 -> 1.441 | V15: =Stoffdatenbank!L16 -> 6.8e-10 | W15: =Schadstoffbelastung!X14/1000/1000 -> 0 | X15: =Schadstoffbelastung!Y14/1000/1000 -> 0 | Y15: =Schadstoffbelastung!Z14/1000/1000 -> 0 | Z15: =Schadstoffbelastung!W14/1000/1000 -> 0 | AA15: 1 | AB15: 1 | AC15: 0 | AD15: 0 | AE15: =IF(Sanierungsdesign!$E$15="Permanganat",Berechnung1!F15*Berechnung1!AA15,Berechnung1!F15*Berechnung1!AB15) -> 0 | AF15: =VLOOKUP(E15,Stoffdatenbank!$A$6:$R$47,Stoffdatenbank!$L$2,FALSE)/(Bodencharakterisierung!$E$13/10)*VLOOKUP(E15,Stoffdatenbank!$A$6:$R$47,Stoffdatenbank!$N$2,FALSE)/1000 -> 316878.9783 | AG15: 156422.3134 | AH15: =VLOOKUP(E15,Schadstoffbelastung!$B$2:$D$46,3,0) -> 0 | AI15: =IF(Y15>0,Schadstoffbelastung!$J$4/Grundwassercharakterisierung!$D$4*AP15,0)*Heterogenität!$D$17 -> 0 | AJ15: =Stoffdatenbank!J16*Bodencharakterisierung!$E$9 -> 0.2182 | AK15: =1+AJ15*VLOOKUP(E15,Stoffdatenbank!$A$6:$S$47,Stoffdatenbank!$Q$2,FALSE)/Bodencharakterisierung!$E$8 -> 1.000005025 | AL15: =Stoffdatenbank!L16/Bodencharakterisierung!$E$14 -> 8.5e-11 | AM15: 8.499957286e-11 | AN15: =0.183*Bodencharakterisierung!$E$13^2/Berechnung1!AM15*Heterogenität!$D$17/3600/24 -> 0.005273085998 | AO15: =Sanierungsdesign!$E$4 -> 450 | AP15: =1+U15*1000*(AH15/U15/1000/Schadstoffbelastung!$J$11/Bodencharakterisierung!$E$8)/O15/lblMainSoilPorosityAct -> 1 | AQ15: 0 | AR15: 0 | AS15: 0 | AT15: 0 | AU15: =(AS15*90)*Heterogenität!$D$17+AI15+AN15 -> 0.005273085998
E16: 1,1-Dichlorethan | F16: =Schadstoffbelastung!D15 -> 0 | G16: =F16/Schadstoffbelastung!$J$12*1000 -> 0 | H16: =Schadstoffbelastung!U15/1000/1000 -> 0 | I16: 0 | J16: =Stoffdatenbank!R17 -> 98.96 | K16: 0 | L16: 0 | M16: 0 | N16: =Stoffdatenbank!J17*0.001*Bodencharakterisierung!$E$9 -> 0.0001787 | O16: =Stoffdatenbank!N17*0.001 -> 8.69 | P16: =Sanierungsdesign!$E$4/1000000 -> 0.00045 | Q16: 0 | R16: 0 | S16: 0 | U16: =Stoffdatenbank!Q17 -> 1.235 | V16: =Stoffdatenbank!L17 -> 1.14e-09 | W16: =Schadstoffbelastung!X15/1000/1000 -> 0 | X16: =Schadstoffbelastung!Y15/1000/1000 -> 0 | Y16: =Schadstoffbelastung!Z15/1000/1000 -> 0 | Z16: =Schadstoffbelastung!W15/1000/1000 -> 0 | AA16: 1 | AB16: 1 | AC16: 0 | AD16: 0 | AE16: =IF(Sanierungsdesign!$E$15="Permanganat",Berechnung1!F16*Berechnung1!AA16,Berechnung1!F16*Berechnung1!AB16) -> 0 | AF16: =VLOOKUP(E16,Stoffdatenbank!$A$6:$R$47,Stoffdatenbank!$L$2,FALSE)/(Bodencharakterisierung!$E$13/10)*VLOOKUP(E16,Stoffdatenbank!$A$6:$R$47,Stoffdatenbank!$N$2,FALSE)/1000 -> 267214.6313 | AG16: 131906.2913 | AH16: =VLOOKUP(E16,Schadstoffbelastung!$B$2:$D$46,3,0) -> 0 | AI16: =IF(Y16>0,Schadstoffbelastung!$J$4/Grundwassercharakterisierung!$D$4*AP16,0)*Heterogenität!$D$17 -> 0 | AJ16: =Stoffdatenbank!J17*Bodencharakterisierung!$E$9 -> 0.1787 | AK16: =1+AJ16*VLOOKUP(E16,Stoffdatenbank!$A$6:$S$47,Stoffdatenbank!$Q$2,FALSE)/Bodencharakterisierung!$E$8 -> 1.000004711 | AL16: =Stoffdatenbank!L17/Bodencharakterisierung!$E$14 -> 1.425e-10 | AM16: 1.424993287e-10 | AN16: =0.183*Bodencharakterisierung!$E$13^2/Berechnung1!AM16*Heterogenität!$D$17/3600/24 -> 0.003145348555 | AO16: =Sanierungsdesign!$E$4 -> 450 | AP16: =1+U16*1000*(AH16/U16/1000/Schadstoffbelastung!$J$11/Bodencharakterisierung!$E$8)/O16/lblMainSoilPorosityAct -> 1 | AQ16: =G16/AJ16*1000*0.4 -> 0 | AR16: 0 | AS16: 0 | AT16: 0 | AU16: =(AS16*90)*Heterogenität!$D$17+AI16+AN16 -> 0.003145348555
A17: Konzentration Residualphase | B17: mg/kg | C17: =VLOOKUP(C2,E5:Y47,21,0)*1000*1000 -> 0 | E17: 1,2-Dichlorethan | F17: =Schadstoffbelastung!D16 -> 0 | G17: =F17/Schadstoffbelastung!$J$12*1000 -> 0 | H17: =Schadstoffbelastung!U16/1000/1000 -> 0 | I17: =X17/N17 -> 0 | J17: =Stoffdatenbank!R18 -> 98.96 | K17: 0 | L17: 0 | M17: 0 | N17: =Stoffdatenbank!J18*0.001*Bodencharakterisierung!$E$9 -> 0.000198 | O17: =Stoffdatenbank!N18*0.001 -> 8.69 | P17: =Sanierungsdesign!$E$4/1000000 -> 0.00045 | Q17: 0 | R17: 0 | S17: 0 | U17: =Stoffdatenbank!Q18 -> 1.235 | V17: =Stoffdatenbank!L18 -> 9.2e-10 | W17: =Schadstoffbelastung!X16/1000/1000 -> 0 | X17: =Schadstoffbelastung!Y16/1000/1000 -> 0 | Y17: =Schadstoffbelastung!Z16/1000/1000 -> 0 | Z17: =Schadstoffbelastung!W16/1000/1000 -> 0 | AA17: 1 | AB17: 1 | AC17: 0 | AD17: 0 | AE17: =IF(Sanierungsdesign!$E$15="Permanganat",Berechnung1!F17*Berechnung1!AA17,Berechnung1!F17*Berechnung1!AB17) -> 0 | AF17: =VLOOKUP(E17,Stoffdatenbank!$A$6:$R$47,Stoffdatenbank!$L$2,FALSE)/(Bodencharakterisierung!$E$13/10)*VLOOKUP(E17,Stoffdatenbank!$A$6:$R$47,Stoffdatenbank!$N$2,FALSE)/1000 -> 338451.1807 | AG17: 167071.0911 | AH17: =VLOOKUP(E17,Schadstoffbelastung!$B$2:$D$46,3,0) -> 0 | AI17: =IF(Y17>0,Schadstoffbelastung!$J$4/Grundwassercharakterisierung!$D$4*AP17,0)*Heterogenität!$D$17 -> 0 | AJ17: =Stoffdatenbank!J18*Bodencharakterisierung!$E$9 -> 0.198 | AK17: =1+AJ17*VLOOKUP(E17,Stoffdatenbank!$A$6:$S$47,Stoffdatenbank!$Q$2,FALSE)/Bodencharakterisierung!$E$8 -> 1.000004698 | AL17: =Stoffdatenbank!L18/Bodencharakterisierung!$E$14 -> 1.15e-10 | AM17: 1.149994597e-10 | AN17: =0.183*Bodencharakterisierung!$E$13^2/Berechnung1!AM17*Heterogenität!$D$17/3600/24 -> 0.003897497071 | AO17: =Sanierungsdesign!$E$4 -> 450 | AP17: =1+U17*1000*(AH17/U17/1000/Schadstoffbelastung!$J$11/Bodencharakterisierung!$E$8)/O17/lblMainSoilPorosityAct -> 1 | AQ17: 0 | AR17: =IFERROR(LOG(AO17/AQ17,0.4),0) -> 0 | AS17: 0 | AT17: =G17/AJ17*1000*0.4^AS17 -> 0 | AU17: =(AS17*90)*Heterogenität!$D$17+AI17+AN17 -> 0.003897497071
A18: Konzentration Sorbierte Phase | B18: mg/kg | C18: =VLOOKUP(C2,E5:Y47,20,0)*1000*1000-C17 -> 29.8258002 | E18: LCKW | F18: =Schadstoffbelastung!D17 -> 330.219926 | G18: =SUM(G5:G17) -> 29.8258002 | H18: =Schadstoffbelastung!U17/1000/1000 -> 0.0016335625 | I18: =IFERROR(X18/N18,0) -> 0.01752763408 | K18: =SUM(K5:K17) -> 2.047977764 | L18: =SUM(L5:L17) -> 1 | N18: =SUMPRODUCT($L5:$L17,N5:N17) -> 0.00170164439 | O18: =(L5*O5)+(L6*O6)+(L7*O7)+(L8*O8)+(L9*O9)+(L10*O10)+(L11*O11)+(L12*O12)+(L13*O13)+(L14*O14)+(L15*O15)+(L16*O16)+(L17*O17) -> 0.3050273367 | P18: =Sanierungsdesign!$E$4/1000000 -> 0.00045 | Q18: =H18/P18 -> 3.630138889 | U18: =SUMPRODUCT($L5:$L17,U5:U17) -> 1.597042834 | V18: =SUMPRODUCT($L5:$L17,V5:V17) -> 7.521628689e-10 | W18: =IF(Y18=0,SUM(W5:W17),X18-Y18) -> 0.000376548648 | X18: =SUM(X5:X17) -> 2.98258002e-05 | Y18: =SUM(Y5:Y17) -> 0 | Z18: =SUM(Z5:Z17) -> 0.6555970963 | AA18: =SUMPRODUCT($L5:$L17,AA5:AA17) -> 1.148778257 | AB18: =SUMPRODUCT($L5:$L17,AB5:AB17) -> 1 | AC18: 1 | AD18: 0 | AE18: =IF(Sanierungsdesign!$E$15="Permanganat",Berechnung1!F18*Berechnung1!AA18,Berechnung1!F18*Berechnung1!AB18) -> 379.349471 | AI18: =IF(Y18>0,Schadstoffbelastung!$J$4/Grundwassercharakterisierung!$D$4*AP18,0)*Heterogenität!$D$17 -> 0 | AJ18: =SUMPRODUCT(L5:L17,AJ5:AJ17) -> 1.70164439 | AN18: =MAX(AN5:AN17) -> 0.006203632911 | AO18: =Sanierungsdesign!$E$4 -> 450 | AP18: =MAX(AP5:AP17) -> 5.103863281 | AQ18: =IFERROR(G18/AJ18*1000*0.4,0) -> 7011.053632 | AR18: =IFERROR(LOG(AO18/AQ18,0.4),0) -> 2.996860707 | AS18: 4 | AT18: =IFERROR(G18/AJ18*1000*0.4^AS18,0) -> 448.7074324 | AU18: =(AS18*90)*Heterogenität!$D$17+AI18+AN18 -> 442.3404429
A19: Sanierungszielwert | B19: µg/L | C19: =VLOOKUP(C2,E5:AO46,37,0) -> 450 | E19: Benzol | F19: =Schadstoffbelastung!D18 -> 0 | G19: =F19/Schadstoffbelastung!$J$12*1000 -> 0 | H19: =Schadstoffbelastung!U18/1000/1000 -> 0 | I19: =X19/N19 -> 0 | J19: =Stoffdatenbank!R20 -> 78 | K19: =F19/J19 -> 0 | L19: =IFERROR(K19/$K$36,0) -> 0 | M19: =IF(L19>0.05,1,0) -> 0 | N19: =Stoffdatenbank!J20*0.001*Bodencharakterisierung!$E$9 -> 0.0004 | O19: =Stoffdatenbank!N20*0.001 -> 1.77 | P19: =Sanierungsdesign!$E$5/1000000 -> 0 | Q19: =H19/P19 ->  | R19: =IF(AND(M19=1,Q19>1),1,0) ->  | S19: =IF((R19=1),((Q19)^0.5*N19)/((0.15^1.2)*(O19^0.9)),0) ->  | T19: =IF((S19=MAX($S$5:$S$46)),"Ja","0") ->  | U19: =Stoffdatenbank!Q20 -> 0.877 | V19: =Stoffdatenbank!L20 -> 8.15e-10 | W19: =Schadstoffbelastung!X18/1000/1000 -> 0 | X19: =Schadstoffbelastung!Y18/1000/1000 -> 0 | Y19: =Schadstoffbelastung!Z18/1000/1000 -> 0 | Z19: =Schadstoffbelastung!W18/1000/1000 -> 0 | AA19: 1 | AB19: 1 | AC19: 0 | AD19: 0 | AE19: =IF(Sanierungsdesign!$E$15="Permanganat",Berechnung1!F19*Berechnung1!AA19,Berechnung1!F19*Berechnung1!AB19) -> 0 | AF19: =VLOOKUP(E19,Stoffdatenbank!$A$6:$R$47,Stoffdatenbank!$L$2,FALSE)/(Bodencharakterisierung!$E$13/10)*VLOOKUP(E19,Stoffdatenbank!$A$6:$R$47,Stoffdatenbank!$N$2,FALSE)/1000 -> 837821.6867 | AG19: =AF19*$C$7 -> 413577.471 | AH19: =VLOOKUP(E19,Schadstoffbelastung!$B$2:$D$46,3,FALSE) -> 0 | AI19: =IF(Y19>0,Schadstoffbelastung!$J$4/Grundwassercharakterisierung!$D$4*AP19,0)*Heterogenität!$D$17 -> 0 | AJ19: =Stoffdatenbank!J20*Bodencharakterisierung!$E$9 -> 0.4 | AK19: =1+AJ19*VLOOKUP(E19,Stoffdatenbank!$A$6:$S$47,Stoffdatenbank!$Q$2,FALSE)/Bodencharakterisierung!$E$8 -> 1.0000092 | AL19: =Stoffdatenbank!L20/Bodencharakterisierung!$E$14 -> 1.01875e-10 | AM19: =AL19/AK19 -> 1.018740628e-10 | AN19: =0.183*Bodencharakterisierung!$E$13^2/Berechnung1!AM19*Heterogenität!$D$17/3600/24 -> 0.004399648402 | AO19: =Sanierungsdesign!$E$5 -> 0 | AP19: =1+U19*1000*(AH19/U19/1000/Schadstoffbelastung!$J$11/Bodencharakterisierung!$E$8)/O19/lblMainSoilPorosityAct -> 1 | AQ19: =G19/AJ19*1000*0.4 -> 0 | AR19: =IFERROR(LOG(AO19/AQ19,0.4),0) -> 0 | AS19: =IF(F19=0,0,IF(AR19<0,1,1+ROUNDUP(AR19,0))) -> 0 | AT19: 0 | AU19: =(AS19*90)*Heterogenität!$D$17+AI19+AN19 -> 0.004399648402
E20: Toluol | F20: =Schadstoffbelastung!D19 -> 0 | G20: =F20/Schadstoffbelastung!$J$12*1000 -> 0 | H20: =Schadstoffbelastung!U19/1000/1000 -> 0 | I20: 0 | J20: =Stoffdatenbank!R21 -> 92 | K20: =F20/J20 -> 0 | L20: =IFERROR(K20/$K$36,0) -> 0 | M20: =IF(L20>0.05,1,0) -> 0 | N20: =Stoffdatenbank!J21*0.001*Bodencharakterisierung!$E$9 -> 0.0015 | O20: =Stoffdatenbank!N21*0.001 -> 0.52 | P20: =Sanierungsdesign!$E$5/1000000 -> 0 | S20: =IF((R20=1),((Q20)^0.5*N20)/((0.15^1.2)*(O20^0.9)),0) ->  | U20: =Stoffdatenbank!Q21 -> 0.87 | V20: =Stoffdatenbank!L21 -> 7.34e-10 | W20: =Schadstoffbelastung!X19/1000/1000 -> 0 | X20: =Schadstoffbelastung!Y19/1000/1000 -> 0 | Y20: =Schadstoffbelastung!Z19/1000/1000 -> 0 | Z20: =Schadstoffbelastung!W19/1000/1000 -> 0 | AA20: 1 | AB20: 1 | AC20: 0 | AD20: 0 | AE20: =IF(Sanierungsdesign!$E$15="Permanganat",Berechnung1!F20*Berechnung1!AA20,Berechnung1!F20*Berechnung1!AB20) -> 0 | AF20: =VLOOKUP(E20,Stoffdatenbank!$A$6:$R$47,Stoffdatenbank!$L$2,FALSE)/(Bodencharakterisierung!$E$13/10)*VLOOKUP(E20,Stoffdatenbank!$A$6:$R$47,Stoffdatenbank!$N$2,FALSE)/1000 -> 2820867.47 | AG20: 1392476.768 | AH20: =VLOOKUP(E20,Schadstoffbelastung!$B$2:$D$46,3,FALSE) -> 0 | AI20: =IF(Y20>0,Schadstoffbelastung!$J$4/Grundwassercharakterisierung!$D$4*AP20,0)*Heterogenität!$D$17 -> 0 | AJ20: =Stoffdatenbank!J21*Bodencharakterisierung!$E$9 -> 1.5 | AK20: =1+AJ20*VLOOKUP(E20,Stoffdatenbank!$A$6:$S$47,Stoffdatenbank!$Q$2,FALSE)/Bodencharakterisierung!$E$8 -> 1.000031364 | AL20: =Stoffdatenbank!L21/Bodencharakterisierung!$E$14 -> 9.175e-11 | AM20: 9.174712248e-11 | AN20: =0.183*Bodencharakterisierung!$E$13^2/Berechnung1!AM20*Heterogenität!$D$17/3600/24 -> 0.004885276457 | AO20: =Sanierungsdesign!$E$5 -> 0 | AP20: =1+U20*1000*(AH20/U20/1000/Schadstoffbelastung!$J$11/Bodencharakterisierung!$E$8)/O20/lblMainSoilPorosityAct -> 1 | AQ20: 0 | AR20: =IFERROR(LOG(AO20/AQ20,0.4),0) -> 0 | AS20: 0 | AT20: 0 | AU20: =(AS20*90)*Heterogenität!$D$17+AI20+AN20 -> 0.004885276457
A21: Bedarf an OxMittel für SOD-Abdeckung | B21: kg | C21: =Schadstoffbelastung!J12*C5 -> 22143.24 | E21: Ethylbenzol | F21: =Schadstoffbelastung!D20 -> 0 | G21: =F21/Schadstoffbelastung!$J$12*1000 -> 0 | H21: =Schadstoffbelastung!U20/1000/1000 -> 0 | I21: 0 | J21: =Stoffdatenbank!R22 -> 106 | K21: 0 | L21: 0 | M21: =IF(L21>0.05,1,0) -> 0 | N21: =Stoffdatenbank!J22*0.001*Bodencharakterisierung!$E$9 -> 0.0055 | O21: =Stoffdatenbank!N22*0.001 -> 0.17 | P21: =Sanierungsdesign!$E$5/1000000 -> 0 | S21: =IF((R21=1),((Q21)^0.5*N21)/((0.15^1.2)*(O21^0.9)),0) ->  | U21: =Stoffdatenbank!Q22 -> 0.866 | V21: =Stoffdatenbank!L22 -> 6.76e-10 | W21: =Schadstoffbelastung!X20/1000/1000 -> 0 | X21: =Schadstoffbelastung!Y20/1000/1000 -> 0 | Y21: =Schadstoffbelastung!Z20/1000/1000 -> 0 | Z21: =Schadstoffbelastung!W20/1000/1000 -> 0 | AA21: 1 | AB21: 1 | AC21: 0 | AD21: 0 | AE21: =IF(Sanierungsdesign!$E$15="Permanganat",Berechnung1!F21*Berechnung1!AA21,Berechnung1!F21*Berechnung1!AB21) -> 0 | AF21: =VLOOKUP(E21,Stoffdatenbank!$A$6:$R$47,Stoffdatenbank!$L$2,FALSE)/(Bodencharakterisierung!$E$13/10)*VLOOKUP(E21,Stoffdatenbank!$A$6:$R$47,Stoffdatenbank!$N$2,FALSE)/1000 -> 10251469.88 | AG21: 5060476.535 | AH21: =VLOOKUP(E21,Schadstoffbelastung!$B$2:$D$46,3,FALSE) -> 0 | AI21: =IF(Y21>0,Schadstoffbelastung!$J$4/Grundwassercharakterisierung!$D$4*AP21,0)*Heterogenität!$D$17 -> 0 | AJ21: =Stoffdatenbank!J22*Bodencharakterisierung!$E$9 -> 5.5 | AK21: =1+AJ21*VLOOKUP(E21,Stoffdatenbank!$A$6:$S$47,Stoffdatenbank!$Q$2,FALSE)/Bodencharakterisierung!$E$8 -> 1.0001065 | AL21: =Stoffdatenbank!L22/Bodencharakterisierung!$E$14 -> 8.45e-11 | AM21: 8.449100171e-11 | AN21: =0.183*Bodencharakterisierung!$E$13^2/Berechnung1!AM21*Heterogenität!$D$17/3600/24 -> 0.005304825939 | AO21: =Sanierungsdesign!$E$5 -> 0 | AP21: =1+U21*1000*(AH21/U21/1000/Schadstoffbelastung!$J$11/Bodencharakterisierung!$E$8)/O21/lblMainSoilPorosityAct -> 1 | AQ21: 0 | AR21: 0 | AS21: 0 | AT21: 0 | AU21: =(AS21*90)*Heterogenität!$D$17+AI21+AN21 -> 0.005304825939
A22: Lieferung OxMittel je Injektion | B22: kg | C22: =Sanierungsdesign!E13*Sanierungsdesign!E17 -> 2657.454545 | E22: o-Xylol | F22: =Schadstoffbelastung!D21 -> 0 | G22: =F22/Schadstoffbelastung!$J$12*1000 -> 0 | H22: =Schadstoffbelastung!U21/1000/1000 -> 0 | I22: 0 | J22: =Stoffdatenbank!R23 -> 106 | K22: 0 | L22: 0 | M22: =IF(L22>0.05,1,0) -> 0 | N22: =Stoffdatenbank!J23*0.001*Bodencharakterisierung!$E$9 -> 0.00415 | O22: =Stoffdatenbank!N23*0.001 -> 0.18 | P22: =Sanierungsdesign!$E$5/1000000 -> 0 | U22: =Stoffdatenbank!Q23 -> 0.88 | V22: =Stoffdatenbank!L23 -> 6.8e-10 | W22: =Schadstoffbelastung!X21/1000/1000 -> 0 | X22: =Schadstoffbelastung!Y21/1000/1000 -> 0 | Y22: =Schadstoffbelastung!Z21/1000/1000 -> 0 | Z22: =Schadstoffbelastung!W21/1000/1000 -> 0 | AA22: 1 | AB22: 1 | AC22: 0 | AD22: 0 | AE22: =IF(Sanierungsdesign!$E$15="Permanganat",Berechnung1!F22*Berechnung1!AA22,Berechnung1!F22*Berechnung1!AB22) -> 0 | AF22: =VLOOKUP(E22,Stoffdatenbank!$A$6:$R$47,Stoffdatenbank!$L$2,FALSE)/(Bodencharakterisierung!$E$13/10)*VLOOKUP(E22,Stoffdatenbank!$A$6:$R$47,Stoffdatenbank!$N$2,FALSE)/1000 -> 7924600 | AG22: 3911853.892 | AH22: =VLOOKUP(E22,Schadstoffbelastung!$B$2:$D$46,3,FALSE) -> 0 | AI22: =IF(Y22>0,Schadstoffbelastung!$J$4/Grundwassercharakterisierung!$D$4*AP22,0)*Heterogenität!$D$17 -> 0 | AJ22: =Stoffdatenbank!J23*Bodencharakterisierung!$E$9 -> 4.15 | AK22: =1+AJ22*VLOOKUP(E22,Stoffdatenbank!$A$6:$S$47,Stoffdatenbank!$Q$2,FALSE)/Bodencharakterisierung!$E$8 -> 1.000080736 | AL22: =Stoffdatenbank!L23/Bodencharakterisierung!$E$14 -> 8.5e-11 | AM22: 8.499313796e-11 | AN22: =0.183*Bodencharakterisierung!$E$13^2/Berechnung1!AM22*Heterogenität!$D$17/3600/24 -> 0.005273485227 | AO22: =Sanierungsdesign!$E$5 -> 0 | AP22: =1+U22*1000*(AH22/U22/1000/Schadstoffbelastung!$J$11/Bodencharakterisierung!$E$8)/O22/lblMainSoilPorosityAct -> 1 | AQ22: 0 | AR22: 0 | AS22: 0 | AT22: 0 | AU22: =(AS22*90)*Heterogenität!$D$17+AI22+AN22 -> 0.005273485227
A23: Bedarf an Injektionenskampagnen für SOD-Abdeckung | B23: - | C23: =ROUNDUP((C21/C22)/Sanierungsdesign!E11,0) -> 1 | E23: m-Xylol | F23: =Schadstoffbelastung!D22 -> 0 | G23: =F23/Schadstoffbelastung!$J$12*1000 -> 0 | H23: =Schadstoffbelastung!U22/1000/1000 -> 0 | I23: 0 | J23: =Stoffdatenbank!R24 -> 106 | K23: 0 | L23: 0 | M23: 0 | N23: =Stoffdatenbank!J24*0.001*Bodencharakterisierung!$E$9 -> 0.0049 | O23: =Stoffdatenbank!N24*0.001 -> 0.174 | P23: =Sanierungsdesign!$E$5/1000000 -> 0 | U23: =Stoffdatenbank!Q24 -> 0.864 | V23: =Stoffdatenbank!L24 -> 6.71e-10 | W23: =Schadstoffbelastung!X22/1000/1000 -> 0 | X23: =Schadstoffbelastung!Y22/1000/1000 -> 0 | Y23: =Schadstoffbelastung!Z22/1000/1000 -> 0 | Z23: =Schadstoffbelastung!W22/1000/1000 -> 0 | AA23: 1 | AB23: 1 | AC23: 0 | AD23: 0 | AE23: =IF(Sanierungsdesign!$E$15="Permanganat",Berechnung1!F23*Berechnung1!AA23,Berechnung1!F23*Berechnung1!AB23) -> 0 | AF23: =VLOOKUP(E23,Stoffdatenbank!$A$6:$R$47,Stoffdatenbank!$L$2,FALSE)/(Bodencharakterisierung!$E$13/10)*VLOOKUP(E23,Stoffdatenbank!$A$6:$R$47,Stoffdatenbank!$N$2,FALSE)/1000 -> 9133836.145 | AG23: 4508774.257 | AH23: =VLOOKUP(E23,Schadstoffbelastung!$B$2:$D$46,3,FALSE) -> 0 | AI23: =IF(Y23>0,Schadstoffbelastung!$J$4/Grundwassercharakterisierung!$D$4*AP23,0)*Heterogenität!$D$17 -> 0 | AJ23: =Stoffdatenbank!J24*Bodencharakterisierung!$E$9 -> 4.9 | AK23: =1+AJ23*VLOOKUP(E23,Stoffdatenbank!$A$6:$S$47,Stoffdatenbank!$Q$2,FALSE)/Bodencharakterisierung!$E$8 -> 1.000094436 | AL23: =Stoffdatenbank!L24/Bodencharakterisierung!$E$14 -> 8.3875e-11 | AM23: 8.38670799e-11 | AN23: =0.183*Bodencharakterisierung!$E$13^2/Berechnung1!AM23*Heterogenität!$D$17/3600/24 -> 0.005344290728 | AO23: =Sanierungsdesign!$E$5 -> 0 | AP23: =1+U23*1000*(AH23/U23/1000/Schadstoffbelastung!$J$11/Bodencharakterisierung!$E$8)/O23/lblMainSoilPorosityAct -> 1 | AQ23: 0 | AR23: 0 | AS23: 0 | AT23: 0 | AU23: =(AS23*90)*Heterogenität!$D$17+AI23+AN23 -> 0.005344290728
E24: p-Xylol | F24: =Schadstoffbelastung!D23 -> 0 | G24: =F24/Schadstoffbelastung!$J$12*1000 -> 0 | H24: =Schadstoffbelastung!U23/1000/1000 -> 0 | I24: 0 | J24: =Stoffdatenbank!R25 -> 106 | K24: 0 | L24: 0 | M24: 0 | N24: =Stoffdatenbank!J25*0.001*Bodencharakterisierung!$E$9 -> 0.0044 | O24: =Stoffdatenbank!N25*0.001 -> 0.2 | P24: =Sanierungsdesign!$E$5/1000000 -> 0 | U24: =Stoffdatenbank!Q25 -> 0.861 | V24: =Stoffdatenbank!L25 -> 6.71e-10 | W24: =Schadstoffbelastung!X23/1000/1000 -> 0 | X24: =Schadstoffbelastung!Y23/1000/1000 -> 0 | Y24: =Schadstoffbelastung!Z23/1000/1000 -> 0 | Z24: =Schadstoffbelastung!W23/1000/1000 -> 0 | AA24: 1 | AB24: 1 | AC24: 0 | AD24: 0 | AE24: =IF(Sanierungsdesign!$E$15="Permanganat",Berechnung1!F24*Berechnung1!AA24,Berechnung1!F24*Berechnung1!AB24) -> 0 | AF24: =VLOOKUP(E24,Stoffdatenbank!$A$6:$R$47,Stoffdatenbank!$L$2,FALSE)/(Bodencharakterisierung!$E$13/10)*VLOOKUP(E24,Stoffdatenbank!$A$6:$R$47,Stoffdatenbank!$N$2,FALSE)/1000 -> 8401985.542 | AG24: 4147507.741 | AH24: =VLOOKUP(E24,Schadstoffbelastung!$B$2:$D$46,3,FALSE) -> 0 | AI24: =IF(Y24>0,Schadstoffbelastung!$J$4/Grundwassercharakterisierung!$D$4*AP24,0)*Heterogenität!$D$17 -> 0 | AJ24: =Stoffdatenbank!J25*Bodencharakterisierung!$E$9 -> 4.4 | AK24: =1+AJ24*VLOOKUP(E24,Stoffdatenbank!$A$6:$S$47,Stoffdatenbank!$Q$2,FALSE)/Bodencharakterisierung!$E$8 -> 1.0000848 | AL24: =Stoffdatenbank!L25/Bodencharakterisierung!$E$14 -> 8.3875e-11 | AM24: 8.3867888e-11 | AN24: =0.183*Bodencharakterisierung!$E$13^2/Berechnung1!AM24*Heterogenität!$D$17/3600/24 -> 0.005344239233 | AO24: =Sanierungsdesign!$E$5 -> 0 | AP24: =1+U24*1000*(AH24/U24/1000/Schadstoffbelastung!$J$11/Bodencharakterisierung!$E$8)/O24/lblMainSoilPorosityAct -> 1 | AQ24: 0 | AR24: 0 | AS24: 0 | AT24: 0 | AU24: =(AS24*90)*Heterogenität!$D$17+AI24+AN24 -> 0.005344239233
E25: n-Propylbenzol | F25: =Schadstoffbelastung!D24 -> 0 | G25: =F25/Schadstoffbelastung!$J$12*1000 -> 0 | H25: =Schadstoffbelastung!U24/1000/1000 -> 0 | I25: 0 | J25: =Stoffdatenbank!R26 -> 120 | K25: 0 | L25: 0 | M25: 0 | N25: =Stoffdatenbank!J26*0.001*Bodencharakterisierung!$E$9 -> 0.0049 | O25: =Stoffdatenbank!N26*0.001 -> 0.06 | P25: =Sanierungsdesign!$E$5/1000000 -> 0 | U25: =Stoffdatenbank!Q26 -> 0.86 | V25: =Stoffdatenbank!L26 -> 6.2e-10 | W25: =Schadstoffbelastung!X24/1000/1000 -> 0 | X25: =Schadstoffbelastung!Y24/1000/1000 -> 0 | Y25: =Schadstoffbelastung!Z24/1000/1000 -> 0 | Z25: =Schadstoffbelastung!W24/1000/1000 -> 0 | AA25: 1 | AB25: 1 | AC25: 0 | AD25: 0 | AE25: =IF(Sanierungsdesign!$E$15="Permanganat",Berechnung1!F25*Berechnung1!AA25,Berechnung1!F25*Berechnung1!AB25) -> 0 | AF25: =VLOOKUP(E25,Stoffdatenbank!$A$6:$R$47,Stoffdatenbank!$L$2,FALSE)/(Bodencharakterisierung!$E$13/10)*VLOOKUP(E25,Stoffdatenbank!$A$6:$R$47,Stoffdatenbank!$N$2,FALSE)/1000 -> 9052130.12 | AG25: 4468441.366 | AH25: =VLOOKUP(E25,Schadstoffbelastung!$B$2:$D$46,3,FALSE) -> 0 | AI25: =IF(Y25>0,Schadstoffbelastung!$J$4/Grundwassercharakterisierung!$D$4*AP25,0)*Heterogenität!$D$17 -> 0 | AJ25: =Stoffdatenbank!J26*Bodencharakterisierung!$E$9 -> 4.9 | AK25: =1+AJ25*VLOOKUP(E25,Stoffdatenbank!$A$6:$S$47,Stoffdatenbank!$Q$2,FALSE)/Bodencharakterisierung!$E$8 -> 1.000089091 | AL25: =Stoffdatenbank!L26/Bodencharakterisierung!$E$14 -> 7.75e-11 | AM25: 7.749309607e-11 | AN25: =0.183*Bodencharakterisierung!$E$13^2/Berechnung1!AM25*Heterogenität!$D$17/3600/24 -> 0.005783870824 | AO25: =Sanierungsdesign!$E$5 -> 0 | AP25: =1+U25*1000*(AH25/U25/1000/Schadstoffbelastung!$J$11/Bodencharakterisierung!$E$8)/O25/lblMainSoilPorosityAct -> 1 | AQ25: 0 | AR25: 0 | AS25: 0 | AT25: 0 | AU25: =(AS25*90)*Heterogenität!$D$17+AI25+AN25 -> 0.005783870824
E26: Isopropylbenzol | F26: =Schadstoffbelastung!D25 -> 0 | G26: =F26/Schadstoffbelastung!$J$12*1000 -> 0 | H26: =Schadstoffbelastung!U25/1000/1000 -> 0 | I26: 0 | J26: =Stoffdatenbank!R27 -> 120 | K26: 0 | L26: 0 | M26: 0 | N26: =Stoffdatenbank!J27*0.001*Bodencharakterisierung!$E$9 -> 0.0047 | O26: =Stoffdatenbank!N27*0.001 -> 0.05 | P26: =Sanierungsdesign!$E$5/1000000 -> 0 | U26: =Stoffdatenbank!Q27 -> 0.862 | V26: =Stoffdatenbank!L27 -> 6.2e-10 | W26: =Schadstoffbelastung!X25/1000/1000 -> 0 | X26: =Schadstoffbelastung!Y25/1000/1000 -> 0 | Y26: =Schadstoffbelastung!Z25/1000/1000 -> 0 | Z26: =Schadstoffbelastung!W25/1000/1000 -> 0 | AA26: 1 | AB26: 1 | AC26: 0 | AD26: 0 | AE26: =IF(Sanierungsdesign!$E$15="Permanganat",Berechnung1!F26*Berechnung1!AA26,Berechnung1!F26*Berechnung1!AB26) -> 0 | AF26: =VLOOKUP(E26,Stoffdatenbank!$A$6:$R$47,Stoffdatenbank!$L$2,FALSE)/(Bodencharakterisierung!$E$13/10)*VLOOKUP(E26,Stoffdatenbank!$A$6:$R$47,Stoffdatenbank!$N$2,FALSE)/1000 -> 8305296.386 | AG26: 4099778.663 | AH26: =VLOOKUP(E26,Schadstoffbelastung!$B$2:$D$46,3,FALSE) -> 0 | AI26: =IF(Y26>0,Schadstoffbelastung!$J$4/Grundwassercharakterisierung!$D$4*AP26,0)*Heterogenität!$D$17 -> 0 | AJ26: =Stoffdatenbank!J27*Bodencharakterisierung!$E$9 -> 4.7 | AK26: =1+AJ26*VLOOKUP(E26,Stoffdatenbank!$A$6:$S$47,Stoffdatenbank!$Q$2,FALSE)/Bodencharakterisierung!$E$8 -> 1.000085455 | AL26: =Stoffdatenbank!L27/Bodencharakterisierung!$E$14 -> 7.75e-11 | AM26: 7.749337784e-11 | AN26: =0.183*Bodencharakterisierung!$E$13^2/Berechnung1!AM26*Heterogenität!$D$17/3600/24 -> 0.005783849794 | AO26: =Sanierungsdesign!$E$5 -> 0 | AP26: =1+U26*1000*(AH26/U26/1000/Schadstoffbelastung!$J$11/Bodencharakterisierung!$E$8)/O26/lblMainSoilPorosityAct -> 1 | AQ26: 0 | AR26: 0 | AS26: 0 | AT26: 0 | AU26: =(AS26*90)*Heterogenität!$D$17+AI26+AN26 -> 0.005783849794
E27: o-Ethyltoluol | F27: =Schadstoffbelastung!D26 -> 0 | G27: =F27/Schadstoffbelastung!$J$12*1000 -> 0 | H27: =Schadstoffbelastung!U26/1000/1000 -> 0 | I27: 0 | J27: =Stoffdatenbank!R28 -> 120 | K27: 0 | L27: 0 | M27: 0 | N27: =Stoffdatenbank!J28*0.001*Bodencharakterisierung!$E$9 -> 0.00395 | O27: =Stoffdatenbank!N28*0.001 -> 0.093 | P27: =Sanierungsdesign!$E$5/1000000 -> 0 | S27: =IF((R27=1),((Q27)^0.5*N27)/((0.15^1.2)*(O27^0.9)),0) ->  | U27: =Stoffdatenbank!Q28 -> 0.88 | V27: =Stoffdatenbank!L28 -> 6.3e-10 | W27: =Schadstoffbelastung!X26/1000/1000 -> 0 | X27: =Schadstoffbelastung!Y26/1000/1000 -> 0 | Y27: =Schadstoffbelastung!Z26/1000/1000 -> 0 | Z27: =Schadstoffbelastung!W26/1000/1000 -> 0 | AA27: 1 | AB27: 1 | AC27: 0 | AD27: 0 | AE27: =IF(Sanierungsdesign!$E$15="Permanganat",Berechnung1!F27*Berechnung1!AA27,Berechnung1!F27*Berechnung1!AB27) -> 0 | AF27: =VLOOKUP(E27,Stoffdatenbank!$A$6:$R$47,Stoffdatenbank!$L$2,FALSE)/(Bodencharakterisierung!$E$13/10)*VLOOKUP(E27,Stoffdatenbank!$A$6:$R$47,Stoffdatenbank!$N$2,FALSE)/1000 -> 7524036.145 | AG27: 3714121.858 | AH27: =VLOOKUP(E27,Schadstoffbelastung!$B$2:$D$46,3,FALSE) -> 0 | AI27: =IF(Y27>0,Schadstoffbelastung!$J$4/Grundwassercharakterisierung!$D$4*AP27,0)*Heterogenität!$D$17 -> 0 | AJ27: =Stoffdatenbank!J28*Bodencharakterisierung!$E$9 -> 3.95 | AK27: =1+AJ27*VLOOKUP(E27,Stoffdatenbank!$A$6:$S$47,Stoffdatenbank!$Q$2,FALSE)/Bodencharakterisierung!$E$8 -> 1.000071818 | AL27: =Stoffdatenbank!L28/Bodencharakterisierung!$E$14 -> 7.875e-11 | AM27: 7.874434472e-11 | AN27: =0.183*Bodencharakterisierung!$E$13^2/Berechnung1!AM27*Heterogenität!$D$17/3600/24 -> 0.005691965042 | AO27: =Sanierungsdesign!$E$5 -> 0 | AP27: =1+U27*1000*(AH27/U27/1000/Schadstoffbelastung!$J$11/Bodencharakterisierung!$E$8)/O27/lblMainSoilPorosityAct -> 1 | AQ27: 0 | AR27: 0 | AS27: 0 | AT27: 0 | AU27: =(AS27*90)*Heterogenität!$D$17+AI27+AN27 -> 0.005691965042
E28: m-Ethyltoluol | F28: =Schadstoffbelastung!D27 -> 0 | G28: =F28/Schadstoffbelastung!$J$12*1000 -> 0 | H28: =Schadstoffbelastung!U27/1000/1000 -> 0 | I28: 0 | J28: =Stoffdatenbank!R29 -> 120 | K28: 0 | L28: 0 | M28: 0 | N28: =Stoffdatenbank!J29*0.001*Bodencharakterisierung!$E$9 -> 0.0038 | O28: =Stoffdatenbank!N29*0.001 -> 0.097 | P28: =Sanierungsdesign!$E$5/1000000 -> 0 | U28: =Stoffdatenbank!Q29 -> 0.864 | V28: =Stoffdatenbank!L29 -> 6.2e-10 | W28: =Schadstoffbelastung!X27/1000/1000 -> 0 | X28: =Schadstoffbelastung!Y27/1000/1000 -> 0 | Y28: =Schadstoffbelastung!Z27/1000/1000 -> 0 | Z28: =Schadstoffbelastung!W27/1000/1000 -> 0 | AA28: 1 | AB28: 1 | AC28: 0 | AD28: 0 | AE28: =IF(Sanierungsdesign!$E$15="Permanganat",Berechnung1!F28*Berechnung1!AA28,Berechnung1!F28*Berechnung1!AB28) -> 0 | AF28: =VLOOKUP(E28,Stoffdatenbank!$A$6:$R$47,Stoffdatenbank!$L$2,FALSE)/(Bodencharakterisierung!$E$13/10)*VLOOKUP(E28,Stoffdatenbank!$A$6:$R$47,Stoffdatenbank!$N$2,FALSE)/1000 -> 7142168.675 | AG28: 3525619 | AH28: =VLOOKUP(E28,Schadstoffbelastung!$B$2:$D$46,3,FALSE) -> 0 | AI28: =IF(Y28>0,Schadstoffbelastung!$J$4/Grundwassercharakterisierung!$D$4*AP28,0)*Heterogenität!$D$17 -> 0 | AJ28: =Stoffdatenbank!J29*Bodencharakterisierung!$E$9 -> 3.8 | AK28: =1+AJ28*VLOOKUP(E28,Stoffdatenbank!$A$6:$S$47,Stoffdatenbank!$Q$2,FALSE)/Bodencharakterisierung!$E$8 -> 1.000069091 | AL28: =Stoffdatenbank!L29/Bodencharakterisierung!$E$14 -> 7.75e-11 | AM28: 7.749464582e-11 | AN28: =0.183*Bodencharakterisierung!$E$13^2/Berechnung1!AM28*Heterogenität!$D$17/3600/24 -> 0.005783755157 | AO28: =Sanierungsdesign!$E$5 -> 0 | AP28: =1+U28*1000*(AH28/U28/1000/Schadstoffbelastung!$J$11/Bodencharakterisierung!$E$8)/O28/lblMainSoilPorosityAct -> 1 | AQ28: 0 | AR28: 0 | AS28: 0 | AT28: 0 | AU28: =(AS28*90)*Heterogenität!$D$17+AI28+AN28 -> 0.005783755157
E29: p-Ethyltoluol | F29: =Schadstoffbelastung!D28 -> 0 | G29: =F29/Schadstoffbelastung!$J$12*1000 -> 0 | H29: =Schadstoffbelastung!U28/1000/1000 -> 0 | I29: 0 | J29: =Stoffdatenbank!R30 -> 120 | K29: 0 | L29: 0 | M29: 0 | N29: =Stoffdatenbank!J30*0.001*Bodencharakterisierung!$E$9 -> 0.0045 | O29: =Stoffdatenbank!N30*0.001 -> 0.095 | P29: =Sanierungsdesign!$E$5/1000000 -> 0 | U29: =Stoffdatenbank!Q30 -> 0.861 | V29: =Stoffdatenbank!L30 -> 6.2e-10 | W29: =Schadstoffbelastung!X28/1000/1000 -> 0 | X29: =Schadstoffbelastung!Y28/1000/1000 -> 0 | Y29: =Schadstoffbelastung!Z28/1000/1000 -> 0 | Z29: =Schadstoffbelastung!W28/1000/1000 -> 0 | AA29: 1 | AB29: 1 | AC29: 0 | AD29: 0 | AE29: =IF(Sanierungsdesign!$E$15="Permanganat",Berechnung1!F29*Berechnung1!AA29,Berechnung1!F29*Berechnung1!AB29) -> 0 | AF29: =VLOOKUP(E29,Stoffdatenbank!$A$6:$R$47,Stoffdatenbank!$L$2,FALSE)/(Bodencharakterisierung!$E$13/10)*VLOOKUP(E29,Stoffdatenbank!$A$6:$R$47,Stoffdatenbank!$N$2,FALSE)/1000 -> 8434409.639 | AG29: 4163513.385 | AH29: =VLOOKUP(E29,Schadstoffbelastung!$B$2:$D$46,3,FALSE) -> 0 | AI29: =IF(Y29>0,Schadstoffbelastung!$J$4/Grundwassercharakterisierung!$D$4*AP29,0)*Heterogenität!$D$17 -> 0 | AJ29: =Stoffdatenbank!J30*Bodencharakterisierung!$E$9 -> 4.5 | AK29: =1+AJ29*VLOOKUP(E29,Stoffdatenbank!$A$6:$S$47,Stoffdatenbank!$Q$2,FALSE)/Bodencharakterisierung!$E$8 -> 1.000081818 | AL29: =Stoffdatenbank!L30/Bodencharakterisierung!$E$14 -> 7.75e-11 | AM29: 7.749365961e-11 | AN29: =0.183*Bodencharakterisierung!$E$13^2/Berechnung1!AM29*Heterogenität!$D$17/3600/24 -> 0.005783828764 | AO29: =Sanierungsdesign!$E$5 -> 0 | AP29: =1+U29*1000*(AH29/U29/1000/Schadstoffbelastung!$J$11/Bodencharakterisierung!$E$8)/O29/lblMainSoilPorosityAct -> 1 | AQ29: 0 | AR29: 0 | AS29: 0 | AT29: 0 | AU29: =(AS29*90)*Heterogenität!$D$17+AI29+AN29 -> 0.005783828764
E30: 1,2-Diethylbenzol | F30: =Schadstoffbelastung!D29 -> 0 | G30: =F30/Schadstoffbelastung!$J$12*1000 -> 0 | H30: =Schadstoffbelastung!U29/1000/1000 -> 0 | I30: 0 | J30: =Stoffdatenbank!R31 -> 134 | K30: 0 | L30: 0 | M30: 0 | N30: =Stoffdatenbank!J31*0.001*Bodencharakterisierung!$E$9 -> 0.0025 | O30: =Stoffdatenbank!N31*0.001 -> 0.024 | P30: =Sanierungsdesign!$E$5/1000000 -> 0 | U30: =Stoffdatenbank!Q31 -> 0.88 | V30: =Stoffdatenbank!L31 -> 5.9e-10 | W30: =Schadstoffbelastung!X29/1000/1000 -> 0 | X30: =Schadstoffbelastung!Y29/1000/1000 -> 0 | Y30: =Schadstoffbelastung!Z29/1000/1000 -> 0 | Z30: =Schadstoffbelastung!W29/1000/1000 -> 0 | AA30: 1 | AB30: 1 | AC30: 0 | AD30: 0 | AE30: =IF(Sanierungsdesign!$E$15="Permanganat",Berechnung1!F30*Berechnung1!AA30,Berechnung1!F30*Berechnung1!AB30) -> 0 | AF30: =VLOOKUP(E30,Stoffdatenbank!$A$6:$R$47,Stoffdatenbank!$L$2,FALSE)/(Bodencharakterisierung!$E$13/10)*VLOOKUP(E30,Stoffdatenbank!$A$6:$R$47,Stoffdatenbank!$N$2,FALSE)/1000 -> 4747349.398 | AG30: 2343454.208 | AH30: =VLOOKUP(E30,Schadstoffbelastung!$B$2:$D$46,3,FALSE) -> 0 | AI30: =IF(Y30>0,Schadstoffbelastung!$J$4/Grundwassercharakterisierung!$D$4*AP30,0)*Heterogenität!$D$17 -> 0 | AJ30: =Stoffdatenbank!J31*Bodencharakterisierung!$E$9 -> 2.5 | AK30: =1+AJ30*VLOOKUP(E30,Stoffdatenbank!$A$6:$S$47,Stoffdatenbank!$Q$2,FALSE)/Bodencharakterisierung!$E$8 -> 1.000043182 | AL30: =Stoffdatenbank!L31/Bodencharakterisierung!$E$14 -> 7.375e-11 | AM30: 7.374681548e-11 | AN30: =0.183*Bodencharakterisierung!$E$13^2/Berechnung1!AM30*Heterogenität!$D$17/3600/24 -> 0.006077686942 | AO30: =Sanierungsdesign!$E$5 -> 0 | AP30: =1+U30*1000*(AH30/U30/1000/Schadstoffbelastung!$J$11/Bodencharakterisierung!$E$8)/O30/lblMainSoilPorosityAct -> 1 | AQ30: 0 | AR30: 0 | AS30: 0 | AT30: 0 | AU30: =(AS30*90)*Heterogenität!$D$17+AI30+AN30 -> 0.006077686942
E31: 1,3-Diethylbenzol | F31: =Schadstoffbelastung!D30 -> 0 | G31: =F31/Schadstoffbelastung!$J$12*1000 -> 0 | H31: =Schadstoffbelastung!U30/1000/1000 -> 0 | I31: 0 | J31: =Stoffdatenbank!R32 -> 134 | K31: 0 | L31: 0 | M31: 0 | N31: =Stoffdatenbank!J32*0.001*Bodencharakterisierung!$E$9 -> 0.0021 | O31: =Stoffdatenbank!N32*0.001 -> 0.027 | P31: =Sanierungsdesign!$E$5/1000000 -> 0 | U31: =Stoffdatenbank!Q32 -> 0.86 | V31: =Stoffdatenbank!L32 -> 5.8e-10 | W31: =Schadstoffbelastung!X30/1000/1000 -> 0 | X31: =Schadstoffbelastung!Y30/1000/1000 -> 0 | Y31: =Schadstoffbelastung!Z30/1000/1000 -> 0 | Z31: =Schadstoffbelastung!W30/1000/1000 -> 0 | AA31: 1 | AB31: 1 | AC31: 0 | AD31: 0 | AE31: =IF(Sanierungsdesign!$E$15="Permanganat",Berechnung1!F31*Berechnung1!AA31,Berechnung1!F31*Berechnung1!AB31) -> 0 | AF31: =VLOOKUP(E31,Stoffdatenbank!$A$6:$R$47,Stoffdatenbank!$L$2,FALSE)/(Bodencharakterisierung!$E$13/10)*VLOOKUP(E31,Stoffdatenbank!$A$6:$R$47,Stoffdatenbank!$N$2,FALSE)/1000 -> 3965103.614 | AG31: 1957310.906 | AH31: =VLOOKUP(E31,Schadstoffbelastung!$B$2:$D$46,3,FALSE) -> 0 | AI31: =IF(Y31>0,Schadstoffbelastung!$J$4/Grundwassercharakterisierung!$D$4*AP31,0)*Heterogenität!$D$17 -> 0 | AJ31: =Stoffdatenbank!J32*Bodencharakterisierung!$E$9 -> 2.1 | AK31: =1+AJ31*VLOOKUP(E31,Stoffdatenbank!$A$6:$S$47,Stoffdatenbank!$Q$2,FALSE)/Bodencharakterisierung!$E$8 -> 1.000035636 | AL31: =Stoffdatenbank!L32/Bodencharakterisierung!$E$14 -> 7.25e-11 | AM31: 7.249741646e-11 | AN31: =0.183*Bodencharakterisierung!$E$13^2/Berechnung1!AM31*Heterogenität!$D$17/3600/24 -> 0.006182428 | AO31: =Sanierungsdesign!$E$5 -> 0 | AP31: =1+U31*1000*(AH31/U31/1000/Schadstoffbelastung!$J$11/Bodencharakterisierung!$E$8)/O31/lblMainSoilPorosityAct -> 1 | AQ31: 0 | AR31: 0 | AS31: 0 | AT31: 0 | AU31: =(AS31*90)*Heterogenität!$D$17+AI31+AN31 -> 0.006182428
E32: 1,4-Diethylbenzol | F32: =Schadstoffbelastung!D31 -> 0 | G32: =F32/Schadstoffbelastung!$J$12*1000 -> 0 | H32: =Schadstoffbelastung!U31/1000/1000 -> 0 | I32: 0 | J32: =Stoffdatenbank!R33 -> 134 | K32: 0 | L32: 0 | M32: 0 | N32: =Stoffdatenbank!J33*0.001*Bodencharakterisierung!$E$9 -> 0.0023 | O32: =Stoffdatenbank!N33*0.001 -> 0.025 | P32: =Sanierungsdesign!$E$5/1000000 -> 0 | U32: =Stoffdatenbank!Q33 -> 0.862 | V32: =Stoffdatenbank!L33 -> 5.8e-10 | W32: =Schadstoffbelastung!X31/1000/1000 -> 0 | X32: =Schadstoffbelastung!Y31/1000/1000 -> 0 | Y32: =Schadstoffbelastung!Z31/1000/1000 -> 0 | Z32: =Schadstoffbelastung!W31/1000/1000 -> 0 | AA32: 1 | AB32: 1 | AC32: 0 | AD32: 0 | AE32: =IF(Sanierungsdesign!$E$15="Permanganat",Berechnung1!F32*Berechnung1!AA32,Berechnung1!F32*Berechnung1!AB32) -> 0 | AF32: =VLOOKUP(E32,Stoffdatenbank!$A$6:$R$47,Stoffdatenbank!$L$2,FALSE)/(Bodencharakterisierung!$E$13/10)*VLOOKUP(E32,Stoffdatenbank!$A$6:$R$47,Stoffdatenbank!$N$2,FALSE)/1000 -> 4342732.53 | AG32: 2143721.469 | AH32: =VLOOKUP(E32,Schadstoffbelastung!$B$2:$D$46,3,FALSE) -> 0 | AI32: =IF(Y32>0,Schadstoffbelastung!$J$4/Grundwassercharakterisierung!$D$4*AP32,0)*Heterogenität!$D$17 -> 0 | AJ32: =Stoffdatenbank!J33*Bodencharakterisierung!$E$9 -> 2.3 | AK32: =1+AJ32*VLOOKUP(E32,Stoffdatenbank!$A$6:$S$47,Stoffdatenbank!$Q$2,FALSE)/Bodencharakterisierung!$E$8 -> 1.00003903 | AL32: =Stoffdatenbank!L33/Bodencharakterisierung!$E$14 -> 7.25e-11 | AM32: 7.249717041e-11 | AN32: =0.183*Bodencharakterisierung!$E$13^2/Berechnung1!AM32*Heterogenität!$D$17/3600/24 -> 0.006182448982 | AO32: =Sanierungsdesign!$E$5 -> 0 | AP32: =1+U32*1000*(AH32/U32/1000/Schadstoffbelastung!$J$11/Bodencharakterisierung!$E$8)/O32/lblMainSoilPorosityAct -> 1 | AQ32: 0 | AR32: 0 | AS32: 0 | AT32: 0 | AU32: =(AS32*90)*Heterogenität!$D$17+AI32+AN32 -> 0.006182448982
E33: 1,2,3-Trimethylbenzol | F33: =Schadstoffbelastung!D32 -> 0 | G33: =F33/Schadstoffbelastung!$J$12*1000 -> 0 | H33: =Schadstoffbelastung!U32/1000/1000 -> 0 | I33: 0 | J33: =Stoffdatenbank!R34 -> 120 | K33: 0 | L33: 0 | M33: 0 | N33: =Stoffdatenbank!J34*0.001*Bodencharakterisierung!$E$9 -> 0.00325 | O33: =Stoffdatenbank!N34*0.001 -> 0.075 | P33: =Sanierungsdesign!$E$5/1000000 -> 0 | U33: =Stoffdatenbank!Q34 -> 0.894 | V33: =Stoffdatenbank!L34 -> 6.4e-10 | W33: =Schadstoffbelastung!X32/1000/1000 -> 0 | X33: =Schadstoffbelastung!Y32/1000/1000 -> 0 | Y33: =Schadstoffbelastung!Z32/1000/1000 -> 0 | Z33: =Schadstoffbelastung!W32/1000/1000 -> 0 | AA33: 1 | AB33: 1 | AC33: 0 | AD33: 0 | AE33: =IF(Sanierungsdesign!$E$15="Permanganat",Berechnung1!F33*Berechnung1!AA33,Berechnung1!F33*Berechnung1!AB33) -> 0 | AF33: =VLOOKUP(E33,Stoffdatenbank!$A$6:$R$47,Stoffdatenbank!$L$2,FALSE)/(Bodencharakterisierung!$E$13/10)*VLOOKUP(E33,Stoffdatenbank!$A$6:$R$47,Stoffdatenbank!$N$2,FALSE)/1000 -> 6395530.12 | AG33: 3157052.646 | AH33: =VLOOKUP(E33,Schadstoffbelastung!$B$2:$D$46,3,FALSE) -> 0 | AI33: =IF(Y33>0,Schadstoffbelastung!$J$4/Grundwassercharakterisierung!$D$4*AP33,0)*Heterogenität!$D$17 -> 0 | AJ33: =Stoffdatenbank!J34*Bodencharakterisierung!$E$9 -> 3.25 | AK33: =1+AJ33*VLOOKUP(E33,Stoffdatenbank!$A$6:$S$47,Stoffdatenbank!$Q$2,FALSE)/Bodencharakterisierung!$E$8 -> 1.000059091 | AL33: =Stoffdatenbank!L34/Bodencharakterisierung!$E$14 -> 8e-11 | AM33: 7.999527301e-11 | AN33: =0.183*Bodencharakterisierung!$E$13^2/Berechnung1!AM33*Heterogenität!$D$17/3600/24 -> 0.005602956782 | AO33: =Sanierungsdesign!$E$5 -> 0 | AP33: =1+U33*1000*(AH33/U33/1000/Schadstoffbelastung!$J$11/Bodencharakterisierung!$E$8)/O33/lblMainSoilPorosityAct -> 1 | AQ33: 0 | AR33: 0 | AS33: 0 | AT33: 0 | AU33: =(AS33*90)*Heterogenität!$D$17+AI33+AN33 -> 0.005602956782
E34: 1,2,4-Trimethylbenzol | F34: =Schadstoffbelastung!D33 -> 0 | G34: =F34/Schadstoffbelastung!$J$12*1000 -> 0 | H34: =Schadstoffbelastung!U33/1000/1000 -> 0 | I34: 0 | J34: =Stoffdatenbank!R35 -> 120 | K34: 0 | L34: 0 | M34: 0 | N34: =Stoffdatenbank!J35*0.001*Bodencharakterisierung!$E$9 -> 0.00325 | O34: =Stoffdatenbank!N35*0.001 -> 0.06 | P34: =Sanierungsdesign!$E$5/1000000 -> 0 | U34: =Stoffdatenbank!Q35 -> 0.876 | V34: =Stoffdatenbank!L35 -> 6.3e-10 | W34: =Schadstoffbelastung!X33/1000/1000 -> 0 | X34: =Schadstoffbelastung!Y33/1000/1000 -> 0 | Y34: =Schadstoffbelastung!Z33/1000/1000 -> 0 | Z34: =Schadstoffbelastung!W33/1000/1000 -> 0 | AA34: 1 | AB34: 1 | AC34: 0 | AD34: 0 | AE34: =IF(Sanierungsdesign!$E$15="Permanganat",Berechnung1!F34*Berechnung1!AA34,Berechnung1!F34*Berechnung1!AB34) -> 0 | AF34: =VLOOKUP(E34,Stoffdatenbank!$A$6:$R$47,Stoffdatenbank!$L$2,FALSE)/(Bodencharakterisierung!$E$13/10)*VLOOKUP(E34,Stoffdatenbank!$A$6:$R$47,Stoffdatenbank!$N$2,FALSE)/1000 -> 6134590.361 | AG34: 3028243.846 | AH34: =VLOOKUP(E34,Schadstoffbelastung!$B$2:$D$46,3,FALSE) -> 0 | AI34: =IF(Y34>0,Schadstoffbelastung!$J$4/Grundwassercharakterisierung!$D$4*AP34,0)*Heterogenität!$D$17 -> 0 | AJ34: =Stoffdatenbank!J35*Bodencharakterisierung!$E$9 -> 3.25 | AK34: =1+AJ34*VLOOKUP(E34,Stoffdatenbank!$A$6:$S$47,Stoffdatenbank!$Q$2,FALSE)/Bodencharakterisierung!$E$8 -> 1.000059091 | AL34: =Stoffdatenbank!L35/Bodencharakterisierung!$E$14 -> 7.875e-11 | AM34: 7.874534687e-11 | AN34: =0.183*Bodencharakterisierung!$E$13^2/Berechnung1!AM34*Heterogenität!$D$17/3600/24 -> 0.005691892604 | AO34: =Sanierungsdesign!$E$5 -> 0 | AP34: =1+U34*1000*(AH34/U34/1000/Schadstoffbelastung!$J$11/Bodencharakterisierung!$E$8)/O34/lblMainSoilPorosityAct -> 1 | AQ34: 0 | AR34: 0 | AS34: 0 | AT34: 0 | AU34: =(AS34*90)*Heterogenität!$D$17+AI34+AN34 -> 0.005691892604
E35: 1,3,5-Trimethylbenzol | F35: =Schadstoffbelastung!D34 -> 0 | G35: =F35/Schadstoffbelastung!$J$12*1000 -> 0 | H35: =Schadstoffbelastung!U34/1000/1000 -> 0 | I35: 0 | J35: =Stoffdatenbank!R36 -> 120 | K35: 0 | L35: 0 | M35: 0 | N35: =Stoffdatenbank!J36*0.001*Bodencharakterisierung!$E$9 -> 0.00335 | O35: =Stoffdatenbank!N36*0.001 -> 0.02 | P35: =Sanierungsdesign!$E$5/1000000 -> 0 | U35: =Stoffdatenbank!Q36 -> 0.865 | V35: =Stoffdatenbank!L36 -> 6.3e-10 | W35: =Schadstoffbelastung!X34/1000/1000 -> 0 | X35: =Schadstoffbelastung!Y34/1000/1000 -> 0 | Y35: =Schadstoffbelastung!Z34/1000/1000 -> 0 | Z35: =Schadstoffbelastung!W34/1000/1000 -> 0 | AA35: 1 | AB35: 1 | AC35: 0 | AD35: 0 | AE35: =IF(Sanierungsdesign!$E$15="Permanganat",Berechnung1!F35*Berechnung1!AA35,Berechnung1!F35*Berechnung1!AB35) -> 0 | AF35: =VLOOKUP(E35,Stoffdatenbank!$A$6:$R$47,Stoffdatenbank!$L$2,FALSE)/(Bodencharakterisierung!$E$13/10)*VLOOKUP(E35,Stoffdatenbank!$A$6:$R$47,Stoffdatenbank!$N$2,FALSE)/1000 -> 6391961.446 | AG35: 3155291.026 | AH35: =VLOOKUP(E35,Schadstoffbelastung!$B$2:$D$46,3,FALSE) -> 0 | AI35: =IF(Y35>0,Schadstoffbelastung!$J$4/Grundwassercharakterisierung!$D$4*AP35,0)*Heterogenität!$D$17 -> 0 | AJ35: =Stoffdatenbank!J36*Bodencharakterisierung!$E$9 -> 3.35 | AK35: =1+AJ35*VLOOKUP(E35,Stoffdatenbank!$A$6:$S$47,Stoffdatenbank!$Q$2,FALSE)/Bodencharakterisierung!$E$8 -> 1.000060909 | AL35: =Stoffdatenbank!L36/Bodencharakterisierung!$E$14 -> 7.875e-11 | AM35: 7.87452037e-11 | AN35: =0.183*Bodencharakterisierung!$E$13^2/Berechnung1!AM35*Heterogenität!$D$17/3600/24 -> 0.005691902953 | AO35: =Sanierungsdesign!$E$5 -> 0 | AP35: =1+U35*1000*(AH35/U35/1000/Schadstoffbelastung!$J$11/Bodencharakterisierung!$E$8)/O35/lblMainSoilPorosityAct -> 1 | AQ35: 0 | AR35: =IFERROR(LOG(AO35/AQ35,0.4),0) -> 0 | AS35: 0 | AT35: 0 | AU35: =(AS35*90)*Heterogenität!$D$17+AI35+AN35 -> 0.005691902953
E36: AKW | F36: =SUM(F19:F35) -> 0 | G36: =SUM(G19:G35) -> 0 | H36: =Schadstoffbelastung!U35/1000/1000 -> 0 | I36: =IFERROR(X36/N36,0) -> 0 | K36: =SUM(K19:K35) -> 0 | L36: =SUM(L19:L35) -> 0 | M36: 0 | N36: =SUMPRODUCT($L19:$L35,N19:N35) -> 0 | O36: =(L19*O19)+(L20*O20)+(L21*O21)+(L22*O22)+(L23*O23)+(L24*O24)+(L25*O25)+(L26*O26)+(L27*O27)+(L28*O28)+(L29*O29)+(L30*O30)+(L31*O31)+(L32*O32)+(L33*O33)+(L34*O34)+(L35*O35) -> 0 | P36: =Sanierungsdesign!$E$5/1000000 -> 0 | U36: =SUMPRODUCT($L19:$L35,U19:U35) -> 0 | V36: =SUMPRODUCT($L19:$L35,V19:V35) -> 0 | W36: =IF(Y36=0,SUM(W19:W35),X36-Y36) -> 0 | X36: =SUM(X19:X35) -> 0 | Y36: =SUM(Y19:Y35) -> 0 | Z36: =SUM(Z19:Z35) -> 0 | AA36: =SUMPRODUCT($L19:$L35,AA19:AA35) -> 0 | AB36: =SUMPRODUCT($L19:$L35,AB19:AB35) -> 0 | AC36: 0 | AD36: 0 | AE36: =IF(Sanierungsdesign!$E$15="Permanganat",Berechnung1!F36*Berechnung1!AA36,Berechnung1!F36*Berechnung1!AB36) -> 0 | AI36: =IF(Y36>0,Schadstoffbelastung!$J$4/Grundwassercharakterisierung!$D$4*AP36,0)*Heterogenität!$D$17 -> 0 | AJ36: =SUMPRODUCT(L19:L35,AJ19:AJ35) -> 0 | AN36: =MAX(AN19:AN35) -> 0.006182448982 | AO36: =Sanierungsdesign!$E$5 -> 0 | AP36: =MAX(AP19:AP35) -> 1 | AQ36: =IFERROR(G36/AJ36*1000*0.4,0) -> 0 | AR36: =IFERROR(LOG(AO36/AQ36,0.4),0) -> 0 | AS36: 0 | AT36: =IFERROR(G36/AJ36*1000*0.4^AS36,0) -> 0 | AU36: =(AS36*90)*Heterogenität!$D$17+AI36+AN36 -> 0.006182448982
E37: n-Pentan | F37: =Schadstoffbelastung!D36 -> 0 | G37: =F37/Schadstoffbelastung!$J$12*1000 -> 0 | H37: =Schadstoffbelastung!U36/1000/1000 -> 0 | I37: =X37/N37 -> 0 | J37: =Stoffdatenbank!R38 -> 72 | K37: =F37/J37 -> 0 | L37: =IFERROR(K37/$K$43,0) -> 0 | M37: =IF(L37>0.05,1,0) -> 0 | N37: =Stoffdatenbank!J38*0.001*Bodencharakterisierung!$E$9 -> 0.00435 | O37: =Stoffdatenbank!N38*0.001 -> 0.04 | P37: =Sanierungsdesign!$E$6/1000000 -> 0 | R37: =IF(AND(M37=1,Q37>1),1,0) ->  | S37: =IF((R37=1),((Q37)^0.5*N37)/((0.15^1.2)*(O37^0.9)),0) ->  | T37: =IF((S37=MAX($S$5:$S$46)),"Ja","0") ->  | U37: =Stoffdatenbank!Q38 -> 0.626 | V37: =Stoffdatenbank!L38 -> 7.01e-10 | W37: =Schadstoffbelastung!X36/1000/1000 -> 0 | X37: =Schadstoffbelastung!Y36/1000/1000 -> 0 | Y37: =Schadstoffbelastung!Z36/1000/1000 -> 0 | Z37: =Schadstoffbelastung!W36/1000/1000 -> 0 | AA37: 1 | AB37: 1 | AC37: 0 | AD37: 0 | AE37: =IF(Sanierungsdesign!$E$15="Permanganat",Berechnung1!F37*Berechnung1!AA37,Berechnung1!F37*Berechnung1!AB37) -> 0 | AF37: =VLOOKUP(E37,Stoffdatenbank!$A$6:$R$47,Stoffdatenbank!$L$2,FALSE)/(Bodencharakterisierung!$E$13/10)*VLOOKUP(E37,Stoffdatenbank!$A$6:$R$47,Stoffdatenbank!$N$2,FALSE)/1000 -> 7715956.627 | AG37: =AF37*$C$7 -> 3808860.379 | AH37: =VLOOKUP(E37,Schadstoffbelastung!$B$2:$D$46,3,0) -> 0 | AI37: =IF(Y37>0,Schadstoffbelastung!$J$4/Grundwassercharakterisierung!$D$4*AP37,0)*Heterogenität!$D$17 -> 0 | AJ37: =Stoffdatenbank!J38*Bodencharakterisierung!$E$9 -> 4.35 | AK37: =1+AJ37*VLOOKUP(E37,Stoffdatenbank!$A$6:$S$47,Stoffdatenbank!$Q$2,FALSE)/Bodencharakterisierung!$E$8 -> 1.000090823 | AL37: =Stoffdatenbank!L38/Bodencharakterisierung!$E$14 -> 8.7625e-11 | AM37: =AL37/AK37 -> 8.761704238e-11 | AN37: =0.183*Bodencharakterisierung!$E$13^2/Berechnung1!AM37*Heterogenität!$D$17/3600/24 -> 0.005115557947 | AO37: =Sanierungsdesign!$E$6 -> 0 | AP37: =1+U37*1000*(AH37/U37/1000/Schadstoffbelastung!$J$11/Bodencharakterisierung!$E$8)/O37/lblMainSoilPorosityAct -> 1 | AQ37: 0 | AR37: =IFERROR(LOG(AO37/AQ37,0.4),0) -> 0 | AS37: =IF(F37=0,0,IF(AR37<0,1,1+ROUNDUP(AR37,0))) -> 0 | AT37: 0 | AU37: =(AS37*90)*Heterogenität!$D$17+AI37+AN37 -> 0.005115557947
E38: n-Hexan | F38: =Schadstoffbelastung!D37 -> 0 | G38: =F38/Schadstoffbelastung!$J$12*1000 -> 0 | H38: =Schadstoffbelastung!U37/1000/1000 -> 0 | I38: =X38/N38 -> 0 | J38: =Stoffdatenbank!R39 -> 86 | K38: 0 | L38: =IFERROR(K38/$K$43,0) -> 0 | M38: =IF(L38>0.05,1,0) -> 0 | N38: =Stoffdatenbank!J39*0.001*Bodencharakterisierung!$E$9 -> 0.0102 | O38: =Stoffdatenbank!N39*0.001 -> 0.01 | P38: =Sanierungsdesign!$E$6/1000000 -> 0 | U38: =Stoffdatenbank!Q39 -> 0.66 | V38: =Stoffdatenbank!L39 -> 6.49e-10 | W38: =Schadstoffbelastung!X37/1000/1000 -> 0 | X38: =Schadstoffbelastung!Y37/1000/1000 -> 0 | Y38: =Schadstoffbelastung!Z37/1000/1000 -> 0 | Z38: =Schadstoffbelastung!W37/1000/1000 -> 0 | AA38: 1 | AB38: 1 | AC38: 0 | AD38: 0 | AE38: =IF(Sanierungsdesign!$E$15="Permanganat",Berechnung1!F38*Berechnung1!AA38,Berechnung1!F38*Berechnung1!AB38) -> 0 | AF38: =VLOOKUP(E38,Stoffdatenbank!$A$6:$R$47,Stoffdatenbank!$L$2,FALSE)/(Bodencharakterisierung!$E$13/10)*VLOOKUP(E38,Stoffdatenbank!$A$6:$R$47,Stoffdatenbank!$N$2,FALSE)/1000 -> 17719489.16 | AG38: 8746946.55 | AH38: =VLOOKUP(E38,Schadstoffbelastung!$B$2:$D$46,3,0) -> 0 | AI38: =IF(Y38>0,Schadstoffbelastung!$J$4/Grundwassercharakterisierung!$D$4*AP38,0)*Heterogenität!$D$17 -> 0 | AJ38: =Stoffdatenbank!J39*Bodencharakterisierung!$E$9 -> 10.2 | AK38: =1+AJ38*VLOOKUP(E38,Stoffdatenbank!$A$6:$S$47,Stoffdatenbank!$Q$2,FALSE)/Bodencharakterisierung!$E$8 -> 1.000196582 | AL38: =Stoffdatenbank!L39/Bodencharakterisierung!$E$14 -> 8.1125e-11 | AM38: 8.110905543e-11 | AN38: =0.183*Bodencharakterisierung!$E$13^2/Berechnung1!AM38*Heterogenität!$D$17/3600/24 -> 0.005526017472 | AO38: =Sanierungsdesign!$E$6 -> 0 | AP38: =1+U38*1000*(AH38/U38/1000/Schadstoffbelastung!$J$11/Bodencharakterisierung!$E$8)/O38/lblMainSoilPorosityAct -> 1 | AQ38: 0 | AR38: 0 | AS38: 0 | AT38: 0 | AU38: =(AS38*90)*Heterogenität!$D$17+AI38+AN38 -> 0.005526017472
E39: n-Heptan | F39: =Schadstoffbelastung!D38 -> 0 | G39: =F39/Schadstoffbelastung!$J$12*1000 -> 0 | H39: =Schadstoffbelastung!U38/1000/1000 -> 0 | I39: 0 | J39: =Stoffdatenbank!R40 -> 100 | K39: 0 | L39: 0 | M39: =IF(L39>0.05,1,0) -> 0 | N39: =Stoffdatenbank!J40*0.001*Bodencharakterisierung!$E$9 -> 0.02625 | O39: =Stoffdatenbank!N40*0.001 -> 0.0022 | P39: =Sanierungsdesign!$E$6/1000000 -> 0 | U39: =Stoffdatenbank!Q40 -> 0.684 | V39: =Stoffdatenbank!L40 -> 6.05e-10 | W39: =Schadstoffbelastung!X38/1000/1000 -> 0 | X39: =Schadstoffbelastung!Y38/1000/1000 -> 0 | Y39: =Schadstoffbelastung!Z38/1000/1000 -> 0 | Z39: =Schadstoffbelastung!W38/1000/1000 -> 0 | AA39: 1 | AB39: 1 | AC39: 0 | AD39: 0 | AE39: =IF(Sanierungsdesign!$E$15="Permanganat",Berechnung1!F39*Berechnung1!AA39,Berechnung1!F39*Berechnung1!AB39) -> 0 | AF39: =VLOOKUP(E39,Stoffdatenbank!$A$6:$R$47,Stoffdatenbank!$L$2,FALSE)/(Bodencharakterisierung!$E$13/10)*VLOOKUP(E39,Stoffdatenbank!$A$6:$R$47,Stoffdatenbank!$N$2,FALSE)/1000 -> 45542168.67 | AG39: 22481173.79 | AH39: =VLOOKUP(E39,Schadstoffbelastung!$B$2:$D$46,3,0) -> 0 | AI39: =IF(Y39>0,Schadstoffbelastung!$J$4/Grundwassercharakterisierung!$D$4*AP39,0)*Heterogenität!$D$17 -> 0 | AJ39: =Stoffdatenbank!J40*Bodencharakterisierung!$E$9 -> 26.25 | AK39: =1+AJ39*VLOOKUP(E39,Stoffdatenbank!$A$6:$S$47,Stoffdatenbank!$Q$2,FALSE)/Bodencharakterisierung!$E$8 -> 1.000470909 | AL39: =Stoffdatenbank!L40/Bodencharakterisierung!$E$14 -> 7.5625e-11 | AM39: 7.558940426e-11 | AN39: =0.183*Bodencharakterisierung!$E$13^2/Berechnung1!AM39*Heterogenität!$D$17/3600/24 -> 0.005929535519 | AO39: =Sanierungsdesign!$E$6 -> 0 | AP39: =1+U39*1000*(AH39/U39/1000/Schadstoffbelastung!$J$11/Bodencharakterisierung!$E$8)/O39/lblMainSoilPorosityAct -> 1 | AQ39: 0 | AR39: 0 | AS39: 0 | AT39: 0 | AU39: =(AS39*90)*Heterogenität!$D$17+AI39+AN39 -> 0.005929535519
E40: n-Octan | F40: =Schadstoffbelastung!D39 -> 0 | G40: =F40/Schadstoffbelastung!$J$12*1000 -> 0 | H40: =Schadstoffbelastung!U39/1000/1000 -> 0 | I40: 0 | J40: =Stoffdatenbank!R41 -> 114 | K40: 0 | L40: 0 | M40: 0 | N40: =Stoffdatenbank!J41*0.001*Bodencharakterisierung!$E$9 -> 0.0869 | O40: =Stoffdatenbank!N41*0.001 -> 0.0007 | P40: =Sanierungsdesign!$E$6/1000000 -> 0 | U40: =Stoffdatenbank!Q41 -> 0.7025 | V40: =Stoffdatenbank!L41 -> 5.69e-10 | W40: =Schadstoffbelastung!X39/1000/1000 -> 0 | X40: =Schadstoffbelastung!Y39/1000/1000 -> 0 | Y40: =Schadstoffbelastung!Z39/1000/1000 -> 0 | Z40: =Schadstoffbelastung!W39/1000/1000 -> 0 | AA40: 1 | AB40: 1 | AC40: 0 | AD40: 0 | AE40: =IF(Sanierungsdesign!$E$15="Permanganat",Berechnung1!F40*Berechnung1!AA40,Berechnung1!F40*Berechnung1!AB40) -> 0 | AF40: =VLOOKUP(E40,Stoffdatenbank!$A$6:$R$47,Stoffdatenbank!$L$2,FALSE)/(Bodencharakterisierung!$E$13/10)*VLOOKUP(E40,Stoffdatenbank!$A$6:$R$47,Stoffdatenbank!$N$2,FALSE)/1000 -> 150619686.7 | AG40: 74351034.48 | AH40: =VLOOKUP(E40,Schadstoffbelastung!$B$2:$D$46,3,0) -> 0 | AI40: =IF(Y40>0,Schadstoffbelastung!$J$4/Grundwassercharakterisierung!$D$4*AP40,0)*Heterogenität!$D$17 -> 0 | AJ40: =Stoffdatenbank!J41*Bodencharakterisierung!$E$9 -> 86.9 | AK40: =1+AJ40*VLOOKUP(E40,Stoffdatenbank!$A$6:$S$47,Stoffdatenbank!$Q$2,FALSE)/Bodencharakterisierung!$E$8 -> 1.0014694 | AL40: =Stoffdatenbank!L41/Bodencharakterisierung!$E$14 -> 7.1125e-11 | AM40: 7.102064227e-11 | AN40: =0.183*Bodencharakterisierung!$E$13^2/Berechnung1!AM40*Heterogenität!$D$17/3600/24 -> 0.00631098288 | AO40: =Sanierungsdesign!$E$6 -> 0 | AP40: =1+U40*1000*(AH40/U40/1000/Schadstoffbelastung!$J$11/Bodencharakterisierung!$E$8)/O40/lblMainSoilPorosityAct -> 1 | AQ40: 0 | AR40: 0 | AS40: 0 | AT40: 0 | AU40: =(AS40*90)*Heterogenität!$D$17+AI40+AN40 -> 0.00631098288
E41: n-Nonan | F41: =Schadstoffbelastung!D40 -> 0 | G41: =F41/Schadstoffbelastung!$J$12*1000 -> 0 | H41: =Schadstoffbelastung!U40/1000/1000 -> 0 | I41: 0 | J41: =Stoffdatenbank!R42 -> 128 | K41: 0 | L41: 0 | M41: 0 | N41: =Stoffdatenbank!J42*0.001*Bodencharakterisierung!$E$9 -> 0.1377 | O41: =Stoffdatenbank!N42*0.001 -> 0.00012 | P41: =Sanierungsdesign!$E$6/1000000 -> 0 | U41: =Stoffdatenbank!Q42 -> 0.72 | V41: =Stoffdatenbank!L42 -> 5.41e-10 | W41: =Schadstoffbelastung!X40/1000/1000 -> 0 | X41: =Schadstoffbelastung!Y40/1000/1000 -> 0 | Y41: =Schadstoffbelastung!Z40/1000/1000 -> 0 | Z41: =Schadstoffbelastung!W40/1000/1000 -> 0 | AA41: 1 | AB41: 1 | AC41: 0 | AD41: 0 | AE41: =IF(Sanierungsdesign!$E$15="Permanganat",Berechnung1!F41*Berechnung1!AA41,Berechnung1!F41*Berechnung1!AB41) -> 0 | AF41: =VLOOKUP(E41,Stoffdatenbank!$A$6:$R$47,Stoffdatenbank!$L$2,FALSE)/(Bodencharakterisierung!$E$13/10)*VLOOKUP(E41,Stoffdatenbank!$A$6:$R$47,Stoffdatenbank!$N$2,FALSE)/1000 -> 241077860.2 | AG41: 119004286.1 | AH41: =VLOOKUP(E41,Schadstoffbelastung!$B$2:$D$46,3,0) -> 0 | AI41: =IF(Y41>0,Schadstoffbelastung!$J$4/Grundwassercharakterisierung!$D$4*AP41,0)*Heterogenität!$D$17 -> 0 | AJ41: =Stoffdatenbank!J42*Bodencharakterisierung!$E$9 -> 137.7 | AK41: =1+AJ41*VLOOKUP(E41,Stoffdatenbank!$A$6:$S$47,Stoffdatenbank!$Q$2,FALSE)/Bodencharakterisierung!$E$8 -> 1.002215718 | AL41: =Stoffdatenbank!L42/Bodencharakterisierung!$E$14 -> 6.7625e-11 | AM41: 6.747549332e-11 | AN41: =0.183*Bodencharakterisierung!$E$13^2/Berechnung1!AM41*Heterogenität!$D$17/3600/24 -> 0.00664256066 | AO41: =Sanierungsdesign!$E$6 -> 0 | AP41: =1+U41*1000*(AH41/U41/1000/Schadstoffbelastung!$J$11/Bodencharakterisierung!$E$8)/O41/lblMainSoilPorosityAct -> 1 | AQ41: 0 | AR41: 0 | AS41: 0 | AT41: 0 | AU41: =(AS41*90)*Heterogenität!$D$17+AI41+AN41 -> 0.00664256066
E42: n-Decan | F42: =Schadstoffbelastung!D41 -> 0 | G42: =F42/Schadstoffbelastung!$J$12*1000 -> 0 | H42: =Schadstoffbelastung!U41/1000/1000 -> 0 | I42: 0 | J42: =Stoffdatenbank!R43 -> 142 | K42: 0 | L42: 0 | M42: 0 | N42: =Stoffdatenbank!J43*0.001*Bodencharakterisierung!$E$9 -> 1.0939 | O42: =Stoffdatenbank!N43*0.001 -> 5e-05 | P42: =Sanierungsdesign!$E$6/1000000 -> 0 | U42: =Stoffdatenbank!Q43 -> 0.73 | V42: =Stoffdatenbank!L43 -> 5.13e-10 | W42: =Schadstoffbelastung!X41/1000/1000 -> 0 | X42: =Schadstoffbelastung!Y41/1000/1000 -> 0 | Y42: =Schadstoffbelastung!Z41/1000/1000 -> 0 | Z42: =Schadstoffbelastung!W41/1000/1000 -> 0 | AA42: 1 | AB42: 1 | AC42: 0 | AD42: 0 | AE42: =IF(Sanierungsdesign!$E$15="Permanganat",Berechnung1!F42*Berechnung1!AA42,Berechnung1!F42*Berechnung1!AB42) -> 0 | AF42: =VLOOKUP(E42,Stoffdatenbank!$A$6:$R$47,Stoffdatenbank!$L$2,FALSE)/(Bodencharakterisierung!$E$13/10)*VLOOKUP(E42,Stoffdatenbank!$A$6:$R$47,Stoffdatenbank!$N$2,FALSE)/1000 -> 1904545798 | AG42: 940149015.9 | AH42: =VLOOKUP(E42,Schadstoffbelastung!$B$2:$D$46,3,0) -> 0 | AI42: =IF(Y42>0,Schadstoffbelastung!$J$4/Grundwassercharakterisierung!$D$4*AP42,0)*Heterogenität!$D$17 -> 0 | AJ42: =Stoffdatenbank!J43*Bodencharakterisierung!$E$9 -> 1093.9 | AK42: =1+AJ42*VLOOKUP(E42,Stoffdatenbank!$A$6:$S$47,Stoffdatenbank!$Q$2,FALSE)/Bodencharakterisierung!$E$8 -> 1.016739985 | AL42: =Stoffdatenbank!L43/Bodencharakterisierung!$E$14 -> 6.4125e-11 | AM42: 6.306922218e-11 | AN42: =0.183*Bodencharakterisierung!$E$13^2/Berechnung1!AM42*Heterogenität!$D$17/3600/24 -> 0.007106636835 | AO42: =Sanierungsdesign!$E$6 -> 0 | AP42: =1+U42*1000*(AH42/U42/1000/Schadstoffbelastung!$J$11/Bodencharakterisierung!$E$8)/O42/lblMainSoilPorosityAct -> 1 | AQ42: 0 | AR42: 0 | AS42: 0 | AT42: 0 | AU42: =(AS42*90)*Heterogenität!$D$17+AI42+AN42 -> 0.007106636835
E43: n-Alkane | F43: =Schadstoffbelastung!D42 -> 0 | G43: =SUM(G37:G42) -> 0 | H43: =Schadstoffbelastung!U42/1000/1000 -> 0 | I43: =IFERROR(X43/N43,0) -> 0 | K43: =SUM(K37:K42) -> 0 | L43: =SUM(L37:L42) -> 0 | M43: 0 | N43: =SUMPRODUCT($L37:$L42,N37:N42) -> 0 | O43: =(L37*O37)+(L38*O38)+(L39*O39)+(L40*O40)+(L41*O41)+(L42*O42) -> 0 | P43: =Sanierungsdesign!$E$6/1000000 -> 0 | U43: =SUMPRODUCT($L37:$L42,U37:U42) -> 0 | V43: =SUMPRODUCT($L37:$L42,V37:V42) -> 0 | W43: =IF(Y43=0,SUM(W37:W42),X43-Y43) -> 0 | X43: =SUM(X37:X42) -> 0 | Y43: =SUM(Y37:Y42) -> 0 | Z43: =SUM(Z37:Z42) -> 0 | AA43: =SUMPRODUCT($L37:$L42,AA37:AA42) -> 0 | AB43: 0 | AC43: 0 | AD43: 0 | AE43: =IF(Sanierungsdesign!$E$15="Permanganat",Berechnung1!F43*Berechnung1!AA43,Berechnung1!F43*Berechnung1!AB43) -> 0 | AI43: =IF(Y43>0,Schadstoffbelastung!$J$4/Grundwassercharakterisierung!$D$4*AP43,0)*Heterogenität!$D$17 -> 0 | AJ43: =SUMPRODUCT(L37:L42,AJ37:AJ42) -> 0 | AN43: =MAX(AN37:AN42) -> 0.007106636835 | AO43: =Sanierungsdesign!$E$6 -> 0 | AP43: =MAX(AP37:AP42) -> 1 | AQ43: =IFERROR(G43/AJ43*1000*0.4,0) -> 0 | AR43: =IFERROR(LOG(AO43/AQ43,0.4),0) -> 0 | AS43: 0 | AT43: =IFERROR(G43/AJ43*1000*0.4^AS43,0) -> 0 | AU43: =(AS43*90)*Heterogenität!$D$17+AI43+AN43 -> 0.007106636835
E44: MTBE (Methyl-tert-butylether) | F44: =Schadstoffbelastung!D43 -> 0 | G44: =F44/Schadstoffbelastung!$J$12*1000 -> 0 | H44: =Schadstoffbelastung!U43/1000/1000 -> 0 | I44: 0 | J44: =Stoffdatenbank!R45 -> 88.148 | K44: =F44/J44 -> 0 | L44: =IFERROR(K44/$K$47,0) -> 0 | M44: =IF(L44>0.05,1,0) -> 0 | N44: =Stoffdatenbank!J45*0.001*Bodencharakterisierung!$E$9 -> 5.5e-05 | O44: =Stoffdatenbank!N45*0.001 -> 51.259 | P44: =Sanierungsdesign!$E$7/1000000 -> 0 | R44: =IF(AND(M44=1,Q44>1),1,0) ->  | T44: =IF((S44=MAX($S$5:$S$46)),"Ja","0") ->  | U44: =Stoffdatenbank!Q45 -> 0.74 | V44: =Stoffdatenbank!L45 -> 9.513e-10 | W44: =Schadstoffbelastung!X43/1000/1000 -> 0 | X44: =Schadstoffbelastung!Y43/1000/1000 -> 0 | Y44: =Schadstoffbelastung!Z43/1000/1000 -> 0 | Z44: =Schadstoffbelastung!W43/1000/1000 -> 0 | AA44: 1 | AB44: 1 | AC44: 0 | AD44: 0 | AE44: =IF(Sanierungsdesign!$E$15="Permanganat",Berechnung1!F44*Berechnung1!AA44,Berechnung1!F44*Berechnung1!AB44) -> 0 | AF44: =VLOOKUP(E44,Stoffdatenbank!$A$6:$R$47,Stoffdatenbank!$L$2,FALSE)/(Bodencharakterisierung!$E$13/10)*VLOOKUP(E44,Stoffdatenbank!$A$6:$R$47,Stoffdatenbank!$N$2,FALSE)/1000 -> 90210.60241 | AG44: 44531.04209 | AH44: =VLOOKUP(E44,Schadstoffbelastung!$B$2:$D$46,3,0) -> 0 | AI44: =IF(Y44>0,Schadstoffbelastung!$J$4/Grundwassercharakterisierung!$D$4*AP44,0)*Heterogenität!$D$17 -> 0 | AJ44: =Stoffdatenbank!J45*Bodencharakterisierung!$E$9 -> 0.055 | AK44: =1+AJ44*VLOOKUP(E44,Stoffdatenbank!$A$6:$S$47,Stoffdatenbank!$Q$2,FALSE)/Bodencharakterisierung!$E$8 -> 1.000001381 | AL44: =Stoffdatenbank!L45/Bodencharakterisierung!$E$14 -> 1.189125e-10 | AM44: =AL44/AK44 -> 1.189123358e-10 | AN44: =0.183*Bodencharakterisierung!$E$13^2/Berechnung1!AM44*Heterogenität!$D$17/3600/24 -> 0.003769247778 | AO44: =Sanierungsdesign!$E$7 -> 0 | AP44: =1+U44*1000*(AH44/U44/1000/Schadstoffbelastung!$J$11/Bodencharakterisierung!$E$8)/O44/lblMainSoilPorosityAct -> 1 | AQ44: 0 | AR44: =IFERROR(LOG(AO44/AQ44,0.4),0) -> 0 | AS44: =IF(F44=0,0,IF(AR44<0,1,1+ROUNDUP(AR44,0))) -> 0 | AT44: 0 | AU44: =(AS44*90)*Heterogenität!$D$17+AI44+AN44 -> 0.003769247778
E45: ETBE (Ethyl-tert-butylether) | F45: =Schadstoffbelastung!D44 -> 0 | G45: =F45/Schadstoffbelastung!$J$12*1000 -> 0 | H45: =Schadstoffbelastung!U44/1000/1000 -> 0 | I45: 0 | J45: =Stoffdatenbank!R46 -> 102.1748 | K45: =F45/J45 -> 0 | L45: =IFERROR(K45/$K$47,0) -> 0 | M45: =IF(L45>0.05,1,0) -> 0 | N45: =Stoffdatenbank!J46*0.001*Bodencharakterisierung!$E$9 -> 4.5e-05 | O45: =Stoffdatenbank!N46*0.001 -> 12 | P45: =Sanierungsdesign!$E$7/1000000 -> 0 | R45: =IF(AND(M45=1,Q45>1),1,0) ->  | U45: =Stoffdatenbank!Q46 -> 0.75 | V45: =Stoffdatenbank!L46 -> 7.337962963e-10 | W45: =Schadstoffbelastung!X44/1000/1000 -> 0 | X45: =Schadstoffbelastung!Y44/1000/1000 -> 0 | Y45: =Schadstoffbelastung!Z44/1000/1000 -> 0 | Z45: =Schadstoffbelastung!W44/1000/1000 -> 0 | AA45: 1 | AB45: 1 | AC45: 0 | AD45: 0 | AE45: =IF(Sanierungsdesign!$E$15="Permanganat",Berechnung1!F45*Berechnung1!AA45,Berechnung1!F45*Berechnung1!AB45) -> 0 | AF45: =VLOOKUP(E45,Stoffdatenbank!$A$6:$R$47,Stoffdatenbank!$L$2,FALSE)/(Bodencharakterisierung!$E$13/10)*VLOOKUP(E45,Stoffdatenbank!$A$6:$R$47,Stoffdatenbank!$N$2,FALSE)/1000 -> 70128.43373 | AG45: 34617.79604 | AH45: =VLOOKUP(E45,Schadstoffbelastung!$B$2:$D$46,3,0) -> 0 | AI45: =IF(Y45>0,Schadstoffbelastung!$J$4/Grundwassercharakterisierung!$D$4*AP45,0)*Heterogenität!$D$17 -> 0 | AJ45: =Stoffdatenbank!J46*Bodencharakterisierung!$E$9 -> 0.045 | AK45: =1+AJ45*VLOOKUP(E45,Stoffdatenbank!$A$6:$S$47,Stoffdatenbank!$Q$2,FALSE)/Bodencharakterisierung!$E$8 -> 1.000000947 | AL45: =Stoffdatenbank!L46/Bodencharakterisierung!$E$14 -> 9.172453704e-11 | AM45: 9.172445018e-11 | AN45: =0.183*Bodencharakterisierung!$E$13^2/Berechnung1!AM45*Heterogenität!$D$17/3600/24 -> 0.004886483992 | AO45: =Sanierungsdesign!$E$7 -> 0 | AP45: =1+U45*1000*(AH45/U45/1000/Schadstoffbelastung!$J$11/Bodencharakterisierung!$E$8)/O45/lblMainSoilPorosityAct -> 1 | AQ45: 0 | AR45: 0 | AS45: 0 | AT45: 0 | AU45: =(AS45*90)*Heterogenität!$D$17+AI45+AN45 -> 0.004886483992
E46: TBA (tert-Butylalkohol) | F46: =Schadstoffbelastung!D45 -> 0 | G46: =F46/Schadstoffbelastung!$J$12*1000 -> 0 | H46: =Schadstoffbelastung!U45/1000/1000 -> 0 | I46: 0 | J46: =Stoffdatenbank!R47 -> 74.1216 | K46: =F46/J46 -> 0 | L46: =IFERROR(K46/$K$47,0) -> 0 | M46: =IF(L46>0.05,1,0) -> 0 | N46: =Stoffdatenbank!J47*0.001*Bodencharakterisierung!$E$9 -> 0.000185 | O46: =Stoffdatenbank!N47*0.001 -> 50 | P46: =Sanierungsdesign!$E$7/1000000 -> 0 | R46: =IF(AND(M46=1,Q46>1),1,0) ->  | U46: =Stoffdatenbank!Q47 -> 0.79 | V46: =Stoffdatenbank!L47 -> 7e-10 | W46: =Schadstoffbelastung!X45/1000/1000 -> 0 | X46: =Schadstoffbelastung!Y45/1000/1000 -> 0 | Y46: =Schadstoffbelastung!Z45/1000/1000 -> 0 | Z46: =Schadstoffbelastung!W45/1000/1000 -> 0 | AA46: 1 | AB46: 1 | AC46: 0 | AD46: 0 | AE46: =IF(Sanierungsdesign!$E$15="Permanganat",Berechnung1!F46*Berechnung1!AA46,Berechnung1!F46*Berechnung1!AB46) -> 0 | AF46: =VLOOKUP(E46,Stoffdatenbank!$A$6:$R$47,Stoffdatenbank!$L$2,FALSE)/(Bodencharakterisierung!$E$13/10)*VLOOKUP(E46,Stoffdatenbank!$A$6:$R$47,Stoffdatenbank!$N$2,FALSE)/1000 -> 553306.0241 | AG46: 273130.7983 | AH46: =VLOOKUP(E46,Schadstoffbelastung!$B$2:$D$46,3,0) -> 0 | AI46: =IF(Y46>0,Schadstoffbelastung!$J$4/Grundwassercharakterisierung!$D$4*AP46,0)*Heterogenität!$D$17 -> 0 | AJ46: =Stoffdatenbank!J47*Bodencharakterisierung!$E$9 -> 0.185 | AK46: =1+AJ46*VLOOKUP(E46,Stoffdatenbank!$A$6:$S$47,Stoffdatenbank!$Q$2,FALSE)/Bodencharakterisierung!$E$8 -> 1.000003418 | AL46: =Stoffdatenbank!L47/Bodencharakterisierung!$E$14 -> 8.75e-11 | AM46: 8.749970092e-11 | AN46: =0.183*Bodencharakterisierung!$E$13^2/Berechnung1!AM46*Heterogenität!$D$17/3600/24 -> 0.005122418165 | AO46: =Sanierungsdesign!$E$7 -> 0 | AP46: =1+U46*1000*(AH46/U46/1000/Schadstoffbelastung!$J$11/Bodencharakterisierung!$E$8)/O46/lblMainSoilPorosityAct -> 1 | AQ46: 0 | AR46: 0 | AS46: 0 | AT46: 0 | AU46: =(AS46*90)*Heterogenität!$D$17+AI46+AN46 -> 0.005122418165
E47: Oxigenate | F47: =Schadstoffbelastung!D46 -> 0 | G47: =SUM(G44:G46) -> 0 | H47: =Schadstoffbelastung!U46/1000/1000 -> 0 | I47: =IFERROR(X47/N47,0) -> 0 | K47: =SUM(K44:K46) -> 0 | L47: =SUM(L44:L46) -> 0 | N47: =SUMPRODUCT($L44:$L46,N44:N46) -> 0 | O47: =(L44*O44)+(L45*O45)+(L46*O46) -> 0 | P47: =Sanierungsdesign!$E$7/1000000 -> 0 | U47: =SUMPRODUCT($L44:$L46,U44:U46) -> 0 | V47: =SUMPRODUCT($L44:$L46,V44:V46) -> 0 | W47: =IF(Y47=0,SUM(W44:W46),X47-Y47) -> 0 | X47: =SUM(X44:X46) -> 0 | Y47: =SUM(Y44:Y46) -> 0 | Z47: =SUM(Z44:Z46) -> 0 | AA47: =SUMPRODUCT($L44:$L46,AA44:AA46) -> 0 | AB47: 0 | AC47: 0 | AD47: 0 | AE47: =IF(Sanierungsdesign!$E$15="Permanganat",Berechnung1!F47*Berechnung1!AA47,Berechnung1!F47*Berechnung1!AB47) -> 0 | AI47: =IF(Y47>0,Schadstoffbelastung!$J$4/Grundwassercharakterisierung!$D$4*AP47,0)*Heterogenität!$D$17 -> 0 | AJ47: =SUMPRODUCT(L44:L46,AJ44:AJ46) -> 0 | AN47: =MAX(AN44:AN46) -> 0.005122418165 | AO47: =Sanierungsdesign!$E$7 -> 0 | AP47: =MAX(AP44:AP46) -> 1 | AQ47: =IFERROR(G47/AJ47*1000*0.4,0) -> 0 | AR47: =IFERROR(LOG(AO47/AQ47,0.4),0) -> 0 | AS47: 0 | AT47: =IFERROR(G47/AJ47*1000*0.4^AS47,0) -> 0 | AU47: =(AS47*90)*Heterogenität!$D$17+AI47+AN47 -> 0.005122418165

Sheet Stoffdatenbank (hidden)
A2: 1 | B2: 2 | C2: 3 | H2: 4 | I2: 5 | J2: 6 | K2: 7 | L2: 8 | M2: 9 | N2: 10 | O2: 11 | P2: 12 | Q2: 13 | R2: 14
B3: Abbaurate (Permang.) | C3: Abbaurate (Sufat-Radikal) | D3: Abbaurate (ERD) | E3: Abbaurate (O2) | F3: Abbaurate (Nitrat) | G3: Abbaurate (Sulfat) | H3: Ver-dampfungs-enthalpie | I3: Gemisch-siedetemp. mit Wasser | J3: Sorptions-koeffizient | K3: Henry-Koeffizient | L3: Diffusions-koeffizient (in Wasser) | M3: Diffusions-koeffizient (in Luft) | N3: Löslichkeit | O3: Dampf-druck | P3: Siede-punkt | Q3: Dichte | R3: Molekular-gewicht | U3: Abbaurate (Permang.) | V3: Abbaurate (Sufat-Radikal)
A4: Verbindung | B4: lPM [mol-1 s-1] | C4: lPM [mol-1 s-1] | D4: lERD [d-1] | E4: lOx [d-1] | F4: lNO3 [d-1] | G4: lSO4 [d-1] | H4: ΔHv [kJ/kg] | I4: °C | J4: KOC [L/kg] | K4: H (15°C) [-] | L4: Dw (15°C) [m²/s] | M4: Da (15°C) [m²/s] | N4: Lw (20°C) [mg/L] | O4: Po (15°C) [Pa] | P4: °C | Q4: [kg/L] | R4: Mm [g/mol] | S4: Bemerkung | U4: lPM [mol-1 s-1] | V4: lPM [mol-1 s-1]
A5: Leichtflüchtige chlorierte Kohlenwasserstoffe (LCKW)
A6: Tetrachlorethen | B6: 0.038 | C6: 44 | D6: 0.028 | E6: -- | F6: -- | G6: -- | H6: 239.22 | I6: 88.7 | J6: =0.36*1000 -> 360 | K6: 0.64 | L6: 7.49e-10 | M6: 6.62e-06 | N6: 160 | O6: 1479 | P6: 121.075 | Q6: 1.624 | R6: 166 | U6: 0.038 | V6: 44
A7: Trichlorethen | B7: 0.67 | C7: 44 | D7: 0.027 | E7: -- | F7: -- | G7: -- | H7: 263.15 | I7: 73.5 | J7: 130 | K7: 0.33 | L7: 8.08e-10 | M7: 7.12e-06 | N7: 1000 | O7: 6064 | P7: 86.975 | Q7: 1.4642 | R7: 131 | U7: 0.67 | V7: 44
A8: cis-1,2-Dichlorethen | B8: 44 | C8: 44 | D8: 0.012 | E8: -- | F8: -- | G8: -- | H8: 319.07 | I8: 55.3 | J8: 50 | K8: 0.2 | L8: 8.95e-10 | M8: 7.88e-06 | N8: 3500 | O8: 17284 | P8: 60.1875 | Q8: 1.2837 | R8: 97 | S8: LW (cDCE) bei 25 °C | U8: 44 | V8: 44
A9: trans-1,2-Dichlorethen | B9: 43.6 | C9: 44 | D9: 0.012 | E9: -- | F9: -- | G9: -- | H9: 306.55 | I9: 45.3 | J9: 60 | K9: 0.19 | L9: 8.86e-10 | M9: 8.83e-06 | N9: 6300 | O9: 29294 | P9: 48.066 | Q9: 1.2565 | R9: 97 | U9: 43.6 | V9: 44
A10: 1,1-Dichlorethen | B10: 2.32 | C10: 44 | D10: 0.012 | E10: -- | F10: -- | G10: -- | H10: 274.33 | I10: =I8 -> 55.3 | J10: 70.51 | K10: 0.8 | L10: 1.173e-09 | M10: 9.865e-06 | N10: 2500 | O10: 6792.77 | P10: 31.4 | Q10: 1.218 | R10: 97 | U10: 2.32 | V10: 44
A11: Vinylchlorid | B11: 44 | C11: 44 | D11: 0.018 | E11: 0.03 | F11: 0.002 | G11: 0.002 | H11: 364.6 | I11: -13 | J11: 60 | K11: 6.78 | L11: 5.78e-10 | M11: 5.94e-06 | N11: 1100 | O11: 285916 | P11: -13.758 | Q11: 0.9121 | R11: 63 | U11: 44 | V11: 44
A12: Tetrachlormethan | B12: 0 | C12: 0 | D12: 0.06 | E12: -- | F12: -- | G12: -- | H12: 201.95 | I12: 66 | J12: 285.6 | K12: 1.153 | L12: 7.293e-10 | M12: 6.323e-06 | N12: 800 | O12: 11940 | P12: 76.76 | Q12: 1.594 | R12: 154 | U12: 0 | V12: 0
A13: Trichlormethan | B13: 0 | C13: 0 | D13: 0.06 | E13: -- | F13: -- | G13: -- | H13: 273.11 | I13: 56.1 | J13: 51.21 | K13: 0.185 | L13: 8.245e-10 | M13: 7.141e-06 | N13: 8200 | O13: 20900 | P13: 61.12 | Q13: 1.485 | R13: 119 | U13: 0 | V13: 0
A14: Dichlormethan | B14: 0 | C14: 0 | D14: 0.03 | E14: -- | F14: -- | G14: -- | H14: 343.36 | I14: 43.5 | J14: 12.15 | K14: 0.1159 | L14: 9.83e-10 | M14: 8.441e-06 | N14: 17799 | O14: 39156.78 | P14: 39.95 | Q14: 1.328 | R14: 85 | U14: 0 | V14: 0
A15: 1,1,1-Trichlorethan | B15: 0 | C15: 4 | D15: 0.01 | E15: -- | F15: -- | G15: -- | H15: 243.62 | I15: 86 | J15: 144 | K15: 1 | L15: 7.61e-10 | M15: 6.77e-06 | N15: 1300 | O15: 1369.81 | P15: 74.05 | Q15: 1.339 | R15: 133.404 | U15: 0 | V15: 4
A16: 1,1,2-Trichlorethan | B16: 0 | C16: 4 | D16: 0.01 | E16: -- | F16: -- | G16: -- | H16: 301.34 | I16: 86 | J16: 43.64 | K16: 0.038 | L16: 6.8e-10 | M16: 7.6e-06 | N16: 4500 | O16: 2500 | P16: 13.65 | Q16: 1.441 | R16: 133.404 | S16: D abgeschätzt | U16: 0 | V16: 4
A17: 1,1-Dichlorethan | B17: 0 | C17: 4 | D17: 0.0065 | E17: -- | F17: -- | G17: -- | H17: 310.28 | I17: 72.8 | J17: 35.74 | K17: 0.257 | L17: 1.14e-09 | M17: 8.7e-06 | N17: 8690 | O17: 29100 | P17: 57.4 | Q17: 1.235 | R17: 98.96 | S17: D abgeschätzt | U17: 0 | V17: 4
A18: 1,2-Dichlorethan | B18: 0 | C18: 4 | D18: 0.0065 | E18: -- | F18: -- | G18: -- | H18: 354.69 | I18: 72.845 | J18: 39.6 | K18: 0.0508 | L18: 9.2e-10 | M18: 7.83e-06 | N18: 8690 | O18: 10000 | P18: 83.6 | Q18: 1.235 | R18: 98.96 | U18: 0 | V18: 4
A19: (Mono)aromatische Kohlenwasserstoffe (AKW)
A20: Benzol | B20: 7e-06 | C20: 1680000000 | D20: -- | E20: 0.15 | F20: 0.0015 | G20: 0.01 | H20: 434.62 | I20: 69.3 | J20: 80 | K20: 0.15 | L20: 8.15e-10 | M20: 7.59e-06 | N20: 1770 | O20: 7941 | P20: 80.15 | Q20: 0.877 | R20: 78 | U20: 7e-06 | V20: 1680000000
A21: Toluol | B21: 0.00057 | C21: 1870000000 | D21: -- | E21: 0.23 | F21: 0.5 | G21: 0.05 | H21: 390.22 | I21: 84.6 | J21: 300 | K21: 0.16 | L21: 7.34e-10 | M21: 6.9e-06 | N21: 520 | O21: 2215 | P21: 110.7 | Q21: 0.87 | R21: 92 | U21: 0.00057 | V21: 1870000000
A22: Ethylbenzol | B22: 0.00707 | C22: 1000000000 | D22: -- | E22: 0.15 | F22: 0.25 | G22: 0.003 | H22: 386.76 | I22: 91.5 | J22: 1100 | K22: 0.19 | L22: 6.76e-10 | M22: 6.39e-06 | N22: 170 | O22: 728 | P22: 136.2 | Q22: 0.866 | R22: 106 | U22: 0.00707 | V22: 1000000000
A23: o-Xylol | B23: 0.00147 | C23: 1000000000 | D23: -- | E23: 0.07 | F23: 0.025 | G23: 0.04 | H23: 396.23 | I23: 93.3 | J23: 830 | K23: 0.12 | L23: 6.8e-10 | M23: 6.42e-06 | N23: 180 | O23: 492 | P23: 143.9 | Q23: 0.88 | R23: 106 | U23: 0.00147 | V23: 1000000000
A24: m-Xylol | B24: 0.001 | C24: 1000000000 | D24: -- | E24: 0.1 | F24: 0.1 | G24: 0.08 | H24: 386.79 | I24: 93.3 | J24: 980 | K24: 0.16 | L24: 6.71e-10 | M24: 6.36e-06 | N24: 174 | O24: 615 | P24: 139.2 | Q24: 0.864 | R24: 106 | U24: 0.001 | V24: 1000000000
A25: p-Xylol | B25: 0.00222 | C25: 2700000000 | D25: -- | E25: 0.1 | F25: 0.05 | G25: 0.04 | H25: 396.23 | I25: 93.3 | J25: 880 | K25: 0.15 | L25: 6.71e-10 | M25: 6.36e-06 | N25: 200 | O25: 657 | P25: 138.3 | Q25: 0.861 | R25: 106 | U25: 0.00222 | V25: 2700000000
A26: n-Propylbenzol | B26: 0.001 | C26: 1000000000 | D26: -- | E26: 0.1 | F26: 0.02 | G26: 0.003 | H26: 383.33 | I26: 96.5 | J26: 980 | K26: 0.2 | L26: 6.2e-10 | M26: 6e-06 | N26: 60 | O26: 237 | P26: 158.9 | Q26: 0.86 | R26: 120 | S26: LW bei 25 °C | U26: 0.001 | V26: 1000000000
A27: Isopropylbenzol | B27: 0.001 | C27: 1000000000 | D27: -- | E27: 0.15 | F27: 0.02 | G27: 0.02 | H27: 366.67 | I27: 95 | J27: 940 | K27: 0.43 | L27: 6.2e-10 | M27: 6e-06 | N27: 50 | O27: 427 | P27: 151.9 | Q27: 0.862 | R27: 120 | S27: LW bei 25 °C | U27: 0.001 | V27: 1000000000
A28: o-Ethyltoluol | B28: 0.001 | C28: 1000000000 | D28: -- | E28: 0.05 | F28: 0.02 | G28: 0.04 | H28: 395.25 | I28: 96.5 | J28: 790 | K28: 0.11 | L28: 6.3e-10 | M28: 6e-06 | N28: 93 | O28: 202 | P28: 165.2 | Q28: 0.88 | R28: 120 | U28: 0.001 | V28: 1000000000
A29: m-Ethyltoluol | B29: 0.001 | C29: 1000000000 | D29: -- | E29: 0.15 | F29: 0.1 | G29: 0.08 | H29: 390 | I29: 96.5 | J29: 760 | K29: 0.1 | L29: 6.2e-10 | M29: 6e-06 | N29: 97 | O29: 202 | P29: 161.4 | Q29: 0.864 | R29: 120 | U29: 0.001 | V29: 1000000000
A30: p-Ethyltoluol | B30: 0.001 | C30: 1000000000 | D30: -- | E30: 0.15 | F30: 0.05 | G30: 0.04 | H30: 388.92 | I30: 96.5 | J30: 900 | K30: 0.12 | L30: 6.2e-10 | M30: 6e-06 | N30: 95 | O30: 230 | P30: 162 | Q30: 0.861 | R30: 120 | U30: 0.001 | V30: 1000000000
A31: 1,2-Diethylbenzol | B31: 0.001 | C31: 1000000000 | D31: -- | E31: 0.07 | F31: 0.015 | G31: 0.04 | H31: 394.03 | I31: 96.5 | J31: 500 | K31: 0.16 | L31: 5.9e-10 | M31: 5.7e-06 | N31: 24 | O31: 67 | P31: 182.9 | Q31: 0.88 | R31: 134 | U31: 0.001 | V31: 1000000000
A32: 1,3-Diethylbenzol | B32: 0.001 | C32: 1000000000 | D32: -- | E32: 0.07 | F32: 0.05 | G32: 0.08 | H32: 391.79 | I32: 96.5 | J32: 420 | K32: 0.23 | L32: 5.8e-10 | M32: 5.6e-06 | N32: 27 | O32: 109 | P32: 180.9 | Q32: 0.86 | R32: 134 | U32: 0.001 | V32: 1000000000
A33: 1,4-Diethylbenzol | B33: 0.001 | C33: 1000000000 | D33: -- | E33: 0.07 | F33: 0.03 | G33: 0.04 | H33: 391.79 | I33: 96.5 | J33: 460 | K33: 0.23 | L33: 5.8e-10 | M33: 5.6e-06 | N33: 25 | O33: 101 | P33: 183.7 | Q33: 0.862 | R33: 134 | U33: 0.001 | V33: 1000000000
A34: 1,2,3-Trimethylbenzol | B34: 0.001 | C34: 1000000000 | D34: -- | E34: 0.12 | F34: 0.003 | G34: 0.03 | H34: 408.33 | I34: 96.5 | J34: 650 | K34: 0.08 | L34: 6.4e-10 | M34: 6e-06 | N34: 75 | O34: 125 | P34: 176.1 | Q34: 0.894 | R34: 120 | U34: 0.001 | V34: 1000000000
A35: 1,2,4-Trimethylbenzol | B35: 0.001 | C35: 1000000000 | D35: -- | E35: 0.17 | F35: 0.003 | G35: 0.05 | H35: 391.67 | I35: 96.5 | J35: 650 | K35: 0.12 | L35: 6.3e-10 | M35: 6e-06 | N35: 60 | O35: 147 | P35: 169.3 | Q35: 0.876 | R35: 120 | S35: LW bei 25 °C | U35: 0.001 | V35: 1000000000
A36: 1,3,5-Trimethylbenzol | B36: 0.001 | C36: 1000000000 | D36: -- | E36: 0.05 | F36: 0.003 | G36: 0.05 | H36: 395.92 | I36: 96.5 | J36: 670 | K36: 0.48 | L36: 6.3e-10 | M36: 6e-06 | N36: 20 | O36: 193 | P36: 164.7 | Q36: 0.865 | R36: 120 | U36: 0.001 | V36: 1000000000
A37: n-Alkane
A38: n-Pentan | B38: 4 | C38: 125000000 | D38: -- | E38: 0.06 | F38: 0.01 | G38: 0.005 | H38: 368.06 | I38: 34.6 | J38: 870 | K38: 35.69 | L38: 7.01e-10 | M38: 6.89e-06 | N38: 40 | O38: 46219 | P38: 36.05 | Q38: 0.626 | R38: 72 | U38: 4 | V38: 125000000
A39: n-Hexan | B39: 4 | C39: 160000000 | D39: -- | E39: 0.11 | F39: 0.01 | G39: 0.005 | H39: 360.47 | I39: 61.6 | J39: 2040 | K39: 46.48 | L39: 6.49e-10 | M39: 6.36e-06 | N39: 10 | O39: 12922 | P39: 68.75 | Q39: 0.66 | R39: 86 | U39: 4 | V39: 160000000
A40: n-Heptan | B40: 4 | C40: 247000000 | D40: -- | E40: 0.15 | F40: 0.01 | G40: 0.005 | H40: 360 | I40: 79.6 | J40: 5250 | K40: 69.3 | L40: 6.05e-10 | M40: 5.92e-06 | N40: 2.2 | O40: 3645 | P40: 98.35 | Q40: 0.684 | R40: 100 | S40: LW bei 25 °C | U40: 4 | V40: 247000000
A41: n-Octan | B41: 4 | C41: 337000000 | D41: -- | E41: 0.19 | F41: 0.01 | G41: 0.005 | H41: 359.65 | I41: 89.5 | J41: 17380 | K41: 70.89 | L41: 5.69e-10 | M41: 5.58e-06 | N41: 0.7 | O41: 1041 | P41: 125.6 | Q41: 0.7025 | R41: 114 | U41: 4 | V41: 337000000
A42: n-Nonan | B42: 4 | C42: 337000000 | D42: -- | E42: 0.22 | F42: 0.01 | G42: 0.005 | H42: 363.28 | I42: 94.8 | J42: 27540 | K42: 156.63 | L42: 5.41e-10 | M42: 5.31e-06 | N42: 0.12 | O42: 351 | P42: 150.7 | Q42: 0.72 | R42: 128 | S42: LW bei 25 °C | U42: 4 | V42: 337000000
A43: n-Decan | B43: 4 | C43: 337000000 | D43: -- | E43: 0.22 | F43: 0.01 | G43: 0.005 | H43: 361.27 | I43: 97.2 | J43: 218780 | K43: 140.3 | L43: 5.13e-10 | M43: 5.05e-06 | N43: 0.05 | O43: 118 | P43: 174.1 | Q43: 0.73 | R43: 142 | U43: 4 | V43: 337000000
A44: Oxigenate
A45: MTBE (Methyl-tert-butylether) | B45: 0 | C45: 31000000 | D45: -- | E45: 0.07 | F45: 0.003 | G45: 0.002 | H45: 340.34 | I45: 52.4 | J45: 11 | K45: 0.027 | L45: 9.513e-10 | M45: 8.286e-06 | N45: 51259 | O45: 33300 | P45: 55.65 | Q45: 0.74 | R45: 88.148 | U45: 0 | V45: 31000000
A46: ETBE (Ethyl-tert-butylether) | B46: 0 | C46: 15870000 | D46: -- | E46: 0.07 | F46: 0.003 | G46: 0.002 | H46: 323.37 | I46: 65.2 | J46: 9 | K46: 0.081 | L46: 7.337962963e-10 | M46: 6.944444444e-06 | N46: 12000 | O46: 16500 | P46: 72.825 | Q46: 0.75 | R46: 102.1748 | U46: 0 | V46: 15870000
A47: TBA (tert-Butylalkohol) | B47: 0 | C47: 740000 | D47: -- | E47: 0.07 | F47: 0.001 | G47: 0.002 | H47: 620.6 | I47: 79.9 | J47: 37 | K47: 0.00061 | L47: 7e-10 | M47: =M45/(L45/L47) -> 6.097130243e-06 | N47: 50000 | O47: 5430 | P47: 82.35 | Q47: 0.79 | R47: 74.1216 | U47: 0 | V47: 740000
A48: grau = abgeschätzt
A51: n-Pentan | B51: 4 | C51: 125000000 | D51: -- | E51: 0.06 | F51: 0.01 | G51: 0.005 | H51: 368.06 | I51: 34.6 | J51: 870 | K51: 35.69 | L51: 7.01e-10 | M51: 6.89e-06 | N51: 40 | O51: 46219 | P51: 36.05 | Q51: 0.626 | R51: 72
A52: n-Hexan | B52: 4 | C52: 160000000 | D52: -- | E52: 0.11 | F52: 0.01 | G52: 0.005 | H52: 360.47 | I52: 61.6 | J52: 2040 | K52: 46.48 | L52: 6.49e-10 | M52: 6.36e-06 | N52: 10 | O52: 12922 | P52: 68.75 | Q52: 0.66 | R52: 86
A53: n-Heptan | B53: 4 | C53: 247000000 | D53: -- | E53: 0.15 | F53: 0.01 | G53: 0.005 | H53: 360 | I53: 79.6 | J53: 5250 | K53: 69.3 | L53: 6.05e-10 | M53: 5.92e-06 | N53: 2.2 | O53: 3645 | P53: 98.35 | Q53: 0.684 | R53: 100 | S53: LW bei 25 °C
A54: n-Octan | B54: 4 | C54: 337000000 | D54: -- | E54: 0.19 | F54: 0.01 | G54: 0.005 | H54: 359.65 | I54: 89.5 | J54: 17380 | K54: 70.89 | L54: 5.69e-10 | M54: 5.58e-06 | N54: 0.7 | O54: 1041 | P54: 125.6 | Q54: 0.7025 | R54: 114
A55: n-Nonan | B55: 4 | C55: 337000000 | D55: -- | E55: 0.22 | F55: 0.01 | G55: 0.005 | H55: 363.28 | I55: 94.8 | J55: 27540 | K55: 156.63 | L55: 5.41e-10 | M55: 5.31e-06 | N55: 0.12 | O55: 351 | P55: 150.7 | Q55: 0.72 | R55: 128 | S55: LW bei 25 °C
A56: n-Decan | B56: 4 | C56: 337000000 | D56: -- | E56: 0.22 | F56: 0.01 | G56: 0.005 | H56: 361.27 | I56: 97.2 | J56: 218780 | K56: 140.3 | L56: 5.13e-10 | M56: 5.05e-06 | N56: 0.05 | O56: 118 | P56: 174.1 | Q56: 0.73 | R56: 142

Sheet Heterogenität (hidden)
F1: Sondierung | G1: Gini-Koeffizient
A16: Heterogenität (Gini-Koeffizient) | C16: Gering | D16: 0.2
A17: Korrekturfaktor | D17: =1/(1-(1-2.45068336614863*(Schadstoffbelastung!$J$4*Schadstoffbelastung!$J$5)^-0.457209937280527)*$D$16) -> 1.22870622
D19: =Bodencharakterisierung!F4 -> 5
D20: =IF(Bodencharakterisierung!H6>1,Bodencharakterisierung!H6,1/Bodencharakterisierung!H6) -> 2
